Local authority department which incurred the expenditure,Service Division,Cost Centre,Summary of the Purpose of Expenditure,Expense Type,Expense Code,Detailed Expense Type,Date of Transaction,Transaction Number,Beneficiary,Merchant Category Number,Merchant Category,Gross Amount,VAT,Net Amount
Children and Young Peoples Services,Head of Childrens Social Care,085334,West Rainton Satelite Home,Supplies and Services,324117,Provisions E324,01-May-2022,000008165158946,TESCO STORES 2371,5411,Catering costs - provisions,140.66,0.00,140.66
Children and Young Peoples Services,Head of Childrens Social Care,085341,High Etherley Satelite Home,Supplies and Services,348037,Subsistence E348,01-May-2022,000008165158968,THE DAIRY BARN,5812,Subsistence,11.95,0.00,11.95
Children and Young Peoples Services,Head of Childrens Social Care,085331,New Lea Childrens Home,Supplies and Services,304403,Equipment and Materials,01-May-2022,000008165158994,Stanley,5999,Other consumables,3.00,0.00,3.00
Children and Young Peoples Services,Head of Childrens Social Care,085331,New Lea Childrens Home,Supplies and Services,324117,Provisions E324,01-May-2022,000008165158996,HERON FOODS STANLEY,5411,Catering costs - provisions,3.24,0.00,3.24
Children and Young Peoples Services,Head of Childrens Social Care,085347,Solo Home The Manse,Transport,215995,Running Costs of Vehicles,01-May-2022,000008165159060,ASDA PETROL-UPT4424,5542,Vehicle running expenses,20.01,0.00,20.01
Children and Young Peoples Services,Head of Childrens Social Care,085347,Solo Home The Manse,Supplies and Services,348037,Subsistence E348,01-May-2022,000008165159062,Mr C?s Ice Cream Parlo,5812,Subsistence,7.20,0.00,7.20
Children and Young Peoples Services,Head of Childrens Social Care,085347,Solo Home The Manse,Supplies and Services,324117,Provisions E324,01-May-2022,000008165159064,CO-OP GROUP FOOD,5411,Catering costs - provisions,2.09,0.00,2.09
Children and Young Peoples Services,Head of Childrens Social Care,085358,Orchard House Sacriston Solo Home,Supplies and Services,344033,Telephones,01-May-2022,000008165159082,giffgaff,4814,Telephones general-all costs,10.00,0.00,10.00
Children and Young Peoples Services,Head of Childrens Social Care,085358,Orchard House Sacriston Solo Home,Supplies and Services,324117,Provisions E324,01-May-2022,000008165159084,TESCO STORES 6334,5411,Catering costs - provisions,10.00,0.00,10.00
Children and Young Peoples Services,Head of Childrens Social Care,085331,New Lea Childrens Home,Supplies and Services,324117,Provisions E324,01-May-2022,000008165159096,ASDA SUPERSTORE,5411,Catering costs - provisions,1.49,0.00,1.49
Children and Young Peoples Services,Head of Childrens Social Care,085331,New Lea Childrens Home,Supplies and Services,324117,Provisions E324,01-May-2022,000008165159098,ASDA SUPERSTORE,5411,Catering costs - provisions,59.00,0.00,59.00
Children and Young Peoples Services,Head of Childrens Social Care,085331,New Lea Childrens Home,Supplies and Services,304259,Equipment and Materials,01-May-2022,000008165159100,SPORTSDIRECT.COM,5941,Equipment-purchase and rental,18.99,0.00,18.99
Children and Young Peoples Services,Head of Education and Skills,071732,Dean Bank Childcare,Supplies and Services,304403,Equipment and Materials,01-May-2022,000008165159114,AMZNMktplace,5999,Other consumables,50.16,0.00,50.16
Children and Young Peoples Services,Head of Early Help Inclusion & Vulnerable Children.,085957,Secure Management,Supplies and Services,324117,Provisions E324,01-May-2022,000008165159162,TESCO STORES 6329,5411,Catering costs - provisions,8.00,0.00,8.00
Children and Young Peoples Services,Head of Education and Skills,070169,Durham SSP,Supplies and Services,304999,Equipment and Materials,01-May-2022,000008165159202,Microsoft Microsoft 36,5816,Misc equipment tools and materials,7.99,1.33,6.66
Children and Young Peoples Services,Head of Childrens Social Care,085551,Short Break Services-Park Hse Sher,Supplies and Services,324117,Provisions E324,01-May-2022,000008165159270,TESCO STORES 2371,5411,Catering costs - provisions,38.36,0.00,38.36
Children and Young Peoples Services,Head of Childrens Social Care,085341,High Etherley Satelite Home,Transport,235057,Public Transport,01-May-2022,000008165159316,BLACKPOOL TRANSPORT SE,4131,Staff travelling,5.20,0.00,5.20
Children and Young Peoples Services,Head of Childrens Social Care,085341,High Etherley Satelite Home,Transport,235057,Public Transport,01-May-2022,000008165159318,NORTHERN RAIL LTD-,4112,Staff travelling,7.60,0.00,7.60
Children and Young Peoples Services,Head of Childrens Social Care,085341,High Etherley Satelite Home,Supplies and Services,304403,Equipment and Materials,01-May-2022,000008165159320,ROCK CITY SUPERSTORE L,5947,Other consumables,18.30,0.00,18.30
Children and Young Peoples Services,Head of Childrens Social Care,085341,High Etherley Satelite Home,Supplies and Services,324117,Provisions E324,01-May-2022,000008165159322,SAINSBURYS S/MKTS,5411,Catering costs - provisions,6.50,0.00,6.50
Children and Young Peoples Services,Head of Childrens Social Care,085341,High Etherley Satelite Home,Supplies and Services,348037,Subsistence E348,01-May-2022,000008165159324,MCDONALDS,5814,Subsistence,7.17,0.00,7.17
Children and Young Peoples Services,Head of Childrens Social Care,085342,16 Hickstead Rise (previously 9 Cedar Ave),Supplies and Services,324001,Provisions E324,01-May-2022,000008165159342,CORKING WINES,5921,Bar supplies,1.83,0.00,1.83
Children and Young Peoples Services,Head of Childrens Social Care,085342,16 Hickstead Rise (previously 9 Cedar Ave),Supplies and Services,348037,Subsistence E348,01-May-2022,000008165159344,MCDONALDS,5814,Subsistence,10.52,0.00,10.52
Children and Young Peoples Services,Head of Childrens Social Care,085334,West Rainton Satelite Home,Supplies and Services,332047,Printing Stationery and Gen Off Exps,01-May-2022,000008165159386,Vue Entertainment Ltd,7832,Stationery,14.97,0.00,14.97
Children and Young Peoples Services,Head of Early Help Inclusion & Vulnerable Children.,085957,Secure Management,Supplies and Services,304403,Equipment and Materials,01-May-2022,000008165159454,AMZNMKTPLACE AMAZON.CO,5999,Other consumables,35.49,0.00,35.49
Children and Young Peoples Services,Head of Childrens Social Care,085357,LAC Bespoke Placements,Supplies and Services,352001,Conference Expenses,01-May-2022,000008165159462,LUKE STAYS,7011,Conferencesseminars fees etc,150.00,0.00,150.00
Regeneration Economy and Growth,Communications Management,060270,Communications and Marketing,Supplies and Services,372009,Subscriptions E372,01-May-2022,000008165159668,LinkedIn 7580083333,7311,Subscriptions 372009,31.39,0.00,31.39
Regeneration Economy and Growth,Communications Management,060270,Communications and Marketing,Supplies and Services,372009,Subscriptions E372,01-May-2022,000008165159670,Google ADS8772529636,7311,Subscriptions 372009,293.87,0.00,293.87
Children and Young Peoples Services,Head of Childrens Social Care,085333,Coxhoe Satelite Home,Supplies and Services,304259,Equipment and Materials,01-May-2022,000008165159744,SP TENOR TECH LTD,5732,Equipment-purchase and rental,304.99,0.00,304.99
Children and Young Peoples Services,Head of Childrens Social Care,085333,Coxhoe Satelite Home,Supplies and Services,324117,Provisions E324,01-May-2022,000008165159746,RYMANBUSINESS.COM,5399,Catering costs - provisions,100.06,0.00,100.06
Children and Young Peoples Services,Head of Childrens Social Care,085333,Coxhoe Satelite Home,Supplies and Services,338099,Services,01-May-2022,000008165159748,WWW.HAVEN.COM,7033,Other services,770.00,0.00,770.00
Neighbourhoods and Climate Change,Environmental Services,011060,C&G - Hardwick Park Catering,Supplies and Services,324117,Provisions E324,01-May-2022,000008173895180,BATLEYS PERTH,5300,Catering costs - provisions,233.52,38.92,194.60
Neighbourhoods and Climate Change,Environmental Services,011060,C&G - Hardwick Park Catering,Supplies and Services,324117,Provisions E324,01-May-2022,000008173895180 - 1,BATLEYS PERTH,5300,Catering costs - provisions,178.61,,178.61
Regeneration Economy and Growth,Business Durham CL0850,030689,Inward Investment and Aftercare,Supplies and Services,304403,Equipment and Materials,02-May-2022,000008165158836,ADOBE CREATIVE CLOUD,5734,Other consumables,49.94,0.00,49.94
Regeneration Economy and Growth,Business Durham CL0850,030689,Inward Investment and Aftercare,Supplies and Services,336005,Advertising E336,02-May-2022,000008165158838,Google ADS6853017821,7311,Advertising other than for staff,31.90,0.00,31.90
Regeneration Economy and Growth,Culture Sport and Tourism,011298,City of Culture,Supplies and Services,384199,Miscellaneous Expenses,02-May-2022,000008165158898,AMZNMktplace,5999,Other hired and contracted services,32.94,5.49,27.45
Regeneration Economy and Growth,Culture Sport and Tourism,011298,City of Culture,Supplies and Services,384199,Miscellaneous Expenses,02-May-2022,000008165158898 - 1,AMZNMktplace,5999,Other hired and contracted services,0.03,,0.03
Regeneration Economy and Growth,Culture Sport and Tourism,030712,VCD - Project Delivery,Supplies and Services,384199,Miscellaneous Expenses,02-May-2022,000008165158908,MAILCHIMP MISC,5968,Other hired and contracted services,283.50,0.00,283.50
Children and Young Peoples Services,Head of Education and Skills,054640,Durham Learning Resources 054640,Supplies and Services,304403,Equipment and Materials,02-May-2022,000008165158970,AMZNBUSINESS 2D8F92C14,5999,Other consumables,6.76,1.13,5.63
Children and Young Peoples Services,Head of Childrens Social Care,085347,Solo Home The Manse,Supplies and Services,304403,Equipment and Materials,02-May-2022,000008165159066,AMZNMktplace,5999,Other consumables,12.99,0.00,12.99
Children and Young Peoples Services,Head of Childrens Social Care,085347,Solo Home The Manse,Supplies and Services,348037,Subsistence E348,02-May-2022,000008165159068,ZTL Catnab fish bar,5812,Subsistence,11.50,0.00,11.50
Regeneration Economy and Growth,Development and Housing,030771,Durham Advance Flexible Fund,Supplies and Services,304403,Equipment and Materials,02-May-2022,000008165159292,AMZNMKTPLACE AMAZON.CO,5999,Other consumables,66.95,0.00,66.95
Children and Young Peoples Services,Head of Childrens Social Care,085342,16 Hickstead Rise (previously 9 Cedar Ave),Employees,040149,Recruitment Instruction and Training,02-May-2022,000008165159346,SCOPE,8398,Training-all costs,5.00,0.00,5.00
Children and Young Peoples Services,Head of Childrens Social Care,085342,16 Hickstead Rise (previously 9 Cedar Ave),Supplies and Services,332047,Printing Stationery and Gen Off Exps,02-May-2022,000008165159348,RYMAN,5943,Stationery,1.49,0.00,1.49
Children and Young Peoples Services,Head of Childrens Social Care,085334,West Rainton Satelite Home,Supplies and Services,332047,Printing Stationery and Gen Off Exps,02-May-2022,000008165159388,Vue Cinemas,7832,Stationery,15.17,0.00,15.17
Children and Young Peoples Services,Head of Childrens Social Care,085363,Childrens Permanence Team,Supplies and Services,332047,Printing Stationery and Gen Off Exps,02-May-2022,000008165159402,AMZNMKTPLACE AMAZON.CO,5999,Stationery,25.99,4.33,21.66
Children and Young Peoples Services,Head of Early Help Inclusion & Vulnerable Children.,085957,Secure Management,Supplies and Services,304403,Equipment and Materials,02-May-2022,000008165159456,AMZNMKTPLACE AMAZON.CO,5999,Other consumables,12.99,2.17,10.82
Children and Young Peoples Services,Head of Childrens Social Care,085352,New Childrens Home (previously Tow Law),Supplies and Services,352001,Conference Expenses,02-May-2022,000008165159602,SLALEY HALL,7011,Conferencesseminars fees etc,254.00,0.00,254.00
Children and Young Peoples Services,Head of Childrens Social Care,085352,New Childrens Home (previously Tow Law),Supplies and Services,324117,Provisions E324,02-May-2022,000008165159604,ASDA GROCERIES ONLINE,5411,Catering costs - provisions,172.89,0.00,172.89
Children and Young Peoples Services,Head of Childrens Social Care,085332,Middlestone Moor CU,Supplies and Services,348037,Subsistence E348,02-May-2022,000008165159646,PIZZA COTTAGE,5814,Subsistence,25.30,0.00,25.30
Children and Young Peoples Services,Head of Childrens Social Care,085332,Middlestone Moor CU,Supplies and Services,324117,Provisions E324,02-May-2022,000008165159648,TESCO STORES 2967,5411,Catering costs - provisions,8.25,0.00,8.25
Children and Young Peoples Services,Head of Childrens Social Care,085551,Short Break Services-Park Hse Sher,Supplies and Services,304403,Equipment and Materials,02-May-2022,000008165159730,AMZNMktplace,5999,Other consumables,44.07,0.00,44.07
Children and Young Peoples Services,Head of Childrens Social Care,085404,COMF bid Targeted interventions for CYPS,Supplies and Services,304403,Equipment and Materials,02-May-2022,000008165159768,AMZNMktplace,5999,Other consumables,266.21,0.00,266.21
Regeneration Economy and Growth,Business Durham CL0850,030689,Inward Investment and Aftercare,Supplies and Services,342222,Computers and Communications,02-May-2022,000008169001522,FASTHOSTS,4816,Comp hardware purch-network servers,75.06,0.00,75.06
Regeneration Economy and Growth,Business Durham CL0850,030689,Inward Investment and Aftercare,Supplies and Services,342222,Computers and Communications,02-May-2022,000008169001530,FASTHOSTS,4816,Comp hardware purch-network servers,26.38,0.00,26.38
Regeneration Economy and Growth,Business Durham CL0850,030689,Inward Investment and Aftercare,Supplies and Services,342222,Computers and Communications,02-May-2022,000008169001534,FASTHOSTS,4816,Comp hardware purch-network servers,17.98,0.00,17.98
Regeneration Economy and Growth,Business Durham CL0850,030689,Inward Investment and Aftercare,Supplies and Services,342222,Computers and Communications,02-May-2022,000008169001536,FASTHOSTS,4816,Comp hardware purch-network servers,63.00,0.00,63.00
Children and Young Peoples Services,Head of Education and Skills,071801,Selby Cottage Childcare Centre,Supplies and Services,304403,Equipment and Materials,02-May-2022,000008169001550,AMZNMKTPLACE AMAZON.CO,5999,Other consumables,210.11,0.00,210.11
Regeneration Economy and Growth,Culture Sport and Tourism,011298,City of Culture,Supplies and Services,384199,Miscellaneous Expenses,02-May-2022,000008169001648,AMZNMKTPLACE AMAZON.CO,5999,Other hired and contracted services,11.98,2.00,9.98
Children and Young Peoples Services,Head of Childrens Social Care,085332,Middlestone Moor CU,Supplies and Services,324117,Provisions E324,02-May-2022,000008169001688,TESCO STORES 2371,5411,Catering costs - provisions,95.28,0.00,95.28
Children and Young Peoples Services,Head of Childrens Social Care,085332,Middlestone Moor CU,Supplies and Services,344033,Telephones,02-May-2022,000008169001838,THREE,4814,Telephones general-all costs,10.00,0.00,10.00
Children and Young Peoples Services,Head of Childrens Social Care,085332,Middlestone Moor CU,Supplies and Services,324117,Provisions E324,02-May-2022,000008169001840,LIDL GB SPENNYMOOR,5411,Catering costs - provisions,7.26,0.00,7.26
Children and Young Peoples Services,Head of Childrens Social Care,085347,Solo Home The Manse,Transport,235057,Public Transport,02-May-2022,000008169001964,N_Yorks_Moors_Car_Park,7523,Staff travelling,2.70,0.00,2.70
Children and Young Peoples Services,Head of Education and Skills,071732,Dean Bank Childcare,Supplies and Services,324117,Provisions E324,02-May-2022,000008169002016,B&M 595 - TEESBAY,5399,Catering costs - provisions,12.53,0.00,12.53
Children and Young Peoples Services,Head of Education and Skills,071732,Dean Bank Childcare,Supplies and Services,304999,Equipment and Materials,02-May-2022,000008169002020,HOME BARGAINS,5251,Misc equipment tools and materials,6.07,0.00,6.07
Children and Young Peoples Services,Head of Childrens Social Care,085342,16 Hickstead Rise (previously 9 Cedar Ave),Supplies and Services,328041,Clothing uniforms and laundry E328,02-May-2022,000008169002518,THE WORKS,5310,Clothing uniforms and laundry,5.00,0.00,5.00
Children and Young Peoples Services,Head of Childrens Social Care,085342,16 Hickstead Rise (previously 9 Cedar Ave),Supplies and Services,348037,Subsistence E348,02-May-2022,000008169002524,GREGGS,5812,Subsistence,4.85,0.00,4.85
Children and Young Peoples Services,Head of Childrens Social Care,085342,16 Hickstead Rise (previously 9 Cedar Ave),Transport,235057,Public Transport,02-May-2022,000008169002528,WALKERGATE CAR PAR,7523,Staff travelling,3.10,0.00,3.10
Children and Young Peoples Services,Head of Childrens Social Care,085342,16 Hickstead Rise (previously 9 Cedar Ave),Supplies and Services,328041,Clothing uniforms and laundry E328,02-May-2022,000008169002530,NEW LOOK 2036,5621,Clothing uniforms and laundry,27.79,0.00,27.79
Children and Young Peoples Services,Head of Childrens Social Care,085342,16 Hickstead Rise (previously 9 Cedar Ave),Supplies and Services,348037,Subsistence E348,02-May-2022,000008169002536,BILLS - DURHAM,5812,Subsistence,35.55,0.00,35.55
Children and Young Peoples Services,Head of Childrens Social Care,085334,West Rainton Satelite Home,Supplies and Services,324117,Provisions E324,02-May-2022,000008169002642,ASDA SUPERSTORE,5411,Catering costs - provisions,82.48,0.00,82.48
Children and Young Peoples Services,Head of Childrens Social Care,085333,Coxhoe Satelite Home,Supplies and Services,304259,Equipment and Materials,02-May-2022,000008169003080,GEAR4MUSIC,5733,Equipment-purchase and rental,111.48,0.00,111.48
Regeneration Economy and Growth,Corporate Property and Land,021235,Catering - Wharton Park,Supplies and Services,324117,Provisions E324,02-May-2022,000008173895200,BATLEYS PERTH,5300,Catering costs - provisions,189.00,31.50,157.50
Regeneration Economy and Growth,Corporate Property and Land,021235,Catering - Wharton Park,Supplies and Services,324117,Provisions E324,02-May-2022,000008173895200 - 1,BATLEYS PERTH,5300,Catering costs - provisions,8.66,,8.66
Regeneration Economy and Growth,Development and Housing,030776,LINKCD Flexible Fund,Supplies and Services,342053,Computers and Communications,03-May-2022,000008165159138,MENTIMETER,5045,Computer software,2.65,0.00,2.65
Neighbourhoods and Climate Change,Environmental Services,031200,North Pennines Core,Supplies and Services,348037,Subsistence E348,03-May-2022,000008165159188,TDC Adam IJhal,5814,Subsistence,0.22,0.00,0.22
Neighbourhoods and Climate Change,Environmental Services,031200,North Pennines Core,Supplies and Services,348037,Subsistence E348,03-May-2022,000008165159190,De Volkslust Amsterdam,5812,Subsistence,0.13,0.00,0.13
Neighbourhoods and Climate Change,Environmental Services,031200,North Pennines Core,Transport,235057,Public Transport,03-May-2022,000008165159192,ZTL Taxi Farhan,4121,Staff travelling,0.55,0.00,0.55
Neighbourhoods and Climate Change,Environmental Services,031200,North Pennines Core,Supplies and Services,352001,Conference Expenses,03-May-2022,000008165159194,DAMRAK SHORTSTAY AMST,7011,Conferencesseminars fees etc,0.11,0.00,0.11
Children and Young Peoples Services,Head of Childrens Social Care,085332,Middlestone Moor CU,Supplies and Services,352001,Conference Expenses,03-May-2022,000008165159588,H EXPLORERS,7011,Conferencesseminars fees etc,34.50,0.00,34.50
Regeneration Economy and Growth,Business Durham CL0850,030689,Inward Investment and Aftercare,Supplies and Services,304999,Equipment and Materials,03-May-2022,000008169001542,REV.COM,7339,Misc equipment tools and materials,4.80,0.00,4.80
Children and Young Peoples Services,Head of Education and Skills,071801,Selby Cottage Childcare Centre,Supplies and Services,324117,Provisions E324,03-May-2022,000008169001556,JR HOLLAND FOODSERVICE,5499,Catering costs - provisions,376.11,0.00,376.11
Regeneration Economy and Growth,Culture Sport and Tourism,011298,City of Culture,Supplies and Services,384199,Miscellaneous Expenses,03-May-2022,000008169001650,AMZNMktplace,5999,Other hired and contracted services,34.14,5.70,28.44
Regeneration Economy and Growth,Culture Sport and Tourism,011298,City of Culture,Supplies and Services,384199,Miscellaneous Expenses,03-May-2022,000008169001652,AMZNMktplace,5999,Other hired and contracted services,120.78,20.13,100.65
Regeneration Economy and Growth,Culture Sport and Tourism,011298,City of Culture,Supplies and Services,384199,Miscellaneous Expenses,03-May-2022,000008169001652 - 1,AMZNMktplace,5999,Other hired and contracted services,0.11,,0.11
Children and Young Peoples Services,Head of Childrens Social Care,085332,Middlestone Moor CU,Supplies and Services,324117,Provisions E324,03-May-2022,000008169001690,TESCO STORES 6329,5411,Catering costs - provisions,19.70,0.00,19.70
Children and Young Peoples Services,Head of Childrens Social Care,085334,West Rainton Satelite Home,Supplies and Services,328041,Clothing uniforms and laundry E328,03-May-2022,000008169001708,Freedom Sportsline Ltd,5661,Clothing uniforms and laundry,116.99,0.00,116.99
Children and Young Peoples Services,Head of Childrens Social Care,085334,West Rainton Satelite Home,Supplies and Services,324117,Provisions E324,03-May-2022,000008169001712,TESCO STORES 2278,5411,Catering costs - provisions,20.29,0.00,20.29
Children and Young Peoples Services,Head of Education and Skills,054640,Durham Learning Resources 054640,Supplies and Services,304403,Equipment and Materials,03-May-2022,000008169001740,AMZNBUSINESS 2D4U85ZQ4,5999,Other consumables,12.06,2.01,10.05
Children and Young Peoples Services,Head of Education and Skills,054640,Durham Learning Resources 054640,Supplies and Services,304403,Equipment and Materials,03-May-2022,000008169001740 - 1,AMZNBUSINESS 2D4U85ZQ4,5999,Other consumables,0.04,,0.04
Regeneration Economy and Growth,Development and Housing,030776,LINKCD Flexible Fund,Transport,235057,Public Transport,03-May-2022,000008169001786,WWW.GONORTHEAST.CO.UK,4111,Staff travelling,20.00,0.00,20.00
Children and Young Peoples Services,Head of Early Help Inclusion & Vulnerable Children.,088105,W/Close and Willington Family Centre,Supplies and Services,324117,Provisions E324,03-May-2022,000008169001812,ASDA GROCERIES ONLINE,5411,Catering costs - provisions,157.00,0.00,157.00
Regeneration Economy and Growth,Culture Sport and Tourism,054233,Bishop Auckland Town Hall Library,Supplies and Services,304403,Equipment and Materials,03-May-2022,000008169001820,AMZNMktplace,5999,Other consumables,6.66,1.11,5.55
Regeneration Economy and Growth,Culture Sport and Tourism,054233,Bishop Auckland Town Hall Library,Supplies and Services,304403,Equipment and Materials,03-May-2022,000008169001824,AMZNMktplace,5999,Other consumables,11.89,1.98,9.91
Regeneration Economy and Growth,Culture Sport and Tourism,054233,Bishop Auckland Town Hall Library,Supplies and Services,324117,Provisions E324,03-May-2022,000008169001828,WILKO RETAIL LIMITED,5399,Catering costs - provisions,7.50,0.00,7.50
Children and Young Peoples Services,Head of Early Help Inclusion & Vulnerable Children.,085957,Secure Management,Supplies and Services,324117,Provisions E324,03-May-2022,000008169001892,TESCO STORES 6329,5411,Catering costs - provisions,137.74,0.00,137.74
Regeneration Economy and Growth,Development and Housing,030772,CLLD South,Supplies and Services,304403,Equipment and Materials,03-May-2022,000008169001932,AMZNMKTPLACE AMAZON.CO,5999,Other consumables,85.59,14.27,71.32
Children and Young Peoples Services,Head of Childrens Social Care,085358,Orchard House Sacriston Solo Home,Supplies and Services,304403,Equipment and Materials,03-May-2022,000008169001984,AMZNMKTPLACE AMAZON.CO,5999,Other consumables,86.94,14.49,72.45
Children and Young Peoples Services,Head of Childrens Social Care,085358,Orchard House Sacriston Solo Home,Supplies and Services,304403,Equipment and Materials,03-May-2022,000008169001984 - 1,AMZNMKTPLACE AMAZON.CO,5999,Other consumables,0.03,,0.03
Children and Young Peoples Services,Head of Education and Skills,071732,Dean Bank Childcare,Supplies and Services,324117,Provisions E324,03-May-2022,000008169002024,ASDA GROCERIES ONLINE,5411,Catering costs - provisions,62.37,0.00,62.37
Regeneration Economy and Growth,Culture Sport and Tourism,011298,City of Culture,Supplies and Services,384199,Miscellaneous Expenses,03-May-2022,000008169002032,AMZNMktplace,5999,Other hired and contracted services,229.40,0.00,229.40
Children and Young Peoples Services,Head of Early Help Inclusion & Vulnerable Children.,085962,Aycliffe Secure - Durham,Supplies and Services,324117,Provisions E324,03-May-2022,000008169002064,TESCO STORES 2916,5411,Catering costs - provisions,28.50,0.00,28.50
Regeneration Economy and Growth,Business Durham CL0850,030714,Salvus House,Supplies and Services,324117,Provisions E324,03-May-2022,000008169002094,SP VENDING SUPERSTOR,5411,Catering costs - provisions,76.42,0.00,76.42
Regeneration Economy and Growth,Development and Housing,031623,Rough Sleeping,Supplies and Services,324117,Provisions E324,03-May-2022,000008169002098,ASDA SUPERSTORE,5411,Catering costs - provisions,31.00,0.00,31.00
Children and Young Peoples Services,Head of Early Help Inclusion & Vulnerable Children.,085957,Secure Management,Supplies and Services,304403,Equipment and Materials,03-May-2022,000008169002132,AMZNMKTPLACE AMAZON.CO,5999,Other consumables,29.99,5.00,24.99
Children and Young Peoples Services,Head of Early Help Inclusion & Vulnerable Children.,085957,Secure Management,Supplies and Services,304403,Equipment and Materials,03-May-2022,000008169002138,SP DRESSMEDOLLY,5734,Other consumables,25.98,0.00,25.98
Children and Young Peoples Services,Head of Early Help Inclusion & Vulnerable Children.,085957,Secure Management,Supplies and Services,304403,Equipment and Materials,03-May-2022,000008169002142,AMZNMktplace,5999,Other consumables,31.99,5.33,26.66
Children and Young Peoples Services,Head of Early Help Inclusion & Vulnerable Children.,085957,Secure Management,Supplies and Services,324117,Provisions E324,03-May-2022,000008169002146,SHEIN.COM,5399,Catering costs - provisions,44.48,0.00,44.48
Children and Young Peoples Services,Head of Early Help Inclusion & Vulnerable Children.,085957,Secure Management,Supplies and Services,342033,Computers and Communications,03-May-2022,000008169002150,VERY,5964,Computer hardware,43.99,0.00,43.99
Children and Young Peoples Services,Head of Early Help Inclusion & Vulnerable Children.,085957,Secure Management,Supplies and Services,384999,Miscellaneous Expenses,03-May-2022,000008169002158,BEAUTY OUTLET LTD,5977,Other expenses,-3.99,0.00,-3.99
Children and Young Peoples Services,Head of Education and Skills,075035,DurhamDirections Re-engagement,Supplies and Services,364301,Grants to Voluntary Organisations,03-May-2022,000008169002204,DARLINGTON BC INTERNET,9399,Hardship,11.00,0.00,11.00
Children and Young Peoples Services,Head of Childrens Social Care,085352,New Childrens Home (previously Tow Law),Supplies and Services,372009,Subscriptions E372,03-May-2022,000008169002316,Netflix Services UK Li,4899,Subscriptions 372009,13.99,0.00,13.99
Regeneration Economy and Growth,Development and Housing,030554,International Relations 030554,Supplies and Services,324117,Provisions E324,03-May-2022,000008169002380,ASDA GEORGE COM LEEDS,5411,Catering costs - provisions,24.00,0.00,24.00
Regeneration Economy and Growth,Development and Housing,030554,International Relations 030554,Supplies and Services,324117,Provisions E324,03-May-2022,000008169002384,ASDA GEORGE COM LEEDS,5411,Catering costs - provisions,106.00,0.00,106.00
Children and Young Peoples Services,Head of Childrens Social Care,085368,Children Looked After Team 5,Supplies and Services,338045,Services,03-May-2022,000008169002392,HM PASSPORT OFFICE,9399,Legal expenses 338045,49.00,0.00,49.00
Children and Young Peoples Services,Head of Childrens Social Care,085365,Children Looked After Team 2,Supplies and Services,338045,Services,03-May-2022,000008169002396,HM PASSPORT OFFICE,9399,Legal expenses 338045,49.00,0.00,49.00
Children and Young Peoples Services,Head of Childrens Social Care,085365,Children Looked After Team 2,Supplies and Services,338045,Services,03-May-2022,000008169002400,HM PASSPORT OFFICE,9399,Legal expenses 338045,49.00,0.00,49.00
Children and Young Peoples Services,Head of Childrens Social Care,085364,Children Looked After Team 1,Supplies and Services,338045,Services,03-May-2022,000008169002408,HM PASSPORT OFFICE,9399,Legal expenses 338045,49.00,0.00,49.00
Children and Young Peoples Services,Head of Childrens Social Care,085341,High Etherley Satelite Home,Supplies and Services,304999,Equipment and Materials,03-May-2022,000008169002414,HOME BARGAINS SPENNYMO,5251,Misc equipment tools and materials,2.49,0.00,2.49
Neighbourhoods and Climate Change,Environmental Services,010367,C&G - South Grounds Maintenance,Supplies and Services,304999,Equipment and Materials,03-May-2022,000008169002452,LLOYD LTD,780,Misc equipment tools and materials,296.03,0.00,296.03
Adult and Health Services,Head of Adults,055643,Hawthorn House LD Respite Unit,Supplies and Services,324117,Provisions E324,03-May-2022,000008169002492,WILKO RETAIL LIMITED,5399,Catering costs - provisions,0.90,0.00,0.90
Children and Young Peoples Services,Head of Education and Skills,071732,Dean Bank Childcare,Supplies and Services,324117,Provisions E324,03-May-2022,000008169002568,ASDA GROCERIES ONLINE,5411,Catering costs - provisions,41.01,0.00,41.01
Children and Young Peoples Services,Head of Education and Skills,071732,Dean Bank Childcare,Supplies and Services,324117,Provisions E324,03-May-2022,000008169002574,ASDA GROCERIES ONLINE,5411,Catering costs - provisions,-0.30,0.00,-0.30
Children and Young Peoples Services,Head of Early Help Inclusion & Vulnerable Children.,085957,Secure Management,Supplies and Services,304259,Equipment and Materials,03-May-2022,000008169002704,www.subtel.de,5732,Equipment-purchase and rental,52.91,0.00,52.91
Neighbourhoods and Climate Change,Environmental Services,010367,C&G - South Grounds Maintenance,Third Party Payments,430100,Rendered by Private Contractors,03-May-2022,000008169002784,SQ CATHEDRAL LOCK AND,1520,Payments to sub-contractors,35.90,5.98,29.92
Children and Young Peoples Services,Head of Childrens Social Care,085332,Middlestone Moor CU,Transport,235057,Public Transport,03-May-2022,000008169002918,ARRIVA UK BUS,4131,Staff travelling,15.00,0.00,15.00
Adult and Health Services,Head of Adults,055309,Peterlee Pathways,Supplies and Services,304259,Equipment and Materials,03-May-2022,000008169003038,CURRYS ONLINE,5732,Equipment-purchase and rental,589.00,0.00,589.00
Adult and Health Services,Head of Adults,055309,Peterlee Pathways,Supplies and Services,304259,Equipment and Materials,03-May-2022,000008169003042,CURRYS ONLINE,5732,Equipment-purchase and rental,589.00,0.00,589.00
Children and Young Peoples Services,Head of Childrens Social Care,085333,Coxhoe Satelite Home,Supplies and Services,348037,Subsistence E348,03-May-2022,000008169003088,FRANKIE & BENNYS 5186,5812,Subsistence,29.80,0.00,29.80
Children and Young Peoples Services,Head of Childrens Social Care,085333,Coxhoe Satelite Home,Supplies and Services,384999,Miscellaneous Expenses,03-May-2022,000008169003092,BODYCARE,5977,Other expenses,3.99,0.00,3.99
Children and Young Peoples Services,Head of Childrens Social Care,085333,Coxhoe Satelite Home,Supplies and Services,304403,Equipment and Materials,03-May-2022,000008169003098,CEX,5065,Other consumables,65.00,0.00,65.00
Regeneration Economy and Growth,Corporate Property and Land,010525,Catering - Green Lane,Supplies and Services,324117,Provisions E324,03-May-2022,000008169166338,JR HOLLAND FOODSERVICE,5499,Catering costs - provisions,56.51,0.00,56.51
Regeneration Economy and Growth,Corporate Property and Land,011275,Catering -Durham Leadership Centre,Supplies and Services,324117,Provisions E324,03-May-2022,000008169166340,JR HOLLAND FOODSERVICE,5499,Catering costs - provisions,89.16,0.00,89.16
Regeneration Economy and Growth,Corporate Property and Land,030691,Catering - Durham Dales Centre,Supplies and Services,324117,Provisions E324,03-May-2022,000008169166342,JR HOLLAND FOODSERVICE,5499,Catering costs - provisions,-11.99,0.00,-11.99
Adult and Health Services,Head of Adults,055643,Hawthorn House LD Respite Unit,Supplies and Services,324117,Provisions E324,03-May-2022,000008169166346,JR HOLLAND FOODSERVICE,5499,Catering costs - provisions,22.02,0.00,22.02
Regeneration Economy and Growth,Corporate Property and Land,021234,Catering - Locomotion,Supplies and Services,384999,Miscellaneous Expenses,03-May-2022,000008169166350,ON A ROLL SANDWICH COM,5199,Other expenses,93.19,0.00,93.19
Regeneration Economy and Growth,Corporate Property and Land,021234,Catering - Locomotion,Supplies and Services,324117,Provisions E324,03-May-2022,000008169166354,JR HOLLAND FOODSERVICE,5499,Catering costs - provisions,-9.44,0.00,-9.44
Regeneration Economy and Growth,Corporate Property and Land,021235,Catering - Wharton Park,Supplies and Services,384999,Miscellaneous Expenses,03-May-2022,000008169166358,ON A ROLL SANDWICH COM,5199,Other expenses,109.74,0.00,109.74
Regeneration Economy and Growth,Corporate Property and Land,021235,Catering - Wharton Park,Supplies and Services,324117,Provisions E324,03-May-2022,000008169166362,JR HOLLAND FOODSERVICE,5499,Catering costs - provisions,-9.80,0.00,-9.80
Regeneration Economy and Growth,Culture Sport and Tourism,011263,Louisa Centre 011263,Supplies and Services,324117,Provisions E324,03-May-2022,000008169166366,JR HOLLAND FOODSERVICE,5499,Catering costs - provisions,31.47,0.00,31.47
Regeneration Economy and Growth,Culture Sport and Tourism,054812,Gala Theatre - Catering etc,Supplies and Services,324117,Provisions E324,03-May-2022,000008169166368,JR HOLLAND FOODSERVICE,5499,Catering costs - provisions,35.75,0.00,35.75
Children and Young Peoples Services,Head of Childrens Social Care,085341,High Etherley Satelite Home,Supplies and Services,304259,Equipment and Materials,03-May-2022,000008173737286,SPENNYMOOR LEISURE,9399,Equipment-purchase and rental,5.60,0.00,5.60
Regeneration Economy and Growth,Culture Sport and Tourism,030705,Visit County Durham 030705,Supplies and Services,304259,Equipment and Materials,03-May-2022,000008173737466,FASTHOSTS,4816,Equipment-purchase and rental,7.54,0.00,7.54
Children and Young Peoples Services,Head of Childrens Social Care,085332,Middlestone Moor CU,Supplies and Services,304999,Equipment and Materials,03-May-2022,000008173737510,HOMEBASE LTD 822,5200,Misc equipment tools and materials,15.00,0.00,15.00
Children and Young Peoples Services,Head of Education and Skills,054640,Durham Learning Resources 054640,Supplies and Services,304403,Equipment and Materials,03-May-2022,000008173737594,AMZNBUSINESS 2D4B41NM4,5999,Other consumables,95.94,0.00,95.94
Children and Young Peoples Services,Head of Childrens Social Care,085347,Solo Home The Manse,Supplies and Services,324117,Provisions E324,03-May-2022,000008173737796,SAINSBURYS S/MKTS,5411,Catering costs - provisions,13.64,0.00,13.64
Children and Young Peoples Services,Head of Childrens Social Care,085342,16 Hickstead Rise (previously 9 Cedar Ave),Supplies and Services,348037,Subsistence E348,03-May-2022,000008173737866,MCDONALDS,5814,Subsistence,7.45,0.00,7.45
Children and Young Peoples Services,Head of Education and Skills,071732,Dean Bank Childcare,Supplies and Services,324117,Provisions E324,03-May-2022,000008173737880,SAINSBURYS S/MKTS,5411,Catering costs - provisions,14.49,0.00,14.49
Children and Young Peoples Services,Head of Early Help Inclusion & Vulnerable Children.,085962,Aycliffe Secure - Durham,Supplies and Services,348037,Subsistence E348,03-May-2022,000008173737920,MCDONALDS,5814,Subsistence,24.46,0.00,24.46
Children and Young Peoples Services,Head of Childrens Social Care,085364,Children Looked After Team 1,Supplies and Services,304259,Equipment and Materials,03-May-2022,000008173738020,Durham County CNCL,9399,Equipment-purchase and rental,11.00,0.00,11.00
Children and Young Peoples Services,Head of Early Help Inclusion & Vulnerable Children.,085957,Secure Management,Supplies and Services,328041,Clothing uniforms and laundry E328,03-May-2022,000008173738046,www.asos.com,5691,Clothing uniforms and laundry,29.95,0.00,29.95
Children and Young Peoples Services,Head of Early Help Inclusion & Vulnerable Children.,085957,Secure Management,Supplies and Services,304259,Equipment and Materials,03-May-2022,000008173738048,JD SPORTS INTERNET,5941,Equipment-purchase and rental,95.00,0.00,95.00
Children and Young Peoples Services,Head of Early Help Inclusion & Vulnerable Children.,085957,Secure Management,Supplies and Services,304403,Equipment and Materials,03-May-2022,000008173738054,AMZNMKTPLACE AMAZON.CO,5999,Other consumables,5.99,1.00,4.99
Children and Young Peoples Services,Head of Childrens Social Care,085352,New Childrens Home (previously Tow Law),Supplies and Services,304403,Equipment and Materials,03-May-2022,000008173738394,AMZNBUSINESS 2D6AZ8NY4,5999,Other consumables,21.99,3.67,18.32
Regeneration Economy and Growth,Development and Housing,030554,International Relations 030554,Supplies and Services,324117,Provisions E324,03-May-2022,000008173738430,TU AT SAINSBURYS,5411,Catering costs - provisions,374.00,0.00,374.00
Regeneration Economy and Growth,Development and Housing,030554,International Relations 030554,Supplies and Services,324117,Provisions E324,03-May-2022,000008173738436,TU AT SAINSBURYS,5411,Catering costs - provisions,95.00,0.00,95.00
Children and Young Peoples Services,Head of Childrens Social Care,085365,Children Looked After Team 2,Supplies and Services,338045,Services,03-May-2022,000008173738464,GEN REGISTER OFFICE,9399,Legal expenses 338045,11.00,0.00,11.00
Regeneration Economy and Growth,Development and Housing,030776,LINKCD Flexible Fund,Supplies and Services,348037,Subsistence E348,03-May-2022,000008173738610,DUKE OF WELLINGTON,5812,Subsistence,2.39,0.00,2.39
Neighbourhoods and Climate Change,Environmental Services,031233,North Pennines - Pennine Peatlife,Transport,235057,Public Transport,03-May-2022,000008173738700,ROYAL DUTCH AIRLINES (KLM),3010,Staff travelling,451.99,0.00,451.99
Children and Young Peoples Services,Head of Early Help Inclusion & Vulnerable Children.,088115,Young Parents Programme 088115,Supplies and Services,384302,Miscellaneous Expenses,03-May-2022,000008173738822,SAFETYSUPPL,5311,Activity expenses,78.30,0.00,78.30
Children and Young Peoples Services,Head of Childrens Social Care,085633,Families First Chester-Le-Street,Supplies and Services,338045,Services,03-May-2022,000008173739168,WWW.DURHAM.GOV.UK,9399,Legal expenses 338045,11.00,0.00,11.00
Children and Young Peoples Services,Head of Childrens Social Care,085633,Families First Chester-Le-Street,Supplies and Services,338045,Services,03-May-2022,000008173739172,WWW.DURHAM.GOV.UK,9399,Legal expenses 338045,11.00,0.00,11.00
Children and Young Peoples Services,Head of Childrens Social Care,085633,Families First Chester-Le-Street,Supplies and Services,338045,Services,03-May-2022,000008173739178,WWW.DURHAM.GOV.UK,9399,Legal expenses 338045,11.00,0.00,11.00
Children and Young Peoples Services,Head of Childrens Social Care,085633,Families First Chester-Le-Street,Supplies and Services,338045,Services,03-May-2022,000008173739188,WWW.DURHAM.GOV.UK,9399,Legal expenses 338045,11.00,0.00,11.00
Regeneration Economy and Growth,Culture Sport and Tourism,054233,Bishop Auckland Town Hall Library,Supplies and Services,324117,Provisions E324,03-May-2022,000008173739368,WM MORRISONS STORE,5411,Catering costs - provisions,67.15,0.00,67.15
Children and Young Peoples Services,Head of Childrens Social Care,085334,West Rainton Satelite Home,Transport,215995,Running Costs of Vehicles,03-May-2022,000008173739438,GULF WEST RAINTON,5541,Vehicle running expenses,3.10,0.00,3.10
Children and Young Peoples Services,Head of Childrens Social Care,085333,Coxhoe Satelite Home,Supplies and Services,328041,Clothing uniforms and laundry E328,03-May-2022,000008173739608,POUNDLAND LTD 1037,5310,Clothing uniforms and laundry,1.75,0.00,1.75
Children and Young Peoples Services,Head of Childrens Social Care,085333,Coxhoe Satelite Home,Supplies and Services,328041,Clothing uniforms and laundry E328,03-May-2022,000008173739618,PRIMARK 670 GATESHEAD,5651,Clothing uniforms and laundry,58.80,0.00,58.80
Children and Young Peoples Services,Head of Childrens Social Care,085333,Coxhoe Satelite Home,Supplies and Services,328041,Clothing uniforms and laundry E328,03-May-2022,000008173739624,PRIMARK 670 GATESHEAD,5651,Clothing uniforms and laundry,13.00,0.00,13.00
Regeneration Economy and Growth,Corporate Property and Land,030691,Catering - Durham Dales Centre,Supplies and Services,384999,Miscellaneous Expenses,03-May-2022,000008173895156,G M PACKAGING UK LIMIT,5046,Other expenses,20.34,0.00,20.34
Regeneration Economy and Growth,Corporate Property and Land,030691,Catering - Durham Dales Centre,Supplies and Services,324117,Provisions E324,03-May-2022,000008173895158,BATLEYS PERTH,5300,Catering costs - provisions,42.12,7.02,35.10
Regeneration Economy and Growth,Corporate Property and Land,030691,Catering - Durham Dales Centre,Supplies and Services,324117,Provisions E324,03-May-2022,000008173895158 - 1,BATLEYS PERTH,5300,Catering costs - provisions,103.27,,103.27
Regeneration Economy and Growth,Corporate Property and Land,021234,Catering - Locomotion,Supplies and Services,324117,Provisions E324,03-May-2022,000008173895194,BATLEYS PERTH,5300,Catering costs - provisions,144.48,24.08,120.40
Regeneration Economy and Growth,Corporate Property and Land,021234,Catering - Locomotion,Supplies and Services,324117,Provisions E324,03-May-2022,000008173895194 - 1,BATLEYS PERTH,5300,Catering costs - provisions,27.48,,27.48
Children and Young Peoples Services,Head of Childrens Social Care,085501,Child Care Cases Legal Expenses,Supplies and Services,304403,Equipment and Materials,03-May-2022,000010060991059,SUNDERLAND CC,7523,Other consumables,11.00,0.00,11.00
Regeneration Economy and Growth,Corporate Property and Land,020073,Bldg Serv - R&M Div 73 - Gas Servicing,Supplies and Services,372009,Subscriptions E372,03-May-2022,000010060993355,CAPITA GAS,8699,Subscriptions 372009,63.60,10.60,53.00
Regeneration Economy and Growth,Business Durham CL0850,030689,Inward Investment and Aftercare,Supplies and Services,304999,Equipment and Materials,04-May-2022,000008169001544,REV.COM,7339,Misc equipment tools and materials,0.13,0.00,0.13
Children and Young Peoples Services,Head of Childrens Social Care,085341,High Etherley Satelite Home,Supplies and Services,324117,Provisions E324,04-May-2022,000008173737296,TESCO STORES 6329,5411,Catering costs - provisions,49.00,0.00,49.00
Children and Young Peoples Services,Head of Childrens Social Care,085341,High Etherley Satelite Home,Supplies and Services,324117,Provisions E324,04-May-2022,000008173737298,TESCO STORES 6329,5411,Catering costs - provisions,2.00,0.00,2.00
Children and Young Peoples Services,Head of Childrens Social Care,085612,Families First Consett,Supplies and Services,364301,Grants to Voluntary Organisations,04-May-2022,000008173737306,AMZNMKTPLACE AMAZON.CO,5999,Hardship,175.99,29.33,146.66
Children and Young Peoples Services,Head of Education and Skills,071801,Selby Cottage Childcare Centre,Supplies and Services,324117,Provisions E324,04-May-2022,000008173737314,WILKO RETAIL LIMITED,5399,Catering costs - provisions,9.90,0.00,9.90
Children and Young Peoples Services,Head of Education and Skills,071801,Selby Cottage Childcare Centre,Supplies and Services,324117,Provisions E324,04-May-2022,000008173737318,ASDA SUPERSTORE,5411,Catering costs - provisions,22.28,0.00,22.28
Children and Young Peoples Services,Head of Education and Skills,071801,Selby Cottage Childcare Centre,Supplies and Services,324117,Provisions E324,04-May-2022,000008173737320,TESCO STORES 2278,5411,Catering costs - provisions,17.60,0.00,17.60
Children and Young Peoples Services,Head of Childrens Social Care,085501,Child Care Cases Legal Expenses,Supplies and Services,304403,Equipment and Materials,04-May-2022,000008173737388,DARLINGTON BC INTERNET,9399,Other consumables,11.00,0.00,11.00
Children and Young Peoples Services,Head of Education and Skills,075035,DurhamDirections Re-engagement,Supplies and Services,364301,Grants to Voluntary Organisations,04-May-2022,000008173737414,WWW.GONORTHEAST.CO.UK,4111,Hardship,5.30,0.00,5.30
Children and Young Peoples Services,Head of Education and Skills,075035,DurhamDirections Re-engagement,Supplies and Services,364301,Grants to Voluntary Organisations,04-May-2022,000008173737422,WWW.GONORTHEAST.CO.UK,4111,Hardship,4.00,0.00,4.00
Regeneration Economy and Growth,Culture Sport and Tourism,054302,Cornforth Library,Supplies and Services,304252,Equipment and Materials,04-May-2022,000008173737450,BAKER ROSS,5970,Equipment-repairsserviceinsurance,487.25,81.21,406.04
Regeneration Economy and Growth,Culture Sport and Tourism,011298,City of Culture,Supplies and Services,384199,Miscellaneous Expenses,04-May-2022,000008173737454,AMZNMktplace,5999,Other hired and contracted services,21.98,3.66,18.32
Regeneration Economy and Growth,Culture Sport and Tourism,030712,VCD - Project Delivery,Supplies and Services,384199,Miscellaneous Expenses,04-May-2022,000008173737474,FS myadvent,5817,Other hired and contracted services,103.39,0.00,103.39
Regeneration Economy and Growth,Culture Sport and Tourism,030712,VCD - Project Delivery,Supplies and Services,384199,Miscellaneous Expenses,04-May-2022,000008173737482,FACEBK 6VZHTD3RH2,7311,Other hired and contracted services,34.38,0.00,34.38
Regeneration Economy and Growth,Culture Sport and Tourism,030712,VCD - Project Delivery,Supplies and Services,384199,Miscellaneous Expenses,04-May-2022,000008173737488,EB DURHAM CASTLE-GUID,7399,Other hired and contracted services,10.00,0.00,10.00
Children and Young Peoples Services,Head of Childrens Social Care,085342,16 Hickstead Rise (previously 9 Cedar Ave),Supplies and Services,324117,Provisions E324,04-May-2022,000008173737496,TESCO STORES 2916,5411,Catering costs - provisions,108.12,0.00,108.12
Children and Young Peoples Services,Head of Childrens Social Care,085342,16 Hickstead Rise (previously 9 Cedar Ave),Supplies and Services,324117,Provisions E324,04-May-2022,000008173737502,TESCO STORES 2916,5411,Catering costs - provisions,12.00,0.00,12.00
Children and Young Peoples Services,Head of Childrens Social Care,085332,Middlestone Moor CU,Supplies and Services,304999,Equipment and Materials,04-May-2022,000008173737514,eBay O 05-08590-25840,5311,Misc equipment tools and materials,41.80,0.00,41.80
Children and Young Peoples Services,Head of Childrens Social Care,085332,Middlestone Moor CU,Supplies and Services,304999,Equipment and Materials,04-May-2022,000008173737518,WILKO RETAIL LIMITED,5399,Misc equipment tools and materials,12.50,0.00,12.50
Children and Young Peoples Services,Head of Childrens Social Care,085332,Middlestone Moor CU,Supplies and Services,324117,Provisions E324,04-May-2022,000008173737522,TESCO STORES 2371,5411,Catering costs - provisions,165.40,0.00,165.40
Children and Young Peoples Services,Head of Childrens Social Care,085334,West Rainton Satelite Home,Supplies and Services,324117,Provisions E324,04-May-2022,000008173737570,TESCO STORES 2371,5411,Catering costs - provisions,34.51,0.00,34.51
Children and Young Peoples Services,Head of Childrens Social Care,085624,Families First West Auckland and Teesdale,Supplies and Services,338045,Services,04-May-2022,000008173737686,SHEFFIELD CITY CNC,9399,Legal expenses 338045,12.00,0.00,12.00
Children and Young Peoples Services,Head of Childrens Social Care,085624,Families First West Auckland and Teesdale,Supplies and Services,338045,Services,04-May-2022,000008173737690,SHEFFIELD CITY CNC,9399,Legal expenses 338045,12.00,0.00,12.00
Regeneration Economy and Growth,Culture Sport and Tourism,054233,Bishop Auckland Town Hall Library,Supplies and Services,304403,Equipment and Materials,04-May-2022,000008173737698,AMZNBusiness 2D3BH6TG4,5999,Other consumables,44.00,7.33,36.67
Children and Young Peoples Services,Head of Early Help Inclusion & Vulnerable Children.,085957,Secure Management,Supplies and Services,324117,Provisions E324,04-May-2022,000008173737768,TESCO STORES 6329,5411,Catering costs - provisions,71.90,0.00,71.90
Children and Young Peoples Services,Head of Early Help Inclusion & Vulnerable Children.,085957,Secure Management,Supplies and Services,324117,Provisions E324,04-May-2022,000008173737772,SP ISAWITFIRST.COM,5399,Catering costs - provisions,-18.00,0.00,-18.00
Children and Young Peoples Services,Head of Childrens Social Care,085347,Solo Home The Manse,Supplies and Services,348037,Subsistence E348,04-May-2022,000008173737802,iZ Minchella Co,5812,Subsistence,12.55,0.00,12.55
Children and Young Peoples Services,Head of Childrens Social Care,085347,Solo Home The Manse,Supplies and Services,324117,Provisions E324,04-May-2022,000008173737804,TESCO STORES 2371,5411,Catering costs - provisions,158.44,0.00,158.44
Children and Young Peoples Services,Head of Childrens Social Care,085364,Children Looked After Team 1,Supplies and Services,304259,Equipment and Materials,04-May-2022,000008173738030,DARLINGTON BC INTERNET,9399,Equipment-purchase and rental,11.00,0.00,11.00
Children and Young Peoples Services,Head of Early Help Inclusion & Vulnerable Children.,085957,Secure Management,Supplies and Services,304403,Equipment and Materials,04-May-2022,000008173738060,CEX LTD,5065,Other consumables,5.90,0.00,5.90
Children and Young Peoples Services,Head of Early Help Inclusion & Vulnerable Children.,085957,Secure Management,Supplies and Services,304999,Equipment and Materials,04-May-2022,000008173738064,BOOTS UK ECOMM,5912,Misc equipment tools and materials,21.61,0.00,21.61
Children and Young Peoples Services,Head of Early Help Inclusion & Vulnerable Children.,085957,Secure Management,Supplies and Services,342033,Computers and Communications,04-May-2022,000008173738070,VERY,5964,Computer hardware,16.99,0.00,16.99
Children and Young Peoples Services,Head of Education and Skills,070169,Durham SSP,Supplies and Services,304403,Equipment and Materials,04-May-2022,000008173738088,AMZNMktplace,5999,Other consumables,51.86,0.00,51.86
Neighbourhoods and Climate Change,Environmental Services,010367,C&G - South Grounds Maintenance,Supplies and Services,304221,Equipment and Materials,04-May-2022,000008173738098,Horns garden centre,5261,Direct materials,73.95,0.00,73.95
Neighbourhoods and Climate Change,Environmental Services,031228,North Pennines - Fellfoot Forward,Supplies and Services,324117,Provisions E324,04-May-2022,000008173738118,HALLBANKGATE HUB LIMIT,5411,Catering costs - provisions,2.25,0.00,2.25
Children and Young Peoples Services,Head of Education and Skills,075035,DurhamDirections Re-engagement,Supplies and Services,364301,Grants to Voluntary Organisations,04-May-2022,000008173738168,SPORTSDIRECT.COM,5691,Hardship,27.99,0.00,27.99
Resources BK0010,HR & Employee Services,010984,Training and Development,Employees,040149,Recruitment Instruction and Training,04-May-2022,000008173738180,GATESHEAD COLLEGE,8299,Training-all costs,155.00,0.00,155.00
Neighbourhoods and Climate Change,Environmental Services,031238,North Pennines - Tees Swale,Supplies and Services,304403,Equipment and Materials,04-May-2022,000008173738196,AMZNMktplace,5999,Other consumables,6.49,1.08,5.41
Children and Young Peoples Services,Head of Childrens Social Care,085331,New Lea Childrens Home,Supplies and Services,304999,Equipment and Materials,04-May-2022,000008173738242,HOME BARGAINS,5251,Misc equipment tools and materials,39.22,0.00,39.22
Children and Young Peoples Services,Head of Childrens Social Care,085331,New Lea Childrens Home,Supplies and Services,324117,Provisions E324,04-May-2022,000008173738250,STARBUCKS CONSETT,5499,Catering costs - provisions,14.60,0.00,14.60
Children and Young Peoples Services,Head of Childrens Social Care,085364,Children Looked After Team 1,Supplies and Services,340001,Postages E340,04-May-2022,000008173738444,POST OFFICE COUNTER,9402,Postages,4.53,0.00,4.53
Children and Young Peoples Services,Head of Childrens Social Care,085364,Children Looked After Team 1,Supplies and Services,340001,Postages E340,04-May-2022,000008173738452,POST OFFICE COUNTER,9402,Postages,4.90,0.00,4.90
Children and Young Peoples Services,Head of Childrens Social Care,085365,Children Looked After Team 2,Supplies and Services,338045,Services,04-May-2022,000008173738456,HM PASSPORT OFFICE,9399,Legal expenses 338045,26.00,0.00,26.00
Children and Young Peoples Services,Head of Childrens Social Care,085341,High Etherley Satelite Home,Supplies and Services,348037,Subsistence E348,04-May-2022,000008173738498,WYNNS CATERING,5814,Subsistence,5.00,0.00,5.00
Children and Young Peoples Services,Head of Education and Skills,071802,Louisa Cent Nursery,Supplies and Services,304403,Equipment and Materials,04-May-2022,000008173738600,AMZ Amazon.co.uk,5999,Other consumables,-134.99,-22.50,-112.49
Neighbourhoods and Climate Change,Environmental Services,031239,North Pennines - Carbon Connect,Supplies and Services,304999,Equipment and Materials,04-May-2022,000008173738712,SUPERDRUG STORES PLC,5912,Misc equipment tools and materials,14.97,0.00,14.97
Children and Young Peoples Services,Head of Education and Skills,078100,Curric and Professional Development 078100,Supplies and Services,304403,Equipment and Materials,04-May-2022,000008173738762,AMZNBusiness 2D9B31TW4,5999,Other consumables,11.55,0.00,11.55
Children and Young Peoples Services,Head of Childrens Social Care,085331,New Lea Childrens Home,Supplies and Services,328041,Clothing uniforms and laundry E328,04-May-2022,000008173738782,ROF59,7996,Clothing uniforms and laundry,17.00,0.00,17.00
Children and Young Peoples Services,Head of Early Help Inclusion & Vulnerable Children.,088115,Young Parents Programme 088115,Supplies and Services,384302,Miscellaneous Expenses,04-May-2022,000008173738836,AMZNMKTPLACE AMAZON.CO,5999,Activity expenses,25.90,4.32,21.58
Children and Young Peoples Services,Head of Early Help Inclusion & Vulnerable Children.,088115,Young Parents Programme 088115,Supplies and Services,384302,Miscellaneous Expenses,04-May-2022,000008173738846,AMZNMKTPLACE AMAZON.CO,5999,Activity expenses,4.35,0.73,3.62
Children and Young Peoples Services,Head of Early Help Inclusion & Vulnerable Children.,088115,Young Parents Programme 088115,Supplies and Services,384302,Miscellaneous Expenses,04-May-2022,000008173738852,AMZNMKTPLACE AMAZON.CO,5999,Activity expenses,21.98,3.66,18.32
Children and Young Peoples Services,Head of Early Help Inclusion & Vulnerable Children.,088115,Young Parents Programme 088115,Supplies and Services,384302,Miscellaneous Expenses,04-May-2022,000008173738860,SP TICKIT,5399,Activity expenses,11.99,0.00,11.99
Children and Young Peoples Services,Head of Early Help Inclusion & Vulnerable Children.,088115,Young Parents Programme 088115,Supplies and Services,384302,Miscellaneous Expenses,04-May-2022,000008173738868,AMZNMktplace,5999,Activity expenses,41.94,7.02,34.92
Children and Young Peoples Services,Head of Early Help Inclusion & Vulnerable Children.,088115,Young Parents Programme 088115,Supplies and Services,384302,Miscellaneous Expenses,04-May-2022,000008173738872,AMZNMktplace,5999,Activity expenses,90.93,15.19,75.74
Children and Young Peoples Services,Head of Early Help Inclusion & Vulnerable Children.,088115,Young Parents Programme 088115,Supplies and Services,384302,Miscellaneous Expenses,04-May-2022,000008173738880,WILKO.COM,5399,Activity expenses,41.45,0.00,41.45
Children and Young Peoples Services,Head of Early Help Inclusion & Vulnerable Children.,088115,Young Parents Programme 088115,Supplies and Services,384302,Miscellaneous Expenses,04-May-2022,000008173738888,WILKO.COM,5399,Activity expenses,139.30,0.00,139.30
Children and Young Peoples Services,Head of Early Help Inclusion & Vulnerable Children.,088115,Young Parents Programme 088115,Supplies and Services,384302,Miscellaneous Expenses,04-May-2022,000008173738892,SENSORY DIRECT,5945,Activity expenses,16.55,0.00,16.55
Children and Young Peoples Services,Head of Early Help Inclusion & Vulnerable Children.,085957,Secure Management,Supplies and Services,372009,Subscriptions E372,04-May-2022,000008173738986,HACHETTEPARTWORKS,2741,Subscriptions 372009,39.96,0.00,39.96
Children and Young Peoples Services,Head of Childrens Social Care,085379,Care Leavers Team 2,Supplies and Services,364340,Grants to Voluntary Organisations,04-May-2022,000008173739022,EMAP UK,5734,Contact expenses,50.00,0.00,50.00
Neighbourhoods and Climate Change,Community Protection,010809,Community Protection Management,Supplies and Services,304259,Equipment and Materials,04-May-2022,000008173739068,PAYPAL 3DZ 3DZ,5732,Equipment-purchase and rental,90.00,0.00,90.00
Regeneration Economy and Growth,Culture Sport and Tourism,054233,Bishop Auckland Town Hall Library,Supplies and Services,324117,Provisions E324,04-May-2022,000008173739378,HERON FOODS,5411,Catering costs - provisions,2.00,0.00,2.00
Children and Young Peoples Services,Head of Childrens Social Care,085331,New Lea Childrens Home,Supplies and Services,328041,Clothing uniforms and laundry E328,04-May-2022,000008173739424,NEW LOOK 1744,5621,Clothing uniforms and laundry,10.49,0.00,10.49
Children and Young Peoples Services,Head of Childrens Social Care,085331,New Lea Childrens Home,Supplies and Services,304999,Equipment and Materials,04-May-2022,000008173739428,SAVERS HEALTH & BEAUTY,5912,Misc equipment tools and materials,18.94,0.00,18.94
Adult and Health Services,Head of Adults,055309,Peterlee Pathways,Supplies and Services,304403,Equipment and Materials,04-May-2022,000008173739520,AMZNMktplace,5999,Other consumables,19.98,3.34,16.64
Children and Young Peoples Services,Head of Childrens Social Care,085551,Short Break Services-Park Hse Sher,Supplies and Services,332047,Printing Stationery and Gen Off Exps,04-May-2022,000008173739556,VIKING UK,5111,Stationery,179.98,0.00,179.98
Children and Young Peoples Services,Head of Early Help Inclusion & Vulnerable Children.,088113,Seaham & Laurel Avenue Family Centre,Supplies and Services,324117,Provisions E324,04-May-2022,000008173739632,B&M 681 - DURHAM,5399,Catering costs - provisions,70.89,0.00,70.89
Regeneration Economy and Growth,Business Durham CL0850,030694,Plexus 2,Supplies and Services,304403,Equipment and Materials,04-May-2022,000008173739674,AMZNMktplace,5999,Other consumables,51.02,0.00,51.02
Regeneration Economy and Growth,Business Durham CL0850,030694,Plexus 2,Supplies and Services,304403,Equipment and Materials,04-May-2022,000008173739678,AMZNMKTPLACE AMAZON.CO,5999,Other consumables,9.25,0.00,9.25
Regeneration Economy and Growth,Corporate Property and Land,030691,Catering - Durham Dales Centre,Supplies and Services,324117,Provisions E324,04-May-2022,000008173739688,TESCO STORES 6329,5411,Catering costs - provisions,10.38,0.00,10.38
Children and Young Peoples Services,Head of Early Help Inclusion & Vulnerable Children.,088113,Seaham & Laurel Avenue Family Centre,Supplies and Services,304403,Equipment and Materials,04-May-2022,000008173739698,AMZNMktplace,5999,Other consumables,45.09,0.00,45.09
Regeneration Economy and Growth,Corporate Property and Land,011275,Catering -Durham Leadership Centre,Supplies and Services,324117,Provisions E324,04-May-2022,000008173895142,JR HOLLAND FOODSERVICE,5499,Catering costs - provisions,4.14,0.00,4.14
Regeneration Economy and Growth,Corporate Property and Land,011275,Catering -Durham Leadership Centre,Supplies and Services,324117,Provisions E324,04-May-2022,000008173895146,JR HOLLAND FOODSERVICE,5499,Catering costs - provisions,-37.26,0.00,-37.26
Regeneration Economy and Growth,Culture Sport and Tourism,011265,Empire Theatre (Operations),Supplies and Services,324117,Provisions E324,04-May-2022,000008173895148,JR HOLLAND FOODSERVICE,5499,Catering costs - provisions,24.28,0.00,24.28
Regeneration Economy and Growth,Corporate Property and Land,011296,Catering - Crimdon Dene Hub,Supplies and Services,324117,Provisions E324,04-May-2022,000008173895152,JR HOLLAND FOODSERVICE,5499,Catering costs - provisions,-28.98,0.00,-28.98
Regeneration Economy and Growth,Corporate Property and Land,030691,Catering - Durham Dales Centre,Supplies and Services,324117,Provisions E324,04-May-2022,000008173895164,JR HOLLAND FOODSERVICE,5499,Catering costs - provisions,137.40,0.00,137.40
Adult and Health Services,Head of Adults,055643,Hawthorn House LD Respite Unit,Supplies and Services,324117,Provisions E324,04-May-2022,000008173895174,JR HOLLAND FOODSERVICE,5499,Catering costs - provisions,6.41,0.00,6.41
Adult and Health Services,Head of Adults,055643,Hawthorn House LD Respite Unit,Supplies and Services,324117,Provisions E324,04-May-2022,000008173895176,JR HOLLAND FOODSERVICE,5499,Catering costs - provisions,12.59,0.00,12.59
Regeneration Economy and Growth,Corporate Property and Land,021234,Catering - Locomotion,Supplies and Services,324117,Provisions E324,04-May-2022,000008173895198,JR HOLLAND FOODSERVICE,5499,Catering costs - provisions,34.25,0.00,34.25
Regeneration Economy and Growth,Corporate Property and Land,021235,Catering - Wharton Park,Supplies and Services,324117,Provisions E324,04-May-2022,000008173895204,JR HOLLAND FOODSERVICE,5499,Catering costs - provisions,21.92,0.00,21.92
Regeneration Economy and Growth,Culture Sport and Tourism,054812,Gala Theatre - Catering etc,Supplies and Services,324117,Provisions E324,04-May-2022,000008173895208,JR HOLLAND FOODSERVICE,5499,Catering costs - provisions,10.99,0.00,10.99
Regeneration Economy and Growth,Corporate Property and Land,021242,Catering - County Hall,Supplies and Services,324117,Provisions E324,04-May-2022,000008173895212,JR HOLLAND FOODSERVICE,5499,Catering costs - provisions,49.44,0.00,49.44
Regeneration Economy and Growth,Corporate Property and Land,021242,Catering - County Hall,Supplies and Services,324117,Provisions E324,04-May-2022,000008173895214,JR HOLLAND FOODSERVICE,5499,Catering costs - provisions,216.04,0.00,216.04
Regeneration Economy and Growth,Corporate Property and Land,021242,Catering - County Hall,Supplies and Services,324117,Provisions E324,04-May-2022,000008173895216,JR HOLLAND FOODSERVICE,5499,Catering costs - provisions,12.56,0.00,12.56
Regeneration Economy and Growth,Business Durham CL0850,030689,Inward Investment and Aftercare,Supplies and Services,342222,Computers and Communications,04-May-2022,000008178920742,FASTHOSTS,4816,Comp hardware purch-network servers,7.54,0.00,7.54
Children and Young Peoples Services,Head of Childrens Social Care,085341,High Etherley Satelite Home,Supplies and Services,324117,Provisions E324,04-May-2022,000008178920748,SAINSBURYS S/MKTS,5411,Catering costs - provisions,3.00,0.00,3.00
Dedicated Schools Grant BG0015,DSG Schools Block,417606,Greenfield Community College 004176 - Visual Arts,Supplies and Services,304403,Equipment and Materials,04-May-2022,000008178920796,WWW.PRIZMAGRAPHICS,5943,Other consumables,119.34,19.89,99.45
Regeneration Economy and Growth,Culture Sport and Tourism,011298,City of Culture,Supplies and Services,384199,Miscellaneous Expenses,04-May-2022,000008178920886,AMZNMKTPLACE AMAZON.CO,5999,Other hired and contracted services,21.98,3.66,18.32
Children and Young Peoples Services,Head of Childrens Social Care,085334,West Rainton Satelite Home,Supplies and Services,372009,Subscriptions E372,04-May-2022,000008178920916,SKY SUBSCRIPTION,4899,Subscriptions 372009,10.00,0.00,10.00
Neighbourhoods and Climate Change,Environmental Services,010367,C&G - South Grounds Maintenance,Supplies and Services,304221,Equipment and Materials,04-May-2022,000008178921012,WWW.SCREWFIX.COM,5211,Direct materials,43.96,7.33,36.63
Children and Young Peoples Services,Head of Childrens Social Care,085380,Operations Manager LAC Resources,Supplies and Services,328041,Clothing uniforms and laundry E328,04-May-2022,000008178921068,ARGOS LTD,5310,Clothing uniforms and laundry,-4.95,0.00,-4.95
Regeneration Economy and Growth,Development and Housing,030772,CLLD South,Supplies and Services,304259,Equipment and Materials,04-May-2022,000008178921200,DVLA DRIVER ONLINE,9399,Equipment-purchase and rental,34.00,0.00,34.00
Children and Young Peoples Services,Head of Education and Skills,071732,Dean Bank Childcare,Supplies and Services,324117,Provisions E324,04-May-2022,000008178921282,Wm Morrisons Store Pic,5411,Catering costs - provisions,8.00,0.00,8.00
Children and Young Peoples Services,Head of Childrens Social Care,085364,Children Looked After Team 1,Supplies and Services,328041,Clothing uniforms and laundry E328,04-May-2022,000008178921432,ARGOS LTD,5310,Clothing uniforms and laundry,35.99,0.00,35.99
Children and Young Peoples Services,Head of Early Help Inclusion & Vulnerable Children.,085957,Secure Management,Supplies and Services,304403,Equipment and Materials,04-May-2022,000008178921440,AMZNMKTPLACE AMAZON.CO,5999,Other consumables,49.99,8.33,41.66
Neighbourhoods and Climate Change,Environmental Services,010919,C&G - Countryside Site Management,Supplies and Services,304221,Equipment and Materials,04-May-2022,000008178921482,WWW.SCREWFIX.COM,5211,Direct materials,14.76,2.46,12.30
Neighbourhoods and Climate Change,Environmental Services,010919,C&G - Countryside Site Management,Supplies and Services,304221,Equipment and Materials,04-May-2022,000008178921482 - 1,WWW.SCREWFIX.COM,5211,Direct materials,0.03,,0.03
Children and Young Peoples Services,Head of Childrens Social Care,085331,New Lea Childrens Home,Supplies and Services,324117,Provisions E324,04-May-2022,000008178921566,ALDI 11 774,5411,Catering costs - provisions,31.96,0.00,31.96
Children and Young Peoples Services,Head of Childrens Social Care,085365,Children Looked After Team 2,Supplies and Services,338045,Services,04-May-2022,000008178921636,GEN REGISTER OFFICE,9399,Legal expenses 338045,22.00,0.00,22.00
Children and Young Peoples Services,Head of Childrens Social Care,085341,High Etherley Satelite Home,Supplies and Services,348037,Subsistence E348,04-May-2022,000008178921648,MCDONALDS,5812,Subsistence,5.99,0.00,5.99
Children and Young Peoples Services,Head of Childrens Social Care,085341,High Etherley Satelite Home,Supplies and Services,384999,Miscellaneous Expenses,04-May-2022,000008178921652,WHITLEY BAY ICE RINK,7997,Other expenses,32.50,0.00,32.50
Resources BK0010,Procurement Sales & Business Services,069800,Corporate Procurement 069800,Employees,040149,Recruitment Instruction and Training,04-May-2022,000008178921712,WWW.CIPS.ORG,8699,Training-all costs,191.00,0.00,191.00
Resources BK0010,Procurement Sales & Business Services,069800,Corporate Procurement 069800,Employees,040149,Recruitment Instruction and Training,04-May-2022,000008178921714,WWW.CIPS.ORG,8699,Training-all costs,80.00,0.00,80.00
Children and Young Peoples Services,Head of Early Help Inclusion & Vulnerable Children.,088115,Young Parents Programme 088115,Supplies and Services,384302,Miscellaneous Expenses,04-May-2022,000008178921802,WWW.THEWORKS.CO.UK,5310,Activity expenses,35.00,0.00,35.00
Children and Young Peoples Services,Head of Early Help Inclusion & Vulnerable Children.,088115,Young Parents Programme 088115,Supplies and Services,384302,Miscellaneous Expenses,04-May-2022,000008178921808,AMZNMKTPLACE AMAZON.CO,5999,Activity expenses,8.49,1.42,7.07
Children and Young Peoples Services,Head of Early Help Inclusion & Vulnerable Children.,088115,Young Parents Programme 088115,Supplies and Services,384302,Miscellaneous Expenses,04-May-2022,000008178921814,AMZNMKTPLACE AMAZON.CO,5999,Activity expenses,8.97,1.50,7.47
Children and Young Peoples Services,Head of Early Help Inclusion & Vulnerable Children.,088115,Young Parents Programme 088115,Supplies and Services,384302,Miscellaneous Expenses,04-May-2022,000008178921818,AMZNMKTPLACE AMAZON.CO,5999,Activity expenses,65.70,10.95,54.75
Children and Young Peoples Services,Head of Early Help Inclusion & Vulnerable Children.,088115,Young Parents Programme 088115,Supplies and Services,384302,Miscellaneous Expenses,04-May-2022,000008178921818 - 1,AMZNMKTPLACE AMAZON.CO,5999,Activity expenses,0.13,,0.13
Children and Young Peoples Services,Head of Early Help Inclusion & Vulnerable Children.,088115,Young Parents Programme 088115,Supplies and Services,384302,Miscellaneous Expenses,04-May-2022,000008178921820,AMZNMKTPLACE AMAZON.CO,5999,Activity expenses,72.40,12.09,60.31
Children and Young Peoples Services,Head of Early Help Inclusion & Vulnerable Children.,088115,Young Parents Programme 088115,Supplies and Services,384302,Miscellaneous Expenses,04-May-2022,000008178921824,AMZNMKTPLACE AMAZON.CO,5999,Activity expenses,7.98,1.33,6.65
Children and Young Peoples Services,Head of Early Help Inclusion & Vulnerable Children.,085957,Secure Management,Supplies and Services,304221,Equipment and Materials,04-May-2022,000008178921888,WWW.SCREWFIX.COM,5211,Direct materials,134.99,0.00,134.99
Children and Young Peoples Services,Head of Early Help Inclusion & Vulnerable Children.,085957,Secure Management,Supplies and Services,304403,Equipment and Materials,04-May-2022,000008178921894,AMZNMKTPLACE AMAZON.CO,5999,Other consumables,7.95,1.33,6.62
Children and Young Peoples Services,Head of Childrens Social Care,085633,Families First Chester-Le-Street,Supplies and Services,338045,Services,04-May-2022,000008178922054,SUNDERLAND CC,7523,Legal expenses 338045,11.00,0.00,11.00
Children and Young Peoples Services,Head of Childrens Social Care,085331,New Lea Childrens Home,Supplies and Services,328041,Clothing uniforms and laundry E328,04-May-2022,000008178922086,PRIMARK 670 GATESHEAD,5651,Clothing uniforms and laundry,14.50,0.00,14.50
Children and Young Peoples Services,Head of Childrens Social Care,085331,New Lea Childrens Home,Supplies and Services,328041,Clothing uniforms and laundry E328,04-May-2022,000008178922088,PRIMARK 670 GATESHEAD,5651,Clothing uniforms and laundry,19.00,0.00,19.00
Adult and Health Services,Head of Adults,051613,OP/PD Easington 051613,Supplies and Services,332047,Printing Stationery and Gen Off Exps,04-May-2022,000008178922106,AMZNBUSINESS 2D9C65T04,5999,Stationery,18.00,3.00,15.00
Regeneration Economy and Growth,Corporate Property and Land,010525,Catering - Green Lane,Supplies and Services,324117,Provisions E324,04-May-2022,000008179028390,BATLEYS PERTH,5300,Catering costs - provisions,73.20,12.20,61.00
Regeneration Economy and Growth,Corporate Property and Land,010525,Catering - Green Lane,Supplies and Services,324117,Provisions E324,04-May-2022,000008179028390 - 1,BATLEYS PERTH,5300,Catering costs - provisions,31.73,,31.73
Regeneration Economy and Growth,Corporate Property and Land,011296,Catering - Crimdon Dene Hub,Supplies and Services,384999,Miscellaneous Expenses,04-May-2022,000008179028394,G M PACKAGING UK LIMIT,5046,Other expenses,195.56,0.00,195.56
Children and Young Peoples Services,Head of Childrens Social Care,085380,Operations Manager LAC Resources,Supplies and Services,328041,Clothing uniforms and laundry E328,04-May-2022,000010044585175,ARGOS LTD,5310,Clothing uniforms and laundry,-205.00,0.00,-205.00
Children and Young Peoples Services,Head of Education and Skills,054640,Durham Learning Resources 054640,Supplies and Services,304403,Equipment and Materials,05-May-2022,000008173737598,AMZNMktplace,5999,Other consumables,25.98,4.34,21.64
Children and Young Peoples Services,Head of Early Help Inclusion & Vulnerable Children.,085957,Secure Management,Supplies and Services,304403,Equipment and Materials,05-May-2022,000008173738076,AMZNMktplace,5999,Other consumables,59.90,10.00,49.90
Children and Young Peoples Services,Head of Early Help Inclusion & Vulnerable Children.,088101,Bullion Lane & Brandon Family Centre,Supplies and Services,384302,Miscellaneous Expenses,05-May-2022,000008173739198,AMZNMktplace,5999,Activity expenses,11.98,2.00,9.98
Children and Young Peoples Services,Head of Early Help Inclusion & Vulnerable Children.,088101,Bullion Lane & Brandon Family Centre,Supplies and Services,384302,Miscellaneous Expenses,05-May-2022,000008173739206,AMZNMktplace,5999,Activity expenses,12.70,2.12,10.58
Children and Young Peoples Services,Head of Childrens Social Care,085341,High Etherley Satelite Home,Supplies and Services,324117,Provisions E324,05-May-2022,000008178920754,TESCO STORES 6329,5411,Catering costs - provisions,10.00,0.00,10.00
Children and Young Peoples Services,Head of Childrens Social Care,085341,High Etherley Satelite Home,Supplies and Services,324117,Provisions E324,05-May-2022,000008178920758,TESCO STORES 6329,5411,Catering costs - provisions,4.50,0.00,4.50
Children and Young Peoples Services,Head of Childrens Social Care,085341,High Etherley Satelite Home,Supplies and Services,324117,Provisions E324,05-May-2022,000008178920762,TESCO STORES 6329,5411,Catering costs - provisions,1.50,0.00,1.50
Children and Young Peoples Services,Head of Childrens Social Care,085501,Child Care Cases Legal Expenses,Supplies and Services,304403,Equipment and Materials,05-May-2022,000008178920842,DARLINGTON BC INTERNET,9399,Other consumables,11.00,0.00,11.00
Neighbourhoods and Climate Change,Environmental Services,010383,C&G - South Street Cleansing,Supplies and Services,304999,Equipment and Materials,05-May-2022,000008178920876,NEW ROW FARM NURSERIES,780,Misc equipment tools and materials,70.06,0.00,70.06
Neighbourhoods and Climate Change,Environmental Services,010383,C&G - South Street Cleansing,Supplies and Services,304221,Equipment and Materials,05-May-2022,000008178920880,CARRS BILLINGTON SPENN,5599,Direct materials,229.51,0.00,229.51
Neighbourhoods and Climate Change,Environmental Services,010367,C&G - South Grounds Maintenance,Supplies and Services,304403,Equipment and Materials,05-May-2022,000008178921016,MAXWELLS DIY,5231,Other consumables,25.00,4.17,20.83
Regeneration Economy and Growth,Culture Sport and Tourism,054233,Bishop Auckland Town Hall Library,Supplies and Services,304403,Equipment and Materials,05-May-2022,000008178921078,AMZNMKTPLACE AMAZON.CO,5999,Other consumables,89.90,14.98,74.92
Regeneration Economy and Growth,Corporate Property and Land,021242,Catering - County Hall,Supplies and Services,304403,Equipment and Materials,05-May-2022,000008178921158,AMZNMktplace,5999,Other consumables,9.99,0.00,9.99
Children and Young Peoples Services,Head of Early Help Inclusion & Vulnerable Children.,074000,National Supporting Families Programme,Transfer Payments,525033,Other,05-May-2022,000008178921212,Frank`s Flooring Bisho,5713,Grants to individuals,241.00,0.00,241.00
Children and Young Peoples Services,Head of Education and Skills,071732,Dean Bank Childcare,Supplies and Services,324117,Provisions E324,05-May-2022,000008178921288,B&M 035 - SHILDON,5399,Catering costs - provisions,97.07,0.00,97.07
Regeneration Economy and Growth,Business Durham CL0850,030690,Durham Dales Centre - Tourist Information Centre,Supplies and Services,304221,Equipment and Materials,05-May-2022,000008178921340,A AND K HOSIERY LTD,5099,Direct materials,422.29,0.00,422.29
Regeneration Economy and Growth,Business Durham CL0850,030690,Durham Dales Centre - Tourist Information Centre,Supplies and Services,304403,Equipment and Materials,05-May-2022,000008178921344,WWW.GAINSBOROUGHGIFTWA,5947,Other consumables,717.18,0.00,717.18
Regeneration Economy and Growth,Development and Housing,030771,Durham Advance Flexible Fund,Supplies and Services,324117,Provisions E324,05-May-2022,000008178921414,ASDA STORES LTD,5411,Catering costs - provisions,2.00,0.00,2.00
Regeneration Economy and Growth,Development and Housing,030771,Durham Advance Flexible Fund,Employees,040149,Recruitment Instruction and Training,05-May-2022,000008178921420,CAPITA RECRUITMENT VET,8999,Training-all costs,46.10,0.00,46.10
Children and Young Peoples Services,Head of Early Help Inclusion & Vulnerable Children.,085957,Secure Management,Supplies and Services,304403,Equipment and Materials,05-May-2022,000008178921444,AMZNMktplace,5999,Other consumables,33.00,5.50,27.50
Children and Young Peoples Services,Head of Early Help Inclusion & Vulnerable Children.,085957,Secure Management,Supplies and Services,304403,Equipment and Materials,05-May-2022,000008178921448,AMZNMktplace,5999,Other consumables,10.47,0.00,10.47
Children and Young Peoples Services,Head of Early Help Inclusion & Vulnerable Children.,085957,Secure Management,Supplies and Services,304403,Equipment and Materials,05-May-2022,000008178921454,AMZNMktplace,5999,Other consumables,31.98,5.34,26.64
Children and Young Peoples Services,Head of Education and Skills,070169,Durham SSP,Supplies and Services,324117,Provisions E324,05-May-2022,000008178921472,SPORTS WAREHOUSE,5399,Catering costs - provisions,85.92,14.32,71.60
Children and Young Peoples Services,Head of Education and Skills,070169,Durham SSP,Supplies and Services,324117,Provisions E324,05-May-2022,000008178921472 - 1,SPORTS WAREHOUSE,5399,Catering costs - provisions,0.03,,0.03
Children and Young Peoples Services,Head of Education and Skills,070169,Durham SSP,Supplies and Services,324117,Provisions E324,05-May-2022,000008178921476,TESCO STORES 2371,5411,Catering costs - provisions,25.85,0.00,25.85
Neighbourhoods and Climate Change,Environmental Services,031228,North Pennines - Fellfoot Forward,Supplies and Services,324117,Provisions E324,05-May-2022,000008178921494,HALLBANKGATE HUB LIMIT,5411,Catering costs - provisions,3.49,0.00,3.49
Neighbourhoods and Climate Change,Environmental Services,031228,North Pennines - Fellfoot Forward,Supplies and Services,348037,Subsistence E348,05-May-2022,000008178921502,BOAT HOUSE TEA ROO,5812,Subsistence,14.50,0.00,14.50
Children and Young Peoples Services,Head of Education and Skills,075035,DurhamDirections Re-engagement,Supplies and Services,364301,Grants to Voluntary Organisations,05-May-2022,000008178921512,WWW.GONORTHEAST.CO.UK,4111,Hardship,20.00,0.00,20.00
Children and Young Peoples Services,Head of Education and Skills,075035,DurhamDirections Re-engagement,Supplies and Services,364301,Grants to Voluntary Organisations,05-May-2022,000008178921516,WWW.GONORTHEAST.CO.UK,4111,Hardship,20.00,0.00,20.00
Children and Young Peoples Services,Head of Education and Skills,075035,DurhamDirections Re-engagement,Supplies and Services,364301,Grants to Voluntary Organisations,05-May-2022,000008178921520,WWW.GONORTHEAST.CO.UK,4111,Hardship,20.00,0.00,20.00
Children and Young Peoples Services,Head of Education and Skills,075035,DurhamDirections Re-engagement,Supplies and Services,364301,Grants to Voluntary Organisations,05-May-2022,000008178921524,WWW.GONORTHEAST.CO.UK,4111,Hardship,20.00,0.00,20.00
Regeneration Economy and Growth,Development and Housing,030554,International Relations 030554,Supplies and Services,324117,Provisions E324,05-May-2022,000008178921628,The Coffee House,5462,Catering costs - provisions,17.86,0.00,17.86
Regeneration Economy and Growth,Development and Housing,030554,International Relations 030554,Supplies and Services,324117,Provisions E324,05-May-2022,000008178921632,The Coffee House,5462,Catering costs - provisions,1.98,0.00,1.98
Neighbourhoods and Climate Change,Environmental Services,010367,C&G - South Grounds Maintenance,Supplies and Services,304999,Equipment and Materials,05-May-2022,000008178921676,NEW ROW FARM NURSERIES,780,Misc equipment tools and materials,249.24,0.00,249.24
Neighbourhoods and Climate Change,Environmental Services,010367,C&G - South Grounds Maintenance,Supplies and Services,304999,Equipment and Materials,05-May-2022,000008178921680,NEW ROW FARM NURSERIES,780,Misc equipment tools and materials,90.00,0.00,90.00
Adult and Health Services,Head of Adults,055643,Hawthorn House LD Respite Unit,Supplies and Services,304403,Equipment and Materials,05-May-2022,000008178921692,AMZNMktplace,5999,Other consumables,24.55,4.09,20.46
Children and Young Peoples Services,Head of Education and Skills,071802,Louisa Cent Nursery,Supplies and Services,324117,Provisions E324,05-May-2022,000008178921708,ASDA SUPERSTORE,5411,Catering costs - provisions,12.70,0.00,12.70
Regeneration Economy and Growth,Culture Sport and Tourism,010601,Spennymoor Leisure Cr - General,Supplies and Services,304259,Equipment and Materials,05-May-2022,000008178921736,SP RLSS UK SHOP,5691,Equipment-purchase and rental,126.00,0.00,126.00
Children and Young Peoples Services,Head of Early Help Inclusion & Vulnerable Children.,088115,Young Parents Programme 088115,Supplies and Services,384302,Miscellaneous Expenses,05-May-2022,000008178921806,SAFETYSUPPL,5311,Activity expenses,60.90,0.00,60.90
Children and Young Peoples Services,Head of Early Help Inclusion & Vulnerable Children.,088115,Young Parents Programme 088115,Supplies and Services,384302,Miscellaneous Expenses,05-May-2022,000008178921826,WILKO.COM,5399,Activity expenses,30.20,0.00,30.20
Resources BK0010,Digital Services,065335,School Services - Implementations,Supplies and Services,304639,Equipment and Materials,05-May-2022,000008178921858,SP REPAIR OUTLET,7629,Technicians-supplies,135.98,0.00,135.98
Resources BK0010,Digital Services,065335,School Services - Implementations,Supplies and Services,304639,Equipment and Materials,05-May-2022,000008178921862,REPLACEBASE,5732,Technicians-supplies,45.63,0.00,45.63
Children and Young Peoples Services,Head of Childrens Social Care,085342,16 Hickstead Rise (previously 9 Cedar Ave),Supplies and Services,304403,Equipment and Materials,05-May-2022,000008178921864,AMZNMktplace,5999,Other consumables,21.99,0.00,21.99
Children and Young Peoples Services,Head of Early Help Inclusion & Vulnerable Children.,085957,Secure Management,Supplies and Services,304403,Equipment and Materials,05-May-2022,000008178921898,AMZNMKTPLACE AMAZON.CO,5999,Other consumables,41.15,6.86,34.29
Children and Young Peoples Services,Head of Childrens Social Care,085357,LAC Bespoke Placements,Supplies and Services,352001,Conference Expenses,05-May-2022,000008178921918,Hotel at Booking.com,7011,Conferencesseminars fees etc,426.23,0.00,426.23
Children and Young Peoples Services,Head of Childrens Social Care,085379,Care Leavers Team 2,Transport,235073,Public Transport,05-May-2022,000008178921924,Trainline,4112,Travel-clients/students/children,123.81,0.00,123.81
Regeneration Economy and Growth,Transport and Contracted Services,031704,Care Connect - CCTV Countywide,Supplies and Services,384956,Miscellaneous Expenses,05-May-2022,000008178921928,SECURITY INDUSTRY AUTH,9399,Licences,190.00,0.00,190.00
Children and Young Peoples Services,Head of Education and Skills,071802,Louisa Cent Nursery,Supplies and Services,324117,Provisions E324,05-May-2022,000008178922050,B&M 519 - CONSETT,5399,Catering costs - provisions,23.28,0.00,23.28
Neighbourhoods and Climate Change,Environmental Services,031200,North Pennines Core,Supplies and Services,340001,Postages E340,05-May-2022,000008178922072,POST OFFICE COUNTER,9402,Postages,2.85,0.00,2.85
Regeneration Economy and Growth,Culture Sport and Tourism,054233,Bishop Auckland Town Hall Library,Supplies and Services,324117,Provisions E324,05-May-2022,000008178922074,HERON FOODS,5411,Catering costs - provisions,16.10,0.00,16.10
Resources BK0010,Procurement Sales & Business Services,065501,Business Support - Executive Support,Supplies and Services,332047,Printing Stationery and Gen Off Exps,05-May-2022,000008178922100,AMZNMKTPLACE AMAZON.CO,5999,Stationery,49.99,8.33,41.66
Resources BK0010,Procurement Sales & Business Services,065501,Business Support - Executive Support,Supplies and Services,342033,Computers and Communications,05-May-2022,000008178922102,AMZNMKTPLACE AMAZON.CO,5999,Computer hardware,23.98,4.00,19.98
Neighbourhoods and Climate Change,Partnerships & Community Engagement Div.,060600,Spennymoor AAP,Supplies and Services,332047,Printing Stationery and Gen Off Exps,05-May-2022,000008178922108,AMZNMktplace,5999,Stationery,119.99,20.00,99.99
Adult and Health Services,Head of Adults,055309,Peterlee Pathways,Supplies and Services,304403,Equipment and Materials,05-May-2022,000008178922118,AMZNMktplace,5999,Other consumables,8.49,1.42,7.07
Adult and Health Services,Head of Adults,055309,Peterlee Pathways,Supplies and Services,304403,Equipment and Materials,05-May-2022,000008178922120,AMZNMktplace,5999,Other consumables,12.47,2.08,10.39
Children and Young Peoples Services,Head of Early Help Inclusion & Vulnerable Children.,088101,Bullion Lane & Brandon Family Centre,Supplies and Services,384999,Miscellaneous Expenses,05-May-2022,000008178922150,Hobbycraft Trading Lim,5970,Other expenses,67.50,0.00,67.50
Regeneration Economy and Growth,Corporate Property and Land,011275,Catering -Durham Leadership Centre,Supplies and Services,324117,Provisions E324,05-May-2022,000008179028392,HOPWELLS LTD,5811,Catering costs - provisions,85.05,0.00,85.05
Regeneration Economy and Growth,Corporate Property and Land,011296,Catering - Crimdon Dene Hub,Supplies and Services,324117,Provisions E324,05-May-2022,000008179028396,HOPWELLS LTD,5811,Catering costs - provisions,85.68,14.28,71.40
Regeneration Economy and Growth,Corporate Property and Land,011296,Catering - Crimdon Dene Hub,Supplies and Services,324117,Provisions E324,05-May-2022,000008179028396 - 1,HOPWELLS LTD,5811,Catering costs - provisions,38.65,,38.65
Regeneration Economy and Growth,Corporate Property and Land,011296,Catering - Crimdon Dene Hub,Supplies and Services,324117,Provisions E324,05-May-2022,000008179028400,HOPWELLS LTD,5811,Catering costs - provisions,82.08,13.68,68.40
Regeneration Economy and Growth,Corporate Property and Land,011296,Catering - Crimdon Dene Hub,Supplies and Services,324117,Provisions E324,05-May-2022,000008179028400 - 1,HOPWELLS LTD,5811,Catering costs - provisions,113.91,,113.91
Regeneration Economy and Growth,Corporate Property and Land,011296,Catering - Crimdon Dene Hub,Supplies and Services,324117,Provisions E324,05-May-2022,000008179028404,HOPWELLS LTD,5811,Catering costs - provisions,39.48,6.58,32.90
Regeneration Economy and Growth,Corporate Property and Land,011296,Catering - Crimdon Dene Hub,Supplies and Services,324117,Provisions E324,05-May-2022,000008179028404 - 1,HOPWELLS LTD,5811,Catering costs - provisions,181.00,,181.00
Regeneration Economy and Growth,Corporate Property and Land,011296,Catering - Crimdon Dene Hub,Supplies and Services,324117,Provisions E324,05-May-2022,000008179028406,HOPWELLS LTD,5811,Catering costs - provisions,155.10,25.85,129.25
Regeneration Economy and Growth,Corporate Property and Land,011296,Catering - Crimdon Dene Hub,Supplies and Services,324117,Provisions E324,05-May-2022,000008179028406 - 1,HOPWELLS LTD,5811,Catering costs - provisions,235.11,,235.11
Regeneration Economy and Growth,Corporate Property and Land,011296,Catering - Crimdon Dene Hub,Supplies and Services,324117,Provisions E324,05-May-2022,000008179028410,HOPWELLS LTD,5811,Catering costs - provisions,376.74,62.79,313.95
Regeneration Economy and Growth,Corporate Property and Land,011296,Catering - Crimdon Dene Hub,Supplies and Services,324117,Provisions E324,05-May-2022,000008179028410 - 1,HOPWELLS LTD,5811,Catering costs - provisions,434.06,,434.06
Regeneration Economy and Growth,Corporate Property and Land,011296,Catering - Crimdon Dene Hub,Supplies and Services,324117,Provisions E324,05-May-2022,000008179028414,HOPWELLS LTD,5811,Catering costs - provisions,46.20,7.70,38.50
Regeneration Economy and Growth,Corporate Property and Land,011296,Catering - Crimdon Dene Hub,Supplies and Services,324117,Provisions E324,05-May-2022,000008179028414 - 1,HOPWELLS LTD,5811,Catering costs - provisions,95.17,,95.17
Regeneration Economy and Growth,Corporate Property and Land,011296,Catering - Crimdon Dene Hub,Supplies and Services,324117,Provisions E324,05-May-2022,000008179028418,HOPWELLS LTD,5811,Catering costs - provisions,92.10,0.00,92.10
Regeneration Economy and Growth,Corporate Property and Land,011296,Catering - Crimdon Dene Hub,Supplies and Services,324117,Provisions E324,05-May-2022,000008179028420,HOPWELLS LTD,5811,Catering costs - provisions,105.18,17.53,87.65
Regeneration Economy and Growth,Corporate Property and Land,011296,Catering - Crimdon Dene Hub,Supplies and Services,324117,Provisions E324,05-May-2022,000008179028420 - 1,HOPWELLS LTD,5811,Catering costs - provisions,84.18,,84.18
Regeneration Economy and Growth,Corporate Property and Land,011296,Catering - Crimdon Dene Hub,Supplies and Services,324117,Provisions E324,05-May-2022,000008179028424,HOPWELLS LTD,5811,Catering costs - provisions,230.10,0.00,230.10
Regeneration Economy and Growth,Corporate Property and Land,011296,Catering - Crimdon Dene Hub,Supplies and Services,324117,Provisions E324,05-May-2022,000008179028428,HOPWELLS LTD,5811,Catering costs - provisions,88.80,14.80,74.00
Regeneration Economy and Growth,Corporate Property and Land,011296,Catering - Crimdon Dene Hub,Supplies and Services,324117,Provisions E324,05-May-2022,000008179028428 - 1,HOPWELLS LTD,5811,Catering costs - provisions,86.67,,86.67
Regeneration Economy and Growth,Corporate Property and Land,011296,Catering - Crimdon Dene Hub,Supplies and Services,324117,Provisions E324,05-May-2022,000008179028432,HOPWELLS LTD,5811,Catering costs - provisions,136.94,0.00,136.94
Regeneration Economy and Growth,Corporate Property and Land,011296,Catering - Crimdon Dene Hub,Supplies and Services,324117,Provisions E324,05-May-2022,000008179028434,HOPWELLS LTD,5811,Catering costs - provisions,95.28,15.88,79.40
Regeneration Economy and Growth,Corporate Property and Land,011296,Catering - Crimdon Dene Hub,Supplies and Services,324117,Provisions E324,05-May-2022,000008179028434 - 1,HOPWELLS LTD,5811,Catering costs - provisions,322.43,,322.43
Regeneration Economy and Growth,Corporate Property and Land,011296,Catering - Crimdon Dene Hub,Supplies and Services,324117,Provisions E324,05-May-2022,000008179028438,HOPWELLS LTD,5811,Catering costs - provisions,125.23,0.00,125.23
Regeneration Economy and Growth,Corporate Property and Land,011296,Catering - Crimdon Dene Hub,Supplies and Services,324117,Provisions E324,05-May-2022,000008179028442,HOPWELLS LTD,5811,Catering costs - provisions,164.56,0.00,164.56
Regeneration Economy and Growth,Corporate Property and Land,011296,Catering - Crimdon Dene Hub,Supplies and Services,324117,Provisions E324,05-May-2022,000008179028444,HOPWELLS LTD,5811,Catering costs - provisions,62.58,10.43,52.15
Regeneration Economy and Growth,Corporate Property and Land,011296,Catering - Crimdon Dene Hub,Supplies and Services,324117,Provisions E324,05-May-2022,000008179028444 - 1,HOPWELLS LTD,5811,Catering costs - provisions,148.96,,148.96
Regeneration Economy and Growth,Corporate Property and Land,011296,Catering - Crimdon Dene Hub,Supplies and Services,324117,Provisions E324,05-May-2022,000008179028448,HOPWELLS LTD,5811,Catering costs - provisions,-9.75,0.00,-9.75
Regeneration Economy and Growth,Corporate Property and Land,030691,Catering - Durham Dales Centre,Supplies and Services,324117,Provisions E324,05-May-2022,000008179028450,HOPWELLS LTD,5811,Catering costs - provisions,2.82,0.47,2.35
Regeneration Economy and Growth,Corporate Property and Land,030691,Catering - Durham Dales Centre,Supplies and Services,324117,Provisions E324,05-May-2022,000008179028450 - 1,HOPWELLS LTD,5811,Catering costs - provisions,272.80,,272.80
Regeneration Economy and Growth,Corporate Property and Land,030691,Catering - Durham Dales Centre,Supplies and Services,324117,Provisions E324,05-May-2022,000008179028456,HOPWELLS LTD,5811,Catering costs - provisions,-26.62,0.00,-26.62
Regeneration Economy and Growth,Corporate Property and Land,030691,Catering - Durham Dales Centre,Supplies and Services,324117,Provisions E324,05-May-2022,000008179028458,JR HOLLAND FOODSERVICE,5499,Catering costs - provisions,-1.06,0.00,-1.06
Regeneration Economy and Growth,Culture Sport and Tourism,054235,Bishop Auckland Town Hall Cafe,Supplies and Services,324117,Provisions E324,05-May-2022,000008179028462,HOPWELLS LTD,5811,Catering costs - provisions,260.21,0.00,260.21
Neighbourhoods and Climate Change,Environmental Services,011060,C&G - Hardwick Park Catering,Supplies and Services,324117,Provisions E324,05-May-2022,000008179028466,HOPWELLS LTD,5811,Catering costs - provisions,327.06,54.51,272.55
Neighbourhoods and Climate Change,Environmental Services,011060,C&G - Hardwick Park Catering,Supplies and Services,324117,Provisions E324,05-May-2022,000008179028466 - 1,HOPWELLS LTD,5811,Catering costs - provisions,319.15,,319.15
Neighbourhoods and Climate Change,Environmental Services,011060,C&G - Hardwick Park Catering,Supplies and Services,324117,Provisions E324,05-May-2022,000008179028468,HOPWELLS LTD,5811,Catering costs - provisions,596.22,99.37,496.85
Neighbourhoods and Climate Change,Environmental Services,011060,C&G - Hardwick Park Catering,Supplies and Services,324117,Provisions E324,05-May-2022,000008179028468 - 1,HOPWELLS LTD,5811,Catering costs - provisions,246.86,,246.86
Neighbourhoods and Climate Change,Environmental Services,011060,C&G - Hardwick Park Catering,Supplies and Services,324117,Provisions E324,05-May-2022,000008179028472,JR HOLLAND FOODSERVICE,5499,Catering costs - provisions,3.49,0.00,3.49
Neighbourhoods and Climate Change,Environmental Services,011060,C&G - Hardwick Park Catering,Supplies and Services,324117,Provisions E324,05-May-2022,000008179028476,JR HOLLAND FOODSERVICE,5499,Catering costs - provisions,144.46,0.00,144.46
Regeneration Economy and Growth,Corporate Property and Land,021235,Catering - Wharton Park,Supplies and Services,324117,Provisions E324,05-May-2022,000008179028478,HOPWELLS LTD,5811,Catering costs - provisions,71.33,0.00,71.33
Regeneration Economy and Growth,Culture Sport and Tourism,011263,Louisa Centre 011263,Supplies and Services,324117,Provisions E324,05-May-2022,000008179028480,JR HOLLAND FOODSERVICE,5499,Catering costs - provisions,36.00,0.00,36.00
Regeneration Economy and Growth,Culture Sport and Tourism,054812,Gala Theatre - Catering etc,Supplies and Services,324117,Provisions E324,05-May-2022,000008179028486,HOPWELLS LTD,5811,Catering costs - provisions,50.83,0.00,50.83
Regeneration Economy and Growth,Culture Sport and Tourism,054812,Gala Theatre - Catering etc,Supplies and Services,324117,Provisions E324,05-May-2022,000008179028490,JR HOLLAND FOODSERVICE,5499,Catering costs - provisions,41.90,0.00,41.90
Regeneration Economy and Growth,Corporate Property and Land,021242,Catering - County Hall,Supplies and Services,324117,Provisions E324,05-May-2022,000008179028492,HOPWELLS LTD,5811,Catering costs - provisions,197.31,0.00,197.31
Children and Young Peoples Services,Head of Childrens Social Care,085341,High Etherley Satelite Home,Supplies and Services,324117,Provisions E324,05-May-2022,000010044584481,RETRO SWEET SHOP,5441,Catering costs - provisions,8.00,0.00,8.00
Children and Young Peoples Services,Head of Education and Skills,075029,Poverty Action Group,Supplies and Services,304221,Equipment and Materials,05-May-2022,000010044584717,WWW.SCREWFIX.COM,5211,Direct materials,27.18,4.53,22.65
Neighbourhoods and Climate Change,Environmental Services,010383,C&G - South Street Cleansing,Supplies and Services,304999,Equipment and Materials,05-May-2022,000010044584743,Snowballs,5251,Misc equipment tools and materials,259.99,0.00,259.99
Neighbourhoods and Climate Change,Environmental Services,010383,C&G - South Street Cleansing,Supplies and Services,304999,Equipment and Materials,05-May-2022,000010044584747,Snowballs,5251,Misc equipment tools and materials,10.00,0.00,10.00
Children and Young Peoples Services,Head of Early Help Inclusion & Vulnerable Children.,088105,W/Close and Willington Family Centre,Supplies and Services,304259,Equipment and Materials,05-May-2022,000010044585145,WWW.THEWORKS.CO.UK,5310,Equipment-purchase and rental,128.00,0.00,128.00
Children and Young Peoples Services,Head of Early Help Inclusion & Vulnerable Children.,088105,W/Close and Willington Family Centre,Supplies and Services,304259,Equipment and Materials,05-May-2022,000010044585157,AMZNBUSINESS 2D5O750D4,5999,Equipment-purchase and rental,33.12,5.52,27.60
Children and Young Peoples Services,Head of Childrens Social Care,085380,Operations Manager LAC Resources,Supplies and Services,328041,Clothing uniforms and laundry E328,05-May-2022,000010044585167,ARGOS LTD,5310,Clothing uniforms and laundry,164.95,0.00,164.95
Regeneration Economy and Growth,Development and Housing,030772,CLLD South,Supplies and Services,304259,Equipment and Materials,05-May-2022,000010044585325,Durham County CNCL,9399,Equipment-purchase and rental,220.00,0.00,220.00
Children and Young Peoples Services,Head of Childrens Social Care,085347,Solo Home The Manse,Supplies and Services,324117,Provisions E324,05-May-2022,000010044585371,CO-OP GROUP 310016,5411,Catering costs - provisions,14.87,0.00,14.87
Neighbourhoods and Climate Change,Environmental Services,010367,C&G - South Grounds Maintenance,Supplies and Services,328041,Clothing uniforms and laundry E328,05-May-2022,000010044585463,ARGOS LTD,5310,Clothing uniforms and laundry,220.00,0.00,220.00
Children and Young Peoples Services,Head of Education and Skills,071732,Dean Bank Childcare,Supplies and Services,304403,Equipment and Materials,05-May-2022,000010044585587,AMZNMKTPLACE AMAZON.CO,5999,Other consumables,24.49,0.00,24.49
Regeneration Economy and Growth,Development and Housing,030776,LINKCD Flexible Fund,Supplies and Services,304259,Equipment and Materials,05-May-2022,000010044585763,GEN REGISTER OFFICE,9399,Equipment-purchase and rental,14.00,0.00,14.00
Children and Young Peoples Services,Head of Childrens Social Care,085364,Children Looked After Team 1,Supplies and Services,328041,Clothing uniforms and laundry E328,05-May-2022,000010044585925,ARGOS LTD,5310,Clothing uniforms and laundry,35.99,0.00,35.99
Children and Young Peoples Services,Head of Education and Skills,075035,DurhamDirections Re-engagement,Supplies and Services,364301,Grants to Voluntary Organisations,05-May-2022,000010044586039,SCREWFIX DIR. LTD,5211,Hardship,-15.79,0.00,-15.79
Regeneration Economy and Growth,Development and Housing,030771,Durham Advance Flexible Fund,Supplies and Services,304403,Equipment and Materials,05-May-2022,000010044586431,AMZNMKTPLACE AMAZON.CO,5999,Other consumables,36.97,0.00,36.97
Children and Young Peoples Services,Head of Education and Skills,071802,Louisa Cent Nursery,Supplies and Services,324117,Provisions E324,05-May-2022,000010044587389,WM MORRISONS STORE,5411,Catering costs - provisions,2.80,0.00,2.80
Children and Young Peoples Services,Head of Childrens Social Care,085352,New Childrens Home (previously Tow Law),Supplies and Services,304999,Equipment and Materials,05-May-2022,000010044587605,SNAPFISH UK,7395,Misc equipment tools and materials,22.48,0.00,22.48
Children and Young Peoples Services,Head of Childrens Social Care,085334,West Rainton Satelite Home,Supplies and Services,344033,Telephones,05-May-2022,000010044587797,EE DURHAM ARNISON,4814,Telephones general-all costs,30.00,0.00,30.00
Children and Young Peoples Services,Head of Childrens Social Care,085334,West Rainton Satelite Home,Supplies and Services,328041,Clothing uniforms and laundry E328,05-May-2022,000010044587805,Argos Durham Arnis,5310,Clothing uniforms and laundry,64.99,0.00,64.99
Children and Young Peoples Services,Head of Childrens Social Care,085334,West Rainton Satelite Home,Transport,215995,Running Costs of Vehicles,05-May-2022,000010044587809,GULF WEST RAINTON,5541,Vehicle running expenses,60.61,0.00,60.61
Regeneration Economy and Growth,Corporate Property and Land,010525,Catering - Green Lane,Supplies and Services,324117,Provisions E324,05-May-2022,000010044788129,BATLEYS PERTH,5300,Catering costs - provisions,26.52,4.42,22.10
Regeneration Economy and Growth,Corporate Property and Land,010525,Catering - Green Lane,Supplies and Services,324117,Provisions E324,05-May-2022,000010044788129 - 1,BATLEYS PERTH,5300,Catering costs - provisions,66.70,,66.70
Regeneration Economy and Growth,Corporate Property and Land,010525,Catering - Green Lane,Supplies and Services,324117,Provisions E324,05-May-2022,000010044788135,BATLEYS PERTH,5300,Catering costs - provisions,8.49,0.00,8.49
Regeneration Economy and Growth,Corporate Property and Land,010525,Catering - Green Lane,Supplies and Services,324117,Provisions E324,05-May-2022,000010044788137,BATLEYS PERTH,5300,Catering costs - provisions,8.33,0.00,8.33
Regeneration Economy and Growth,Corporate Property and Land,011296,Catering - Crimdon Dene Hub,Supplies and Services,324117,Provisions E324,05-May-2022,000010044788145,BATLEYS PERTH,5300,Catering costs - provisions,147.60,24.60,123.00
Regeneration Economy and Growth,Corporate Property and Land,011296,Catering - Crimdon Dene Hub,Supplies and Services,324117,Provisions E324,05-May-2022,000010044788145 - 1,BATLEYS PERTH,5300,Catering costs - provisions,54.02,,54.02
Neighbourhoods and Climate Change,Environmental Services,011060,C&G - Hardwick Park Catering,Supplies and Services,324117,Provisions E324,05-May-2022,000010044788149,BATLEYS PERTH,5300,Catering costs - provisions,188.04,31.34,156.70
Neighbourhoods and Climate Change,Environmental Services,011060,C&G - Hardwick Park Catering,Supplies and Services,324117,Provisions E324,05-May-2022,000010044788149 - 1,BATLEYS PERTH,5300,Catering costs - provisions,153.10,,153.10
Regeneration Economy and Growth,Culture Sport and Tourism,054812,Gala Theatre - Catering etc,Supplies and Services,324117,Provisions E324,05-May-2022,000010044788153,BATLEYS PERTH,5300,Catering costs - provisions,36.42,6.07,30.35
Regeneration Economy and Growth,Culture Sport and Tourism,054812,Gala Theatre - Catering etc,Supplies and Services,324117,Provisions E324,05-May-2022,000010044788153 - 1,BATLEYS PERTH,5300,Catering costs - provisions,100.55,,100.55
Regeneration Economy and Growth,Culture Sport and Tourism,054812,Gala Theatre - Catering etc,Supplies and Services,324117,Provisions E324,05-May-2022,000010044788157,BATLEYS PERTH,5300,Catering costs - provisions,20.80,0.00,20.80
Regeneration Economy and Growth,Corporate Property and Land,021242,Catering - County Hall,Supplies and Services,324117,Provisions E324,05-May-2022,000010044788161,BATLEYS PERTH,5300,Catering costs - provisions,159.96,26.66,133.30
Regeneration Economy and Growth,Corporate Property and Land,021242,Catering - County Hall,Supplies and Services,324117,Provisions E324,05-May-2022,000010044788161 - 1,BATLEYS PERTH,5300,Catering costs - provisions,116.04,,116.04
Regeneration Economy and Growth,Business Durham CL0850,030689,Inward Investment and Aftercare,Supplies and Services,342033,Computers and Communications,06-May-2022,000010044584445,STK Shutterstock,7333,Computer hardware,19.00,0.00,19.00
Children and Young Peoples Services,Head of Childrens Social Care,085341,High Etherley Satelite Home,Supplies and Services,304403,Equipment and Materials,06-May-2022,000010044584487,CARD FACTORY,5947,Other consumables,0.99,0.00,0.99
Children and Young Peoples Services,Head of Childrens Social Care,085611,Families First Stanley,Supplies and Services,364340,Grants to Voluntary Organisations,06-May-2022,000010044584497,WWW.GONORTHEAST.CO.UK,4111,Contact expenses,34.00,0.00,34.00
Children and Young Peoples Services,Head of Childrens Social Care,085300,LAC Placements,Supplies and Services,338099,Services,06-May-2022,000010044584503,PARKDEAN RESORTS H,7033,Other services,469.00,0.00,469.00
Children and Young Peoples Services,Head of Education and Skills,071801,Selby Cottage Childcare Centre,Supplies and Services,324117,Provisions E324,06-May-2022,000010044584517,WILKO RETAIL LIMITED,5399,Catering costs - provisions,84.95,0.00,84.95
Regeneration Economy and Growth,REG - Central Costs,030001,Corporate Director - Regeneration Economy & Growth,Transport,235057,Public Transport,06-May-2022,000010044584545,NSL LIMITED,7523,Staff travelling,2.00,0.00,2.00
Children and Young Peoples Services,Head of Childrens Social Care,085341,High Etherley Satelite Home,Supplies and Services,328041,Clothing uniforms and laundry E328,06-May-2022,000010044584643,TK MAXX,5331,Clothing uniforms and laundry,24.98,0.00,24.98
Children and Young Peoples Services,Head of Childrens Social Care,085341,High Etherley Satelite Home,Supplies and Services,304259,Equipment and Materials,06-May-2022,000010044584649,JD SPORTS PLC,5941,Equipment-purchase and rental,30.10,0.00,30.10
Children and Young Peoples Services,Head of Education and Skills,075035,DurhamDirections Re-engagement,Supplies and Services,364301,Grants to Voluntary Organisations,06-May-2022,000010044584721,WWW.GONORTHEAST.CO.UK,4111,Hardship,20.00,0.00,20.00
Children and Young Peoples Services,Head of Education and Skills,075035,DurhamDirections Re-engagement,Supplies and Services,364301,Grants to Voluntary Organisations,06-May-2022,000010044584725,WWW.GONORTHEAST.CO.UK,4111,Hardship,20.00,0.00,20.00
Neighbourhoods and Climate Change,Environmental Services,010383,C&G - South Street Cleansing,Supplies and Services,304221,Equipment and Materials,06-May-2022,000010044584737,ARBOR TIMBER AND BUILD,5211,Direct materials,40.60,0.00,40.60
Children and Young Peoples Services,Head of Early Help Inclusion & Vulnerable Children.,088105,W/Close and Willington Family Centre,Supplies and Services,304259,Equipment and Materials,06-May-2022,000010044585153,Hobbycraft Trading Lim,5970,Equipment-purchase and rental,71.60,0.00,71.60
Regeneration Economy and Growth,Culture Sport and Tourism,054233,Bishop Auckland Town Hall Library,Supplies and Services,304403,Equipment and Materials,06-May-2022,000010044585193,AMZNMktplace,5999,Other consumables,89.90,14.98,74.92
Children and Young Peoples Services,Head of Early Help Inclusion & Vulnerable Children.,074000,National Supporting Families Programme,Transfer Payments,525033,Other,06-May-2022,000010044585347,MAGUIRES,5713,Grants to individuals,246.00,0.00,246.00
Children and Young Peoples Services,Head of Childrens Social Care,085347,Solo Home The Manse,Supplies and Services,328041,Clothing uniforms and laundry E328,06-May-2022,000010044585383,iZ Institution,5699,Clothing uniforms and laundry,26.65,0.00,26.65
Children and Young Peoples Services,Head of Childrens Social Care,085342,16 Hickstead Rise (previously 9 Cedar Ave),Supplies and Services,348037,Subsistence E348,06-May-2022,000010044585555,UNO PIZZA,5812,Subsistence,17.00,0.00,17.00
Neighbourhoods and Climate Change,Environmental Services,026591,C&G - Hardwick Park,Supplies and Services,332047,Printing Stationery and Gen Off Exps,06-May-2022,000010044585655,AMZNBusiness 2D5OJ8G84,5999,Stationery,5.76,0.00,5.76
Regeneration Economy and Growth,Development and Housing,030770,Durham Advance,Transport,235057,Public Transport,06-May-2022,000010044585737,WWW.GONORTHEAST.CO.UK,4111,Staff travelling,25.00,0.00,25.00
Regeneration Economy and Growth,Business Durham CL0850,030714,Salvus House,Supplies and Services,304403,Equipment and Materials,06-May-2022,000010044585829,RUS,5085,Other consumables,71.75,0.00,71.75
Regeneration Economy and Growth,Development and Housing,031623,Rough Sleeping,Supplies and Services,304259,Equipment and Materials,06-May-2022,000010044585861,HARTLEPOOL BC,9399,Equipment-purchase and rental,11.00,0.00,11.00
Regeneration Economy and Growth,Development and Housing,030771,Durham Advance Flexible Fund,Supplies and Services,304259,Equipment and Materials,06-May-2022,000010044585889,MIDDLESBROUGH COUNCIL,9399,Equipment-purchase and rental,11.00,0.00,11.00
Children and Young Peoples Services,Head of Early Help Inclusion & Vulnerable Children.,085957,Secure Management,Supplies and Services,324117,Provisions E324,06-May-2022,000010044585939,TESCO STORES 6329,5411,Catering costs - provisions,8.00,0.00,8.00
Children and Young Peoples Services,Head of Childrens Social Care,085331,New Lea Childrens Home,Supplies and Services,324117,Provisions E324,06-May-2022,000010044586143,HERON FOODS STANLEY,5411,Catering costs - provisions,28.47,0.00,28.47
Children and Young Peoples Services,Head of Childrens Social Care,085331,New Lea Childrens Home,Supplies and Services,348037,Subsistence E348,06-May-2022,000010044586149,DH9 CAFE,5814,Subsistence,11.00,0.00,11.00
Children and Young Peoples Services,Head of Childrens Social Care,085331,New Lea Childrens Home,Supplies and Services,324117,Provisions E324,06-May-2022,000010044586155,Early Noon & Night,5499,Catering costs - provisions,10.00,0.00,10.00
Children and Young Peoples Services,Head of Childrens Social Care,085331,New Lea Childrens Home,Supplies and Services,324117,Provisions E324,06-May-2022,000010044586167,ASDA SUPERSTORE 4987,5411,Catering costs - provisions,267.85,0.00,267.85
Children and Young Peoples Services,Head of Childrens Social Care,085331,New Lea Childrens Home,Supplies and Services,324117,Provisions E324,06-May-2022,000010044586171,ICELAND,5411,Catering costs - provisions,68.32,0.00,68.32
Children and Young Peoples Services,Head of Childrens Social Care,085331,New Lea Childrens Home,Supplies and Services,348037,Subsistence E348,06-May-2022,000010044586177,GREGGS,5812,Subsistence,18.00,0.00,18.00
Children and Young Peoples Services,Head of Childrens Social Care,085352,New Childrens Home (previously Tow Law),Supplies and Services,340001,Postages E340,06-May-2022,000010044586293,POST OFFICE COUNTER,9402,Postages,2.85,0.00,2.85
Children and Young Peoples Services,Head of Childrens Social Care,085352,New Childrens Home (previously Tow Law),Supplies and Services,324117,Provisions E324,06-May-2022,000010044586295,ASDA STORES,5411,Catering costs - provisions,14.80,0.00,14.80
Dedicated Schools Grant BG0015,DSG Schools Block,418502,Belmont Community School 004185 - Science,Supplies and Services,304403,Equipment and Materials,06-May-2022,000010044586403,SCHOOLSTICKERS.COM,5734,Other consumables,23.52,3.92,19.60
Regeneration Economy and Growth,Development and Housing,030554,International Relations 030554,Supplies and Services,304403,Equipment and Materials,06-May-2022,000010044586413,MAXWELLS D I Y,5231,Other consumables,16.00,0.00,16.00
Neighbourhoods and Climate Change,Environmental Services,010367,C&G - South Grounds Maintenance,Supplies and Services,304999,Equipment and Materials,06-May-2022,000010044586497,NEW ROW FARM NURSERIES,780,Misc equipment tools and materials,141.60,0.00,141.60
Adult and Health Services,Head of Adults,055643,Hawthorn House LD Respite Unit,Supplies and Services,304403,Equipment and Materials,06-May-2022,000010044586549,AMZNMktplace,5999,Other consumables,8.15,1.36,6.79
Adult and Health Services,Head of Adults,055643,Hawthorn House LD Respite Unit,Supplies and Services,304403,Equipment and Materials,06-May-2022,000010044586557,AMZNMktplace,5999,Other consumables,24.45,4.08,20.37
Adult and Health Services,Head of Adults,055643,Hawthorn House LD Respite Unit,Supplies and Services,304403,Equipment and Materials,06-May-2022,000010044586565,AMZNMktplace,5999,Other consumables,16.30,2.72,13.58
Regeneration Economy and Growth,Corporate Property and Land,020041,Bldg Serv - Business Development - General,Supplies and Services,304259,Equipment and Materials,06-May-2022,000010044586587,M`BROUGH CCL-TEL PARK,9399,Equipment-purchase and rental,0.30,0.05,0.25
Regeneration Economy and Growth,Corporate Property and Land,020041,Bldg Serv - Business Development - General,Supplies and Services,304259,Equipment and Materials,06-May-2022,000010044586587 - 1,M`BROUGH CCL-TEL PARK,9399,Equipment-purchase and rental,3.30,,3.30
Children and Young Peoples Services,Head of Childrens Social Care,085334,West Rainton Satelite Home,Supplies and Services,352001,Conference Expenses,06-May-2022,000010044586887,HARLE PEEL CARAVANS,7011,Conferencesseminars fees etc,7.00,0.00,7.00
Children and Young Peoples Services,Head of Childrens Social Care,085334,West Rainton Satelite Home,Supplies and Services,324117,Provisions E324,06-May-2022,000010044586889,Selecta U.K. Limited,5499,Catering costs - provisions,1.50,0.00,1.50
Children and Young Peoples Services,Head of Childrens Social Care,085334,West Rainton Satelite Home,Supplies and Services,348037,Subsistence E348,06-May-2022,000010044586893,W2 WORLD BUFFET,5812,Subsistence,51.30,0.00,51.30
Children and Young Peoples Services,Head of Childrens Social Care,085334,West Rainton Satelite Home,Transport,235057,Public Transport,06-May-2022,000010044586897,WALKERGATE CAR PAR,7523,Staff travelling,3.10,0.00,3.10
Children and Young Peoples Services,Head of Childrens Social Care,085363,Childrens Permanence Team,Supplies and Services,338045,Services,06-May-2022,000010044586909,HM PASSPORT OFFICE,9399,Legal expenses 338045,49.00,0.00,49.00
Resources BK0010,Digital Services,065335,School Services - Implementations,Supplies and Services,304639,Equipment and Materials,06-May-2022,000010044586967,AMZNMKTPLACE AMAZON.CO,5999,Technicians-supplies,20.85,3.48,17.37
Resources BK0010,Digital Services,065335,School Services - Implementations,Supplies and Services,304639,Equipment and Materials,06-May-2022,000010044586971,WWW.ONLINELAPTOPBATTER,5045,Technicians-supplies,10.40,0.00,10.40
Resources BK0010,Digital Services,065335,School Services - Implementations,Supplies and Services,304303,Equipment and Materials,06-May-2022,000010044586973,WWW.ALIEXPRESS.COM,5964,Network for resale,19.54,0.00,19.54
Children and Young Peoples Services,Head of Early Help Inclusion & Vulnerable Children.,085957,Secure Management,Supplies and Services,328041,Clothing uniforms and laundry E328,06-May-2022,000010044587077,ARGOS LTD,5310,Clothing uniforms and laundry,77.95,0.00,77.95
Children and Young Peoples Services,Head of Early Help Inclusion & Vulnerable Children.,085957,Secure Management,Supplies and Services,308011,Furniture,06-May-2022,000010044587079,Absolute home Textiles,5719,Furniture repair and replacement,410.46,0.00,410.46
Children and Young Peoples Services,Head of Childrens Social Care,085379,Care Leavers Team 2,Transport,235073,Public Transport,06-May-2022,000010044587153,thetrainline.com,4112,Travel-clients/students/children,65.98,0.00,65.98
Children and Young Peoples Services,Head of Education and Skills,071802,Louisa Cent Nursery,Supplies and Services,324117,Provisions E324,06-May-2022,000010044587391,ASDA GROCERIES ONLINE,5411,Catering costs - provisions,216.23,0.00,216.23
Children and Young Peoples Services,Head of Education and Skills,071802,Louisa Cent Nursery,Supplies and Services,324117,Provisions E324,06-May-2022,000010044587393,ASDA GROCERIES ONLINE,5411,Catering costs - provisions,-18.01,0.00,-18.01
Children and Young Peoples Services,Head of Childrens Social Care,085332,Middlestone Moor CU,Supplies and Services,324117,Provisions E324,06-May-2022,000010044587503,SPAR HURWORTH,5499,Catering costs - provisions,3.30,0.00,3.30
Children and Young Peoples Services,Head of Childrens Social Care,085332,Middlestone Moor CU,Supplies and Services,304999,Equipment and Materials,06-May-2022,000010044587505,HOME BARGAINS,5251,Misc equipment tools and materials,7.06,0.00,7.06
Children and Young Peoples Services,Head of Childrens Social Care,085332,Middlestone Moor CU,Supplies and Services,324117,Provisions E324,06-May-2022,000010044587509,ASDA SUPERSTORE 4987,5411,Catering costs - provisions,18.48,0.00,18.48
Children and Young Peoples Services,Head of Childrens Social Care,085332,Middlestone Moor CU,Supplies and Services,324117,Provisions E324,06-May-2022,000010044587515,ASDA SUPERSTORE,5411,Catering costs - provisions,4.95,0.00,4.95
Children and Young Peoples Services,Head of Childrens Social Care,085332,Middlestone Moor CU,Supplies and Services,348037,Subsistence E348,06-May-2022,000010044587519,MCDONALDS 1555,5814,Subsistence,13.45,0.00,13.45
Children and Young Peoples Services,Head of Early Help Inclusion & Vulnerable Children.,088107,Wheatley Hill & N. Aycliffe Family Centre,Supplies and Services,324117,Provisions E324,06-May-2022,000010044587525,ASDA GROCERIES ONLINE,5411,Catering costs - provisions,44.92,0.00,44.92
Children and Young Peoples Services,Head of Childrens Social Care,085331,New Lea Childrens Home,Supplies and Services,324117,Provisions E324,06-May-2022,000010044587777,TESCO STORES 6334,5411,Catering costs - provisions,17.25,0.00,17.25
Children and Young Peoples Services,Head of Childrens Social Care,085334,West Rainton Satelite Home,Transport,215995,Running Costs of Vehicles,06-May-2022,000010044587815,GULF WEST RAINTON,5541,Vehicle running expenses,3.27,0.00,3.27
Neighbourhoods and Climate Change,Community Protection,011283,Community Action,Supplies and Services,340001,Postages E340,06-May-2022,000010044587851,ROYAL MAIL ONLINE SHOP,9402,Postages,58.90,0.00,58.90
Adult and Health Services,Head of Adults,055310,Positive Journeys (Tudhoe),Supplies and Services,324117,Provisions E324,06-May-2022,000010044587895,ASDA SUPERSTORE 4987,5411,Catering costs - provisions,4.80,0.00,4.80
Regeneration Economy and Growth,Development and Housing,031634,LOCAL LETTINGS AGENCY,Supplies and Services,324117,Provisions E324,06-May-2022,000010044587943,CO-OP GROUP 310015,5411,Catering costs - provisions,30.00,0.00,30.00
Regeneration Economy and Growth,Development and Housing,031634,LOCAL LETTINGS AGENCY,Supplies and Services,324117,Provisions E324,06-May-2022,000010044587949,CO-OP GROUP 310015,5411,Catering costs - provisions,79.00,0.00,79.00
Regeneration Economy and Growth,Corporate Property and Land,010525,Catering - Green Lane,Supplies and Services,384999,Miscellaneous Expenses,06-May-2022,000010044788141,G M PACKAGING UK LIMIT,5046,Other expenses,201.54,33.59,167.95
Regeneration Economy and Growth,Corporate Property and Land,010525,Catering - Green Lane,Supplies and Services,384999,Miscellaneous Expenses,06-May-2022,000010044788141 - 1,G M PACKAGING UK LIMIT,5046,Other expenses,0.05,,0.05
Regeneration Economy and Growth,Corporate Property and Land,021242,Catering - County Hall,Supplies and Services,384999,Miscellaneous Expenses,06-May-2022,000010044788167,G M PACKAGING UK LIMIT,5046,Other expenses,204.26,0.00,204.26
Regeneration Economy and Growth,Culture Sport and Tourism,011265,Empire Theatre (Operations),Supplies and Services,304252,Equipment and Materials,06-May-2022,000010051954669,ANDREW PARNABY MOBILIT,5047,Equipment-repairsserviceinsurance,223.00,0.00,223.00
Children and Young Peoples Services,Head of Early Help Inclusion & Vulnerable Children.,085957,Secure Management,Supplies and Services,328041,Clothing uniforms and laundry E328,06-May-2022,000010051954983,WWW.QUIZCLOTHING.CO.UK,5699,Clothing uniforms and laundry,-16.19,0.00,-16.19
Adult and Health Services,Head of Adults,055643,Hawthorn House LD Respite Unit,Supplies and Services,324117,Provisions E324,06-May-2022,000010052167453,BATLEYS PERTH,5300,Catering costs - provisions,55.98,9.33,46.65
Adult and Health Services,Head of Adults,055643,Hawthorn House LD Respite Unit,Supplies and Services,324117,Provisions E324,06-May-2022,000010052167453 - 1,BATLEYS PERTH,5300,Catering costs - provisions,64.17,,64.17
Neighbourhoods and Climate Change,Environmental Services,011060,C&G - Hardwick Park Catering,Supplies and Services,324117,Provisions E324,06-May-2022,000010052167469,BATLEYS PERTH,5300,Catering costs - provisions,305.52,50.92,254.60
Neighbourhoods and Climate Change,Environmental Services,011060,C&G - Hardwick Park Catering,Supplies and Services,324117,Provisions E324,06-May-2022,000010052167469 - 1,BATLEYS PERTH,5300,Catering costs - provisions,153.00,,153.00
Regeneration Economy and Growth,Corporate Property and Land,010525,Catering - Green Lane,Supplies and Services,324117,Provisions E324,06-May-2022,000010083964883,BATLEYS PERTH,5300,Catering costs - provisions,-9.14,0.00,-9.14
Regeneration Economy and Growth,Business Durham CL0850,030689,Inward Investment and Aftercare,Supplies and Services,342222,Computers and Communications,07-May-2022,000010044584451,FASTHOSTS,4816,Comp hardware purch-network servers,6.34,0.00,6.34
Resources BK0010,Digital Services,065432,Web Development Group,Supplies and Services,342033,Computers and Communications,07-May-2022,000010044584551,WPMU DEV INCSUBFEE.COM,7372,Computer hardware,15.48,0.00,15.48
Children and Young Peoples Services,Head of Childrens Social Care,085341,High Etherley Satelite Home,Supplies and Services,324117,Provisions E324,07-May-2022,000010044584617,SMUGGLERS COVE GOLF,7999,Catering costs - provisions,11.20,0.00,11.20
Children and Young Peoples Services,Head of Childrens Social Care,085341,High Etherley Satelite Home,Supplies and Services,324117,Provisions E324,07-May-2022,000010044584623,SMITHS SEAVIEW CAFE,5812,Catering costs - provisions,41.25,0.00,41.25
Children and Young Peoples Services,Head of Childrens Social Care,085341,High Etherley Satelite Home,Transfer Payments,515140,Social Services Clients,07-May-2022,000010044584627,OCEAN BEACH PLEASURE P,7996,Clothing allowances,40.00,0.00,40.00
Regeneration Economy and Growth,Culture Sport and Tourism,030705,Visit County Durham 030705,Supplies and Services,304259,Equipment and Materials,07-May-2022,000010044584813,FASTHOSTS,4816,Equipment-purchase and rental,6.34,0.00,6.34
Children and Young Peoples Services,Head of Education and Skills,078100,Curric and Professional Development 078100,Supplies and Services,342033,Computers and Communications,07-May-2022,000010044584913,STK Shutterstock,7333,Computer hardware,22.80,0.00,22.80
Regeneration Economy and Growth,Development and Housing,030771,Durham Advance Flexible Fund,Supplies and Services,304403,Equipment and Materials,07-May-2022,000010044584929,AMZNMktplace,5999,Other consumables,99.98,16.66,83.32
Children and Young Peoples Services,Head of Childrens Social Care,085341,High Etherley Satelite Home,Supplies and Services,324117,Provisions E324,07-May-2022,000010044585025,Mrs B Bargains,5411,Catering costs - provisions,19.50,0.00,19.50
Children and Young Peoples Services,Head of Childrens Social Care,085511,Emergency Duty Team,Employees,040149,Recruitment Instruction and Training,07-May-2022,000010044585293,PREMIER INN,3811,Training-all costs,124.00,0.00,124.00
Children and Young Peoples Services,Head of Childrens Social Care,085347,Solo Home The Manse,Supplies and Services,384999,Miscellaneous Expenses,07-May-2022,000010044585379,Amazon.co.uk 2D5RN1VI4,5969,Other expenses,5.95,0.00,5.95
Children and Young Peoples Services,Head of Childrens Social Care,085347,Solo Home The Manse,Supplies and Services,384237,Miscellaneous Expenses,07-May-2022,000010044585389,SumUp Planet Funland,7999,Recreational exps outings parties,10.00,0.00,10.00
Children and Young Peoples Services,Head of Childrens Social Care,085347,Solo Home The Manse,Supplies and Services,324117,Provisions E324,07-May-2022,000010044585395,TESCO STORES 2371,5411,Catering costs - provisions,61.02,0.00,61.02
Children and Young Peoples Services,Head of Childrens Social Care,085347,Solo Home The Manse,Supplies and Services,348037,Subsistence E348,07-May-2022,000010044585403,Fizzy Izzy`s,5812,Subsistence,7.20,0.00,7.20
Children and Young Peoples Services,Head of Childrens Social Care,085358,Orchard House Sacriston Solo Home,Supplies and Services,372009,Subscriptions E372,07-May-2022,000010044585515,NETFLIX.COM,4899,Subscriptions 372009,15.99,0.00,15.99
Children and Young Peoples Services,Head of Childrens Social Care,085341,High Etherley Satelite Home,Supplies and Services,304999,Equipment and Materials,07-May-2022,000010044585691,CROWS EVENTS & ATTRACT,7991,Misc equipment tools and materials,9.00,0.00,9.00
Children and Young Peoples Services,Head of Early Help Inclusion & Vulnerable Children.,085957,Secure Management,Supplies and Services,324117,Provisions E324,07-May-2022,000010044585943,TESCO STORES 6329,5411,Catering costs - provisions,75.08,0.00,75.08
Children and Young Peoples Services,Head of Childrens Social Care,085342,16 Hickstead Rise (previously 9 Cedar Ave),Supplies and Services,324117,Provisions E324,07-May-2022,000010044586601,TESCO STORES 2916,5411,Catering costs - provisions,53.81,0.00,53.81
Children and Young Peoples Services,Head of Childrens Social Care,085331,New Lea Childrens Home,Supplies and Services,324117,Provisions E324,07-May-2022,000010044586761,B&M 388 - METRO,5399,Catering costs - provisions,19.69,0.00,19.69
Children and Young Peoples Services,Head of Childrens Social Care,085331,New Lea Childrens Home,Supplies and Services,348037,Subsistence E348,07-May-2022,000010044586769,MCDONALDS,5814,Subsistence,8.49,0.00,8.49
Children and Young Peoples Services,Head of Childrens Social Care,085331,New Lea Childrens Home,Supplies and Services,304999,Equipment and Materials,07-May-2022,000010044586781,Costco Wholesale #109,7278,Misc equipment tools and materials,89.10,0.00,89.10
Children and Young Peoples Services,Head of Childrens Social Care,085334,West Rainton Satelite Home,Supplies and Services,384999,Miscellaneous Expenses,07-May-2022,000010044586901,CRAFTY CORNER,5970,Other expenses,35.00,0.00,35.00
Children and Young Peoples Services,Head of Childrens Social Care,085334,West Rainton Satelite Home,Supplies and Services,348037,Subsistence E348,07-May-2022,000010044586905,MINCHELLA`S FISH & CHI,5812,Subsistence,16.70,0.00,16.70
Children and Young Peoples Services,Head of Childrens Social Care,085334,West Rainton Satelite Home,Supplies and Services,328041,Clothing uniforms and laundry E328,07-May-2022,000010044586907,OCEAN BEACH PLEASURE P,7996,Clothing uniforms and laundry,20.00,0.00,20.00
Children and Young Peoples Services,Head of Childrens Social Care,085351,Framwellgate Moor CU,Supplies and Services,324117,Provisions E324,07-May-2022,000010044587329,SQ ARCHERS,5499,Catering costs - provisions,12.75,0.00,12.75
Children and Young Peoples Services,Head of Childrens Social Care,085351,Framwellgate Moor CU,Supplies and Services,324117,Provisions E324,07-May-2022,000010044587335,TESCO STORES 2916,5411,Catering costs - provisions,160.93,0.00,160.93
Children and Young Peoples Services,Head of Childrens Social Care,085351,Framwellgate Moor CU,Supplies and Services,324117,Provisions E324,07-May-2022,000010044587347,TESCO STORES 2916,5411,Catering costs - provisions,1.00,0.00,1.00
Regeneration Economy and Growth,Culture Sport and Tourism,054233,Bishop Auckland Town Hall Library,Supplies and Services,324117,Provisions E324,07-May-2022,000010044587555,HERON FOODS,5411,Catering costs - provisions,10.70,0.00,10.70
Regeneration Economy and Growth,Culture Sport and Tourism,054233,Bishop Auckland Town Hall Library,Supplies and Services,324117,Provisions E324,07-May-2022,000010044587565,ASDA STORES,5411,Catering costs - provisions,42.00,0.00,42.00
Children and Young Peoples Services,Head of Childrens Social Care,085352,New Childrens Home (previously Tow Law),Supplies and Services,328041,Clothing uniforms and laundry E328,07-May-2022,000010044587609,ARGOS LTD,5310,Clothing uniforms and laundry,54.94,0.00,54.94
Children and Young Peoples Services,Head of Childrens Social Care,085332,Middlestone Moor CU,Supplies and Services,348037,Subsistence E348,07-May-2022,000010044587789,DOMINOS PIZZA,5812,Subsistence,36.70,0.00,36.70
Regeneration Economy and Growth,Communications Management,060270,Communications and Marketing,Supplies and Services,372009,Subscriptions E372,07-May-2022,000010044587857,LinkedIn 7836105054,7311,Subscriptions 372009,40.04,0.00,40.04
Children and Young Peoples Services,Head of Childrens Social Care,085551,Short Break Services-Park Hse Sher,Supplies and Services,324117,Provisions E324,07-May-2022,000010044588029,ICELAND FOODS,5411,Catering costs - provisions,116.09,0.00,116.09
Children and Young Peoples Services,Head of Childrens Social Care,085341,High Etherley Satelite Home,Supplies and Services,324117,Provisions E324,08-May-2022,000010044584491,SPAR - GEM WEST AUCKLA,5411,Catering costs - provisions,9.98,0.00,9.98
Children and Young Peoples Services,Head of Education and Skills,071801,Selby Cottage Childcare Centre,Supplies and Services,304999,Equipment and Materials,08-May-2022,000010044584523,Amazon Prime 2D8YA85J4,5968,Misc equipment tools and materials,7.99,0.00,7.99
Resources BK0010,Legal & Democratic Services,067910,Democratic Representation 067910,Supplies and Services,304259,Equipment and Materials,08-May-2022,000010044584555,APPLE.COM/UK,5732,Equipment-purchase and rental,19.00,0.00,19.00
Resources BK0010,Legal & Democratic Services,067910,Democratic Representation 067910,Supplies and Services,304403,Equipment and Materials,08-May-2022,000010044584561,AMZNMktplace,5999,Other consumables,13.92,2.32,11.60
Resources BK0010,Legal & Democratic Services,067910,Democratic Representation 067910,Supplies and Services,304403,Equipment and Materials,08-May-2022,000010044584561 - 1,AMZNMktplace,5999,Other consumables,0.04,,0.04
Resources BK0010,Digital Services,065303,Design & Print - Design,Supplies and Services,342053,Computers and Communications,08-May-2022,000010044584567,ISSUU,5045,Computer software,342.18,0.00,342.18
Children and Young Peoples Services,Head of Childrens Social Care,085341,High Etherley Satelite Home,Supplies and Services,348037,Subsistence E348,08-May-2022,000010044584653,KFC WEST AUCKLAND,5814,Subsistence,29.96,0.00,29.96
Children and Young Peoples Services,Head of Childrens Social Care,085341,High Etherley Satelite Home,Supplies and Services,304999,Equipment and Materials,08-May-2022,000010044584661,PLANET LEISURE,7933,Misc equipment tools and materials,6.60,0.00,6.60
Regeneration Economy and Growth,Culture Sport and Tourism,054815,Gala Theatre Stage School,Supplies and Services,338047,Services,08-May-2022,000010044584777,AMZNMktplace,5999,Direct production costs,83.86,14.00,69.86
Regeneration Economy and Growth,Culture Sport and Tourism,011265,Empire Theatre (Operations),Supplies and Services,304252,Equipment and Materials,08-May-2022,000010044584789,AMZNMktplace,5999,Equipment-repairsserviceinsurance,88.70,14.78,73.92
Regeneration Economy and Growth,Culture Sport and Tourism,011265,Empire Theatre (Operations),Supplies and Services,304252,Equipment and Materials,08-May-2022,000010044584797,AMZNMktplace,5999,Equipment-repairsserviceinsurance,88.70,14.78,73.92
Regeneration Economy and Growth,Culture Sport and Tourism,054731,Killhope Lead Mining Centre,Supplies and Services,304259,Equipment and Materials,08-May-2022,000010044584803,AMZNBusiness 2D9TH7HO4,5999,Equipment-purchase and rental,67.91,11.32,56.59
Regeneration Economy and Growth,Culture Sport and Tourism,030712,VCD - Project Delivery,Supplies and Services,384199,Miscellaneous Expenses,08-May-2022,000010044584817,PAYPAL WEBALON,5817,Other hired and contracted services,6.37,0.00,6.37
Regeneration Economy and Growth,Development and Housing,030771,Durham Advance Flexible Fund,Supplies and Services,304403,Equipment and Materials,08-May-2022,000010044584933,AMZNMktplace,5999,Other consumables,9.99,1.67,8.32
Regeneration Economy and Growth,Development and Housing,030771,Durham Advance Flexible Fund,Supplies and Services,304403,Equipment and Materials,08-May-2022,000010044584937,AMZNMktplace,5999,Other consumables,8.57,1.43,7.14
Children and Young Peoples Services,Head of Childrens Social Care,085342,16 Hickstead Rise (previously 9 Cedar Ave),Supplies and Services,324117,Provisions E324,08-May-2022,000010044585557,ASDA GROCERIES ONLINE,5411,Catering costs - provisions,73.45,0.00,73.45
Neighbourhoods and Climate Change,Environmental Services,026591,C&G - Hardwick Park,Supplies and Services,332047,Printing Stationery and Gen Off Exps,08-May-2022,000010044585669,AMZNBUSINESS 2D6Y445C4,5999,Stationery,14.45,2.41,12.04
Neighbourhoods and Climate Change,Environmental Services,026591,C&G - Hardwick Park,Supplies and Services,332047,Printing Stationery and Gen Off Exps,08-May-2022,000010044585677,AMZNBUSINESS 2D8YK6544,5999,Stationery,14.45,2.41,12.04
Children and Young Peoples Services,Head of Early Help Inclusion & Vulnerable Children.,085957,Secure Management,Supplies and Services,324117,Provisions E324,08-May-2022,000010044585951,TESCO STORES 6329,5411,Catering costs - provisions,152.25,0.00,152.25
Children and Young Peoples Services,Head of Early Help Inclusion & Vulnerable Children.,088106,Ferryhill & N. Aycliffe Intensive Family Support Team,Supplies and Services,364301,Grants to Voluntary Organisations,08-May-2022,000010044586083,AMZNMktplace,5999,Hardship,29.99,5.00,24.99
Children and Young Peoples Services,Head of Early Help Inclusion & Vulnerable Children.,071746,Newton Aycliffe Childrens Centre,Supplies and Services,304259,Equipment and Materials,08-May-2022,000010044586091,AMZNBUSINESS 2D1E655H4,5999,Equipment-purchase and rental,58.66,9.78,48.88
Children and Young Peoples Services,Head of Early Help Inclusion & Vulnerable Children.,071449,Ferryhill One Point Hub,Supplies and Services,304259,Equipment and Materials,08-May-2022,000010044586099,AMZNBUSINESS 2D88R75Q4,5999,Equipment-purchase and rental,58.66,9.78,48.88
Children and Young Peoples Services,Head of Childrens Social Care,085352,New Childrens Home (previously Tow Law),Supplies and Services,304999,Equipment and Materials,08-May-2022,000010044586297,WWW.PLANET-LEISURE.CO.,7933,Misc equipment tools and materials,17.90,0.00,17.90
Children and Young Peoples Services,Head of Childrens Social Care,085352,New Childrens Home (previously Tow Law),Supplies and Services,304999,Equipment and Materials,08-May-2022,000010044586303,SAVERS HEALTH & BEAUTY,5912,Misc equipment tools and materials,0.78,0.00,0.78
Children and Young Peoples Services,Head of Childrens Social Care,085331,New Lea Childrens Home,Supplies and Services,304403,Equipment and Materials,08-May-2022,000010044586775,AMZNMktplace,5999,Other consumables,116.45,0.00,116.45
Resources BK0010,Digital Services,065335,School Services - Implementations,Supplies and Services,304639,Equipment and Materials,08-May-2022,000010044586979,AMZNMktplace,5999,Technicians-supplies,29.98,5.00,24.98
Children and Young Peoples Services,Head of Early Help Inclusion & Vulnerable Children.,085962,Aycliffe Secure - Durham,Supplies and Services,304403,Equipment and Materials,08-May-2022,000010044587545,AMZNMktplace,5999,Other consumables,6.65,1.11,5.54
Regeneration Economy and Growth,Communications Management,060270,Communications and Marketing,Supplies and Services,372009,Subscriptions E372,08-May-2022,000010044587863,FACEBK FPZ49DT4B2,7311,Subscriptions 372009,500.00,0.00,500.00
Resources BK0010,Resources Management CK0450,069000,Resources Management 069000,Supplies and Services,344033,Telephones,08-May-2022,000010044587867,APPLE.COM/BILL,5735,Telephones general-all costs,0.79,0.00,0.79
Children and Young Peoples Services,Head of Childrens Social Care,085551,Short Break Services-Park Hse Sher,Supplies and Services,324117,Provisions E324,08-May-2022,000010044588033,ICELAND FOODS,5411,Catering costs - provisions,-6.50,0.00,-6.50
Children and Young Peoples Services,Head of Childrens Social Care,085341,High Etherley Satelite Home,Supplies and Services,304221,Equipment and Materials,08-May-2022,000010051954513,HOMEBASE LTD 822,5200,Direct materials,12.55,0.00,12.55
Children and Young Peoples Services,Head of Childrens Social Care,085341,High Etherley Satelite Home,Supplies and Services,304221,Equipment and Materials,08-May-2022,000010051954517,HOMEBASE LTD 822,5200,Direct materials,6.00,0.00,6.00
Regeneration Economy and Growth,Culture Sport and Tourism,030705,Visit County Durham 030705,Supplies and Services,304259,Equipment and Materials,08-May-2022,000010051954679,FASTHOSTS,4816,Equipment-purchase and rental,132.00,0.00,132.00
Children and Young Peoples Services,Head of Childrens Social Care,085331,New Lea Childrens Home,Supplies and Services,304403,Equipment and Materials,08-May-2022,000010051955683,AMZNMKTPLACE AMAZON.CO,5999,Other consumables,9.99,0.00,9.99
Children and Young Peoples Services,Head of Childrens Social Care,085334,West Rainton Satelite Home,Supplies and Services,384999,Miscellaneous Expenses,08-May-2022,000010051955841,HOLLYWOOD BOWL,7997,Other expenses,40.00,0.00,40.00
Resources BK0010,Digital Services,065335,School Services - Implementations,Supplies and Services,304639,Equipment and Materials,08-May-2022,000010051955891,AMZNMKTPLACE AMAZON.CO,5999,Technicians-supplies,47.68,7.95,39.73
Resources BK0010,Digital Services,065432,Web Development Group,Supplies and Services,342033,Computers and Communications,09-May-2022,000010044584573,WPMU DEV INCSUBFEE.COM,7372,Computer hardware,0.43,0.00,0.43
Resources BK0010,Digital Services,065303,Design & Print - Design,Supplies and Services,342053,Computers and Communications,09-May-2022,000010044584575,ISSUU,5045,Computer software,9.41,0.00,9.41
Children and Young Peoples Services,Head of Early Help Inclusion & Vulnerable Children.,085962,Aycliffe Secure - Durham,Supplies and Services,304403,Equipment and Materials,09-May-2022,000010044585713,AMZNMktplace,5999,Other consumables,9.98,1.66,8.32
Children and Young Peoples Services,Head of Early Help Inclusion & Vulnerable Children.,085962,Aycliffe Secure - Durham,Supplies and Services,304403,Equipment and Materials,09-May-2022,000010044585719,AMZNMktplace,5999,Other consumables,12.98,2.17,10.81
Children and Young Peoples Services,Head of Childrens Social Care,085342,16 Hickstead Rise (previously 9 Cedar Ave),Supplies and Services,372009,Subscriptions E372,09-May-2022,000010044586605,NETFLIX.COM,4899,Subscriptions 372009,15.99,0.00,15.99
Regeneration Economy and Growth,Business Durham CL0850,030689,Inward Investment and Aftercare,Supplies and Services,304999,Equipment and Materials,09-May-2022,000010051954499,MAILCHIMP MISC,5968,Misc equipment tools and materials,95.80,0.00,95.80
Children and Young Peoples Services,Head of Education and Skills,071801,Selby Cottage Childcare Centre,Supplies and Services,324117,Provisions E324,09-May-2022,000010051954531,B&M 519 - CONSETT,5399,Catering costs - provisions,104.73,0.00,104.73
Children and Young Peoples Services,Head of Education and Skills,071801,Selby Cottage Childcare Centre,Supplies and Services,324117,Provisions E324,09-May-2022,000010051954537,TESCO STORES 4358,5411,Catering costs - provisions,16.85,0.00,16.85
Children and Young Peoples Services,Head of Early Help Inclusion & Vulnerable Children.,085957,Secure Management,Supplies and Services,340001,Postages E340,09-May-2022,000010051954545,PARCELFORCE WL,4215,Postages,36.60,0.00,36.60
Neighbourhoods and Climate Change,Environmental Services,010909,C&G - Technical & Service Development Team,Supplies and Services,304403,Equipment and Materials,09-May-2022,000010051954549,AMZNMktplace,5999,Other consumables,6.19,1.03,5.16
Dedicated Schools Grant BG0015,DSG Schools Block,417625,Greenfield Community College 004176-Non Stat Training,Employees,040149,Recruitment Instruction and Training,09-May-2022,000010051954557,NSPCC,8299,Training-all costs,30.00,0.00,30.00
Children and Young Peoples Services,Head of Education and Skills,075033,DurhamWorks 3,Supplies and Services,364301,Grants to Voluntary Organisations,09-May-2022,000010051954637,WWW.GONORTHEAST.CO.UK,4111,Hardship,15.00,0.00,15.00
Children and Young Peoples Services,Head of Education and Skills,075035,DurhamDirections Re-engagement,Supplies and Services,364301,Grants to Voluntary Organisations,09-May-2022,000010051954643,WWW.GONORTHEAST.CO.UK,4111,Hardship,15.00,0.00,15.00
Children and Young Peoples Services,Head of Education and Skills,075033,DurhamWorks 3,Supplies and Services,364301,Grants to Voluntary Organisations,09-May-2022,000010051954649,WWW.GONORTHEAST.CO.UK,4111,Hardship,15.00,0.00,15.00
Children and Young Peoples Services,Head of Education and Skills,075033,DurhamWorks 3,Supplies and Services,364301,Grants to Voluntary Organisations,09-May-2022,000010051954653,WWW.GONORTHEAST.CO.UK,4111,Hardship,15.00,0.00,15.00
Children and Young Peoples Services,Head of Childrens Social Care,085332,Middlestone Moor CU,Supplies and Services,324117,Provisions E324,09-May-2022,000010051954721,TESCO STORES 2371,5411,Catering costs - provisions,186.04,0.00,186.04
Children and Young Peoples Services,Head of Education and Skills,078100,Curric and Professional Development 078100,Supplies and Services,304403,Equipment and Materials,09-May-2022,000010051954791,ADOBE PRODUCTS,5734,Other consumables,25.28,0.00,25.28
Children and Young Peoples Services,Head of Childrens Social Care,085334,West Rainton Satelite Home,Supplies and Services,384999,Miscellaneous Expenses,09-May-2022,000010051954807,Lush UK,5977,Other expenses,5.55,0.00,5.55
Children and Young Peoples Services,Head of Childrens Social Care,085334,West Rainton Satelite Home,Supplies and Services,348037,Subsistence E348,09-May-2022,000010051954813,BUFFET KING,5812,Subsistence,48.90,0.00,48.90
Children and Young Peoples Services,Head of Childrens Social Care,085334,West Rainton Satelite Home,Supplies and Services,384237,Miscellaneous Expenses,09-May-2022,000010051954821,InflataNation,7999,Recreational exps outings parties,5.00,0.00,5.00
Children and Young Peoples Services,Head of Childrens Social Care,085334,West Rainton Satelite Home,Supplies and Services,324117,Provisions E324,09-May-2022,000010051954827,TESCO STORES 2371,5411,Catering costs - provisions,101.57,0.00,101.57
Children and Young Peoples Services,Head of Childrens Social Care,085334,West Rainton Satelite Home,Supplies and Services,384237,Miscellaneous Expenses,09-May-2022,000010051954831,INFLATA NATION NEWCAST,7999,Recreational exps outings parties,29.97,0.00,29.97
Children and Young Peoples Services,Head of Childrens Social Care,085341,High Etherley Satelite Home,Supplies and Services,324117,Provisions E324,09-May-2022,000010051954845,TESCO STORES 6329,5411,Catering costs - provisions,5.34,0.00,5.34
Regeneration Economy and Growth,Development and Housing,030776,LINKCD Flexible Fund,Transport,235057,Public Transport,09-May-2022,000010051954927,WWW.GONORTHEAST.CO.UK,4111,Staff travelling,6.00,0.00,6.00
Children and Young Peoples Services,Head of Early Help Inclusion & Vulnerable Children.,088105,W/Close and Willington Family Centre,Supplies and Services,324117,Provisions E324,09-May-2022,000010051954937,ASDA GROCERIES ONLINE,5411,Catering costs - provisions,53.95,0.00,53.95
Resources BK0010,Digital Services,065432,Web Development Group,Supplies and Services,372009,Subscriptions E372,09-May-2022,000010051955059,NOMINET UK,7392,Subscriptions 372009,23.40,3.90,19.50
Resources BK0010,Digital Services,065432,Web Development Group,Supplies and Services,372009,Subscriptions E372,09-May-2022,000010051955063,NOMINET UK,7392,Subscriptions 372009,70.20,11.70,58.50
Children and Young Peoples Services,Head of Education and Skills,071732,Dean Bank Childcare,Supplies and Services,304259,Equipment and Materials,09-May-2022,000010051955077,Amazon Music 2D4U19884,5735,Equipment-purchase and rental,14.99,0.00,14.99
Children and Young Peoples Services,Head of Education and Skills,071732,Dean Bank Childcare,Supplies and Services,324117,Provisions E324,09-May-2022,000010051955083,ASDA GROCERIES ONLINE,5411,Catering costs - provisions,109.44,0.00,109.44
Children and Young Peoples Services,Head of Education and Skills,071732,Dean Bank Childcare,Supplies and Services,324117,Provisions E324,09-May-2022,000010051955085,ASDA GROCERIES ONLINE,5411,Catering costs - provisions,10.65,0.00,10.65
Children and Young Peoples Services,Head of Education and Skills,071732,Dean Bank Childcare,Supplies and Services,324117,Provisions E324,09-May-2022,000010051955091,TESCO STORES 2916,5411,Catering costs - provisions,41.30,0.00,41.30
Regeneration Economy and Growth,Business Durham CL0850,030674,Business Services General,Transport,235057,Public Transport,09-May-2022,000010051955121,LOCAL & NATIONAL,4789,Staff travelling,410.00,0.00,410.00
Children and Young Peoples Services,Head of Early Help Inclusion & Vulnerable Children.,085962,Aycliffe Secure - Durham,Supplies and Services,304403,Equipment and Materials,09-May-2022,000010051955129,AMZNMktplace,5999,Other consumables,3.99,0.67,3.32
Children and Young Peoples Services,Head of Early Help Inclusion & Vulnerable Children.,085962,Aycliffe Secure - Durham,Supplies and Services,342033,Computers and Communications,09-May-2022,000010051955147,VERY,5964,Computer hardware,27.99,0.00,27.99
Regeneration Economy and Growth,Development and Housing,030776,LINKCD Flexible Fund,Supplies and Services,384999,Miscellaneous Expenses,09-May-2022,000010051955183,CJP NAIL SYSTEMS LTD,5977,Other expenses,175.00,0.00,175.00
Regeneration Economy and Growth,Development and Housing,030776,LINKCD Flexible Fund,Supplies and Services,304403,Equipment and Materials,09-May-2022,000010051955191,AMZNMktplace,5999,Other consumables,303.66,0.00,303.66
Children and Young Peoples Services,Head of Childrens Social Care,085511,Emergency Duty Team,Supplies and Services,304403,Equipment and Materials,09-May-2022,000010051955197,AMZNMktplace,5999,Other consumables,31.80,5.30,26.50
Children and Young Peoples Services,Head of Childrens Social Care,085517,Supporting Solutions Service (Edge of Care),Supplies and Services,304403,Equipment and Materials,09-May-2022,000010051955203,AMZNMktplace,5999,Other consumables,31.80,5.30,26.50
Children and Young Peoples Services,Head of Childrens Social Care,085520,Rapid Response Team CYPS,Supplies and Services,304403,Equipment and Materials,09-May-2022,000010051955207,AMZNMktplace,5999,Other consumables,31.80,5.30,26.50
Children and Young Peoples Services,Head of Childrens Social Care,085521,Adolescent Safeguarding and Exploitation Team - ASET,Supplies and Services,304403,Equipment and Materials,09-May-2022,000010051955209,AMZNMKTPLACE AMAZON.CO,5999,Other consumables,31.80,5.30,26.50
Regeneration Economy and Growth,Development and Housing,030771,Durham Advance Flexible Fund,Transport,235057,Public Transport,09-May-2022,000010051955325,WWW.GONORTHEAST.CO.UK,4111,Staff travelling,34.00,0.00,34.00
Regeneration Economy and Growth,Development and Housing,030771,Durham Advance Flexible Fund,Transport,235057,Public Transport,09-May-2022,000010051955329,WWW.GONORTHEAST.CO.UK,4111,Staff travelling,20.00,0.00,20.00
Neighbourhoods and Climate Change,Environmental Services,010367,C&G - South Grounds Maintenance,Supplies and Services,304221,Equipment and Materials,09-May-2022,000010051955367,CARRS BILLINGTON SPENN,5599,Direct materials,108.00,0.00,108.00
Neighbourhoods and Climate Change,Environmental Services,031238,North Pennines - Tees Swale,Supplies and Services,304403,Equipment and Materials,09-May-2022,000010051955401,AMZNMktplace,5999,Other consumables,8.48,1.41,7.07
Children and Young Peoples Services,Head of Childrens Social Care,085331,New Lea Childrens Home,Supplies and Services,304403,Equipment and Materials,09-May-2022,000010051955419,SP ME TO YOU,5734,Other consumables,29.21,0.00,29.21
Children and Young Peoples Services,Head of Childrens Social Care,085331,New Lea Childrens Home,Supplies and Services,324117,Provisions E324,09-May-2022,000010051955425,PPOINT_ PVR and CO LTD,5499,Catering costs - provisions,5.10,0.00,5.10
Regeneration Economy and Growth,Culture Sport and Tourism,060131,County Records,Supplies and Services,352001,Conference Expenses,09-May-2022,000010051955507,PAYPAL POSDISPLAY,7392,Conferencesseminars fees etc,42.59,0.00,42.59
Children and Young Peoples Services,Head of Childrens Social Care,085551,Short Break Services-Park Hse Sher,Supplies and Services,324117,Provisions E324,09-May-2022,000010051955521,ICELAND,5411,Catering costs - provisions,6.50,0.00,6.50
Adult and Health Services,Head of Adults,055643,Hawthorn House LD Respite Unit,Supplies and Services,324117,Provisions E324,09-May-2022,000010051955639,WILKO RETAIL LIMITED,5399,Catering costs - provisions,17.60,0.00,17.60
Regeneration Economy and Growth,Development and Housing,030776,LINKCD Flexible Fund,Transport,235057,Public Transport,09-May-2022,000010051955657,PRINCE BISHOP SHOPPING,7523,Staff travelling,2.10,0.00,2.10
Regeneration Economy and Growth,Development and Housing,030776,LINKCD Flexible Fund,Supplies and Services,324117,Provisions E324,09-May-2022,000010051955661,TESCO STORES 6029,5411,Catering costs - provisions,30.00,0.00,30.00
Children and Young Peoples Services,Head of Education and Skills,071732,Dean Bank Childcare,Supplies and Services,324117,Provisions E324,09-May-2022,000010051955731,ASDA GROCERIES ONLINE,5411,Catering costs - provisions,47.91,0.00,47.91
Neighbourhoods and Climate Change,Environmental Services,031239,North Pennines - Carbon Connect,Supplies and Services,348037,Subsistence E348,09-May-2022,000010051955777,SUBWAY,5814,Subsistence,5.49,0.00,5.49
Neighbourhoods and Climate Change,Environmental Services,031223,North Pennines Dark Skies,Supplies and Services,348037,Subsistence E348,09-May-2022,000010051955785,VICTORIA GARDEN,5812,Subsistence,177.55,0.00,177.55
Neighbourhoods and Climate Change,Environmental Services,031239,North Pennines - Carbon Connect,Transport,235057,Public Transport,09-May-2022,000010051955787,MIDLINK M7/M8 LTD,4784,Staff travelling,3.00,0.00,3.00
Neighbourhoods and Climate Change,Environmental Services,031239,North Pennines - Carbon Connect,Transport,235057,Public Transport,09-May-2022,000010051955793,DUBLIN PORT TUNNEL,4784,Staff travelling,8.59,0.00,8.59
Children and Young Peoples Services,Head of Education and Skills,078550,Discretionary Learning Support,Supplies and Services,304259,Equipment and Materials,09-May-2022,000010051955867,SMARTY CO UK,4814,Equipment-purchase and rental,6.00,0.00,6.00
Children and Young Peoples Services,Head of Early Help Inclusion & Vulnerable Children.,085957,Secure Management,Supplies and Services,384999,Miscellaneous Expenses,09-May-2022,000010051955949,Amazon.co.uk 2D5PH9QE4,5969,Other expenses,3.42,0.57,2.85
Children and Young Peoples Services,Head of Early Help Inclusion & Vulnerable Children.,085957,Secure Management,Supplies and Services,384999,Miscellaneous Expenses,09-May-2022,000010051955949 - 1,Amazon.co.uk 2D5PH9QE4,5969,Other expenses,49.58,,49.58
Children and Young Peoples Services,Head of Early Help Inclusion & Vulnerable Children.,085957,Secure Management,Supplies and Services,304403,Equipment and Materials,09-May-2022,000010051955953,AMZNMktplace,5999,Other consumables,29.80,4.98,24.82
Children and Young Peoples Services,Head of Early Help Inclusion & Vulnerable Children.,085957,Secure Management,Supplies and Services,304999,Equipment and Materials,09-May-2022,000010051955957,MICROSOFT ULTIMATE 1 M,5816,Misc equipment tools and materials,10.99,0.00,10.99
Children and Young Peoples Services,Head of Early Help Inclusion & Vulnerable Children.,085957,Secure Management,Supplies and Services,324117,Provisions E324,09-May-2022,000010051955963,TESCO STORES 6329,5411,Catering costs - provisions,97.62,0.00,97.62
Children and Young Peoples Services,Head of Early Help Inclusion & Vulnerable Children.,085957,Secure Management,Supplies and Services,304999,Equipment and Materials,09-May-2022,000010051955967,SPECSAVERS,8043,Misc equipment tools and materials,99.10,0.00,99.10
Children and Young Peoples Services,Head of Childrens Social Care,085351,Framwellgate Moor CU,Supplies and Services,324117,Provisions E324,09-May-2022,000010051956089,STARBUCKS THINFORD,5499,Catering costs - provisions,8.25,0.00,8.25
Children and Young Peoples Services,Head of Education and Skills,071802,Louisa Cent Nursery,Supplies and Services,324117,Provisions E324,09-May-2022,000010051956095,ASDA SUPERSTORE,5411,Catering costs - provisions,33.31,0.00,33.31
Children and Young Peoples Services,Head of Childrens Social Care,085614,Families First West Durham,Supplies and Services,364340,Grants to Voluntary Organisations,09-May-2022,000010051956143,WWW.GONORTHEAST.CO.UK,4111,Contact expenses,34.00,0.00,34.00
Children and Young Peoples Services,Head of Childrens Social Care,085614,Families First West Durham,Supplies and Services,364340,Grants to Voluntary Organisations,09-May-2022,000010051956149,WWW.GONORTHEAST.CO.UK,4111,Contact expenses,34.00,0.00,34.00
Children and Young Peoples Services,Head of Childrens Social Care,085633,Families First Chester-Le-Street,Supplies and Services,338045,Services,09-May-2022,000010051956157,MANCHESTER CC INTE,9399,Legal expenses 338045,11.00,0.00,11.00
Children and Young Peoples Services,Head of Childrens Social Care,085633,Families First Chester-Le-Street,Supplies and Services,338045,Services,09-May-2022,000010051956161,MANCHESTER CC INTE,9399,Legal expenses 338045,11.00,0.00,11.00
Regeneration Economy and Growth,Culture Sport and Tourism,011263,Louisa Centre 011263,Supplies and Services,304403,Equipment and Materials,09-May-2022,000010051956225,AMZNMktplace,5999,Other consumables,59.00,9.83,49.17
Children and Young Peoples Services,Head of Early Help Inclusion & Vulnerable Children.,085962,Aycliffe Secure - Durham,Supplies and Services,304403,Equipment and Materials,09-May-2022,000010051956235,AMZNMktplace,5999,Other consumables,7.92,1.32,6.60
Regeneration Economy and Growth,Culture Sport and Tourism,054233,Bishop Auckland Town Hall Library,Supplies and Services,324117,Provisions E324,09-May-2022,000010051956243,HERON FOODS,5411,Catering costs - provisions,18.66,0.00,18.66
Children and Young Peoples Services,Head of Childrens Social Care,085352,New Childrens Home (previously Tow Law),Supplies and Services,324117,Provisions E324,09-May-2022,000010051956267,ASDA GROCERIES ONLINE,5411,Catering costs - provisions,195.23,0.00,195.23
Regeneration Economy and Growth,Development and Housing,030776,LINKCD Flexible Fund,Supplies and Services,324117,Provisions E324,09-May-2022,000010051956287,ASDA STORES LTD,5411,Catering costs - provisions,2.75,0.00,2.75
Children and Young Peoples Services,Head of Childrens Social Care,085334,West Rainton Satelite Home,Transport,235057,Public Transport,09-May-2022,000010051956305,GO NORTH EAST LIMITED,4131,Staff travelling,30.00,0.00,30.00
Children and Young Peoples Services,Head of Childrens Social Care,085334,West Rainton Satelite Home,Supplies and Services,324117,Provisions E324,09-May-2022,000010051956311,JULIES DELI,5499,Catering costs - provisions,10.50,0.00,10.50
Regeneration Economy and Growth,Development and Housing,031634,LOCAL LETTINGS AGENCY,Premises,120037,Energy Costs,09-May-2022,000010051956343,OCTOPUS ENERGY LTD,4900,Other fuels,18.41,0.00,18.41
Neighbourhoods and Climate Change,Environmental Services,031200,North Pennines Core,Supplies and Services,308011,Furniture,09-May-2022,000010051956385,IKEA LTD SHOP ONLINE,5712,Furniture repair and replacement,62.50,0.00,62.50
Regeneration Economy and Growth,Corporate Property and Land,030691,Catering - Durham Dales Centre,Supplies and Services,324117,Provisions E324,09-May-2022,000010051956425,TESCO STORES 6329,5411,Catering costs - provisions,31.88,0.00,31.88
Children and Young Peoples Services,Head of Childrens Social Care,085634,Families First Easington,Transport,235057,Public Transport,09-May-2022,000010051956433,WWW.GONORTHEAST.CO.UK,4111,Staff travelling,25.00,0.00,25.00
Children and Young Peoples Services,Head of Childrens Social Care,085634,Families First Easington,Transport,235057,Public Transport,09-May-2022,000010051956439,WWW.GONORTHEAST.CO.UK,4111,Staff travelling,25.00,0.00,25.00
Regeneration Economy and Growth,Corporate Property and Land,010525,Catering - Green Lane,Supplies and Services,324117,Provisions E324,09-May-2022,000010052167401,FREEMAN CATERING BUTCH,5422,Catering costs - provisions,52.31,0.00,52.31
Regeneration Economy and Growth,Corporate Property and Land,010525,Catering - Green Lane,Supplies and Services,324117,Provisions E324,09-May-2022,000010052167411,JR HOLLAND FOODSERVICE,5499,Catering costs - provisions,73.50,0.00,73.50
Regeneration Economy and Growth,Corporate Property and Land,011275,Catering -Durham Leadership Centre,Supplies and Services,324117,Provisions E324,09-May-2022,000010052167417,JR HOLLAND FOODSERVICE,5499,Catering costs - provisions,109.66,0.00,109.66
Regeneration Economy and Growth,Culture Sport and Tourism,011265,Empire Theatre (Operations),Supplies and Services,324117,Provisions E324,09-May-2022,000010052167423,JR HOLLAND FOODSERVICE,5499,Catering costs - provisions,22.79,0.00,22.79
Regeneration Economy and Growth,Corporate Property and Land,030691,Catering - Durham Dales Centre,Supplies and Services,324117,Provisions E324,09-May-2022,000010052167427,FREEMAN CATERING BUTCH,5422,Catering costs - provisions,83.61,0.00,83.61
Regeneration Economy and Growth,Corporate Property and Land,030691,Catering - Durham Dales Centre,Supplies and Services,324117,Provisions E324,09-May-2022,000010052167435,JR HOLLAND FOODSERVICE,5499,Catering costs - provisions,-35.67,0.00,-35.67
Regeneration Economy and Growth,Culture Sport and Tourism,054235,Bishop Auckland Town Hall Cafe,Supplies and Services,324117,Provisions E324,09-May-2022,000010052167439,JR HOLLAND FOODSERVICE,5499,Catering costs - provisions,8.24,0.00,8.24
Regeneration Economy and Growth,Culture Sport and Tourism,054235,Bishop Auckland Town Hall Cafe,Supplies and Services,324117,Provisions E324,09-May-2022,000010052167445,JR HOLLAND FOODSERVICE,5499,Catering costs - provisions,402.98,0.00,402.98
Adult and Health Services,Head of Adults,055643,Hawthorn House LD Respite Unit,Supplies and Services,324117,Provisions E324,09-May-2022,000010052167461,FREEMAN CATERING BUTCH,5422,Catering costs - provisions,38.87,0.00,38.87
Adult and Health Services,Head of Adults,055643,Hawthorn House LD Respite Unit,Supplies and Services,324117,Provisions E324,09-May-2022,000010052167465,JR HOLLAND FOODSERVICE,5499,Catering costs - provisions,22.02,0.00,22.02
Neighbourhoods and Climate Change,Environmental Services,011060,C&G - Hardwick Park Catering,Supplies and Services,324117,Provisions E324,09-May-2022,000010052167483,FREEMAN CATERING BUTCH,5422,Catering costs - provisions,67.11,0.00,67.11
Neighbourhoods and Climate Change,Environmental Services,011060,C&G - Hardwick Park Catering,Supplies and Services,324117,Provisions E324,09-May-2022,000010052167487,JR HOLLAND FOODSERVICE,5499,Catering costs - provisions,35.68,0.00,35.68
Regeneration Economy and Growth,Corporate Property and Land,021234,Catering - Locomotion,Supplies and Services,384999,Miscellaneous Expenses,09-May-2022,000010052167491,ON A ROLL SANDWICH COM,5199,Other expenses,371.66,0.00,371.66
Regeneration Economy and Growth,Corporate Property and Land,021234,Catering - Locomotion,Supplies and Services,324117,Provisions E324,09-May-2022,000010052167497,FREEMAN CATERING BUTCH,5422,Catering costs - provisions,57.03,0.00,57.03
Regeneration Economy and Growth,Corporate Property and Land,021235,Catering - Wharton Park,Supplies and Services,324117,Provisions E324,09-May-2022,000010052167501,JR HOLLAND FOODSERVICE,5499,Catering costs - provisions,46.54,0.00,46.54
Regeneration Economy and Growth,Culture Sport and Tourism,054812,Gala Theatre - Catering etc,Supplies and Services,324117,Provisions E324,09-May-2022,000010052167507,FREEMAN CATERING BUTCH,5422,Catering costs - provisions,19.16,0.00,19.16
Regeneration Economy and Growth,Corporate Property and Land,021242,Catering - County Hall,Supplies and Services,324117,Provisions E324,09-May-2022,000010052167515,JR HOLLAND FOODSERVICE,5499,Catering costs - provisions,151.04,0.00,151.04
Regeneration Economy and Growth,Corporate Property and Land,021242,Catering - County Hall,Supplies and Services,324117,Provisions E324,09-May-2022,000010052167519,JR HOLLAND FOODSERVICE,5499,Catering costs - provisions,51.30,0.00,51.30
Children and Young Peoples Services,Head of Education and Skills,071801,Selby Cottage Childcare Centre,Supplies and Services,324117,Provisions E324,09-May-2022,000010056078181,WM MORRISONS STORE,5411,Catering costs - provisions,11.62,0.00,11.62
Children and Young Peoples Services,Head of Education and Skills,071801,Selby Cottage Childcare Centre,Employees,040149,Recruitment Instruction and Training,09-May-2022,000010056078191,PPL PRS LTD,8699,Training-all costs,523.47,0.00,523.47
Children and Young Peoples Services,Head of Childrens Social Care,085334,West Rainton Satelite Home,Supplies and Services,328041,Clothing uniforms and laundry E328,09-May-2022,000010056078505,PRIMARK 670 GATESHEAD,5651,Clothing uniforms and laundry,7.50,0.00,7.50
Children and Young Peoples Services,Head of Early Help Inclusion & Vulnerable Children.,071670,Willington Childrens Centre,Premises,145023,Cleaning and Domestic Supplies,09-May-2022,000010056078725,774 026,5411,Cleaning and domestic materials,6.58,0.00,6.58
Neighbourhoods and Climate Change,Environmental Services,026591,C&G - Hardwick Park,Supplies and Services,332047,Printing Stationery and Gen Off Exps,09-May-2022,000010056079147,AMZNMKTPLACE AMAZON.CO,5999,Stationery,9.98,1.66,8.32
Children and Young Peoples Services,Head of Childrens Social Care,085517,Supporting Solutions Service (Edge of Care),Supplies and Services,328041,Clothing uniforms and laundry E328,09-May-2022,000010056079203,ARGOS LTD,5310,Clothing uniforms and laundry,113.95,0.00,113.95
Children and Young Peoples Services,Head of Childrens Social Care,085331,New Lea Childrens Home,Supplies and Services,324117,Provisions E324,09-May-2022,000010056079481,WM MORRISONS STORE,5411,Catering costs - provisions,15.90,0.00,15.90
Children and Young Peoples Services,Head of Childrens Social Care,085331,New Lea Childrens Home,Supplies and Services,324117,Provisions E324,09-May-2022,000010056079489,WM MORRISONS STORE,5411,Catering costs - provisions,3.50,0.00,3.50
Children and Young Peoples Services,Head of Childrens Social Care,085551,Short Break Services-Park Hse Sher,Supplies and Services,324117,Provisions E324,09-May-2022,000010056079689,ALDI 12 774,5411,Catering costs - provisions,55.69,0.00,55.69
Regeneration Economy and Growth,Development and Housing,030554,International Relations 030554,Supplies and Services,324117,Provisions E324,09-May-2022,000010056079735,TU AT SAINSBURYS,5411,Catering costs - provisions,44.00,0.00,44.00
Neighbourhoods and Climate Change,Environmental Services,010900,Fleet - Meadowfield Fleet,Transport,215013,Running Costs of Vehicles,09-May-2022,000010056079783,DVLA VEHICLE TAX,9311,Vehicle Excise Duty (VED),292.50,0.00,292.50
Neighbourhoods and Climate Change,Environmental Services,010900,Fleet - Meadowfield Fleet,Transport,215013,Running Costs of Vehicles,09-May-2022,000010056079793,DVLA VEHICLE TAX,9311,Vehicle Excise Duty (VED),93.25,0.00,93.25
Adult and Health Services,Head of Adults,055643,Hawthorn House LD Respite Unit,Supplies and Services,324117,Provisions E324,09-May-2022,000010056079835,WM MORRISONS STORE,5411,Catering costs - provisions,15.84,0.00,15.84
Regeneration Economy and Growth,Development and Housing,030776,LINKCD Flexible Fund,Supplies and Services,348037,Subsistence E348,09-May-2022,000010056079883,CAFFE NERO DURHAM,5814,Subsistence,5.85,0.00,5.85
Regeneration Economy and Growth,Development and Housing,030776,LINKCD Flexible Fund,Supplies and Services,348037,Subsistence E348,09-May-2022,000010056079887,CAFFE NERO DURHAM,5814,Subsistence,2.95,0.00,2.95
Neighbourhoods and Climate Change,Environmental Services,031239,North Pennines - Carbon Connect,Supplies and Services,348037,Subsistence E348,09-May-2022,000010056079955,SHELL Edenside Garage,5541,Subsistence,3.74,0.00,3.74
Children and Young Peoples Services,Head of Childrens Social Care,085334,West Rainton Satelite Home,Transport,215995,Running Costs of Vehicles,09-May-2022,000010056080757,GULF WEST RAINTON,5541,Vehicle running expenses,69.52,0.00,69.52
Adult and Health Services,Head of Adults,055310,Positive Journeys (Tudhoe),Supplies and Services,324117,Provisions E324,09-May-2022,000010056080803,ALDI 59 774,5411,Catering costs - provisions,1.25,0.00,1.25
Regeneration Economy and Growth,Corporate Property and Land,030691,Catering - Durham Dales Centre,Supplies and Services,324117,Provisions E324,09-May-2022,000010056278319,BATLEYS PERTH,5300,Catering costs - provisions,6.55,0.00,6.55
Regeneration Economy and Growth,Corporate Property and Land,030691,Catering - Durham Dales Centre,Supplies and Services,324117,Provisions E324,09-May-2022,000010056278327,BATLEYS PERTH,5300,Catering costs - provisions,63.42,10.57,52.85
Regeneration Economy and Growth,Corporate Property and Land,030691,Catering - Durham Dales Centre,Supplies and Services,324117,Provisions E324,09-May-2022,000010056278327 - 1,BATLEYS PERTH,5300,Catering costs - provisions,108.75,,108.75
Regeneration Economy and Growth,Corporate Property and Land,030691,Catering - Durham Dales Centre,Supplies and Services,324117,Provisions E324,09-May-2022,000010056278341,BATLEYS PERTH,5300,Catering costs - provisions,-12.12,-2.02,-10.10
Regeneration Economy and Growth,Corporate Property and Land,021235,Catering - Wharton Park,Supplies and Services,324117,Provisions E324,09-May-2022,000010056278383,BATLEYS PERTH,5300,Catering costs - provisions,73.32,12.22,61.10
Regeneration Economy and Growth,Corporate Property and Land,021235,Catering - Wharton Park,Supplies and Services,324117,Provisions E324,09-May-2022,000010056278383 - 1,BATLEYS PERTH,5300,Catering costs - provisions,31.12,,31.12
Regeneration Economy and Growth,Culture Sport and Tourism,054812,Gala Theatre - Catering etc,Supplies and Services,324117,Provisions E324,09-May-2022,000010056278401,BATLEYS PERTH,5300,Catering costs - provisions,117.72,19.62,98.10
Regeneration Economy and Growth,Culture Sport and Tourism,054812,Gala Theatre - Catering etc,Supplies and Services,324117,Provisions E324,09-May-2022,000010056278401 - 1,BATLEYS PERTH,5300,Catering costs - provisions,120.05,,120.05
Regeneration Economy and Growth,Business Durham CL0850,030689,Inward Investment and Aftercare,Supplies and Services,304999,Equipment and Materials,10-May-2022,000010051954507,MAILCHIMP MISC,5968,Misc equipment tools and materials,2.63,0.00,2.63
Regeneration Economy and Growth,Culture Sport and Tourism,054813,Gala Theatre - Technical,Supplies and Services,304259,Equipment and Materials,10-May-2022,000010051955105,SPROUTVIDEO LLC,7399,Equipment-purchase and rental,162.93,0.00,162.93
Regeneration Economy and Growth,Culture Sport and Tourism,054813,Gala Theatre - Technical,Supplies and Services,304259,Equipment and Materials,10-May-2022,000010051955111,SPROUTVIDEO LLC,7399,Equipment-purchase and rental,4.48,0.00,4.48
Neighbourhoods and Climate Change,Environmental Services,031233,North Pennines - Pennine Peatlife,Supplies and Services,384988,Miscellaneous Expenses,10-May-2022,000010051955799,VICTORIA GARDEN,5812,School Show/Play,4.88,0.00,4.88
Neighbourhoods and Climate Change,Environmental Services,031239,North Pennines - Carbon Connect,Supplies and Services,384999,Miscellaneous Expenses,10-May-2022,000010051955801,MIDLINK M7/M8 LTD,4784,Other expenses,0.08,0.00,0.08
Neighbourhoods and Climate Change,Environmental Services,031239,North Pennines - Carbon Connect,Supplies and Services,384999,Miscellaneous Expenses,10-May-2022,000010051955805,DUBLIN PORT TUNNEL,4784,Other expenses,0.24,0.00,0.24
Regeneration Economy and Growth,Culture Sport and Tourism,011263,Louisa Centre 011263,Supplies and Services,304403,Equipment and Materials,10-May-2022,000010051956231,AMZNMktplace,5999,Other consumables,12.20,2.03,10.17
Regeneration Economy and Growth,Business Durham CL0850,030689,Inward Investment and Aftercare,Supplies and Services,342033,Computers and Communications,10-May-2022,000010056078131,BLS MONDAY.COM12017784,7372,Computer hardware,148.80,0.00,148.80
Children and Young Peoples Services,Head of Education and Skills,071801,Selby Cottage Childcare Centre,Supplies and Services,324117,Provisions E324,10-May-2022,000010056078173,B&M 373 - GATESHEAD,5399,Catering costs - provisions,53.88,0.00,53.88
Children and Young Peoples Services,Head of Education and Skills,071801,Selby Cottage Childcare Centre,Supplies and Services,324117,Provisions E324,10-May-2022,000010056078197,WILKO RETAIL LIMITED,5399,Catering costs - provisions,69.70,0.00,69.70
Neighbourhoods and Climate Change,Environmental Services,010909,C&G - Technical & Service Development Team,Supplies and Services,304403,Equipment and Materials,10-May-2022,000010056078261,AMZNMktplace,5999,Other consumables,7.99,1.33,6.66
Regeneration Economy and Growth,Business Durham CL0850,030717,Business Services,Supplies and Services,304403,Equipment and Materials,10-May-2022,000010056078267,AMZNMKTPLACE AMAZON.CO,5999,Other consumables,39.90,6.65,33.25
Regeneration Economy and Growth,Business Durham CL0850,030717,Business Services,Supplies and Services,304403,Equipment and Materials,10-May-2022,000010056078267 - 1,AMZNMKTPLACE AMAZON.CO,5999,Other consumables,0.05,,0.05
Children and Young Peoples Services,Head of Childrens Social Care,085347,Solo Home The Manse,Supplies and Services,324117,Provisions E324,10-May-2022,000010056078329,TESCO STORES 2371,5411,Catering costs - provisions,128.81,0.00,128.81
Neighbourhoods and Climate Change,Environmental Services,010383,C&G - South Street Cleansing,Supplies and Services,384999,Miscellaneous Expenses,10-May-2022,000010056078335,WWW.FLEETLINEMARKERS.C,5046,Other expenses,18.72,0.00,18.72
Regeneration Economy and Growth,Culture Sport and Tourism,054814,Gala Theatre - Cinema,Supplies and Services,338047,Services,10-May-2022,000010056078347,MWK IT SOLUTIONS,5734,Direct production costs,42.00,0.00,42.00
Children and Young Peoples Services,Head of Childrens Social Care,085334,West Rainton Satelite Home,Supplies and Services,304999,Equipment and Materials,10-May-2022,000010056078513,STARBUCKS,5815,Misc equipment tools and materials,7.84,0.00,7.84
Regeneration Economy and Growth,Development and Housing,031623,Rough Sleeping,Supplies and Services,304999,Equipment and Materials,10-May-2022,000010056078539,UNIQUE MAGAZINES LTD,5968,Misc equipment tools and materials,56.85,0.00,56.85
Children and Young Peoples Services,Head of Childrens Social Care,085341,High Etherley Satelite Home,Supplies and Services,324117,Provisions E324,10-May-2022,000010056078551,SPAR - GEM WEST AUCKLA,5411,Catering costs - provisions,5.87,0.00,5.87
Neighbourhoods and Climate Change,Environmental Services,010367,C&G - South Grounds Maintenance,Supplies and Services,304403,Equipment and Materials,10-May-2022,000010056078681,MAXWELLS DIY,5231,Other consumables,82.00,13.67,68.33
Children and Young Peoples Services,Head of Early Help Inclusion & Vulnerable Children.,088104,BA/BC/Crook Intensive Family Support Team,Supplies and Services,364301,Grants to Voluntary Organisations,10-May-2022,000010056078733,AMZNMktplace,5999,Hardship,14.71,2.45,12.26
Children and Young Peoples Services,Head of Early Help Inclusion & Vulnerable Children.,088104,BA/BC/Crook Intensive Family Support Team,Supplies and Services,364301,Grants to Voluntary Organisations,10-May-2022,000010056078739,AMZNMktplace,5999,Hardship,18.94,3.16,15.78
Children and Young Peoples Services,Head of Early Help Inclusion & Vulnerable Children.,085957,Secure Management,Supplies and Services,328041,Clothing uniforms and laundry E328,10-May-2022,000010056078887,Nike GBP,5655,Clothing uniforms and laundry,-32.95,0.00,-32.95
Children and Young Peoples Services,Head of Childrens Social Care,085511,Emergency Duty Team,Supplies and Services,352001,Conference Expenses,10-May-2022,000010056078907,TRAVELODGE,3615,Conferencesseminars fees etc,77.50,0.00,77.50
Regeneration Economy and Growth,Culture Sport and Tourism,054814,Gala Theatre - Cinema,Supplies and Services,304259,Equipment and Materials,10-May-2022,000010056079111,COMMS EXPRESS LTD,5732,Equipment-purchase and rental,155.69,0.00,155.69
Neighbourhoods and Climate Change,Environmental Services,026591,C&G - Hardwick Park,Supplies and Services,332047,Printing Stationery and Gen Off Exps,10-May-2022,000010056079139,AMZNMKTPLACE AMAZON.CO,5999,Stationery,6.95,1.16,5.79
Children and Young Peoples Services,Head of Early Help Inclusion & Vulnerable Children.,085962,Aycliffe Secure - Durham,Supplies and Services,304403,Equipment and Materials,10-May-2022,000010056079155,AMZNMktplace,5999,Other consumables,3.99,0.67,3.32
Regeneration Economy and Growth,Development and Housing,030771,Durham Advance Flexible Fund,Transport,235057,Public Transport,10-May-2022,000010056079295,Northern.COM,4112,Staff travelling,9.60,0.00,9.60
Regeneration Economy and Growth,Development and Housing,030771,Durham Advance Flexible Fund,Transport,235057,Public Transport,10-May-2022,000010056079303,Northern.COM,4112,Staff travelling,9.60,0.00,9.60
Regeneration Economy and Growth,Development and Housing,030771,Durham Advance Flexible Fund,Transport,235057,Public Transport,10-May-2022,000010056079309,PRINCE BISHOP SHOPPING,7523,Staff travelling,2.10,0.00,2.10
Children and Young Peoples Services,Head of Early Help Inclusion & Vulnerable Children.,085957,Secure Management,Supplies and Services,304403,Equipment and Materials,10-May-2022,000010056079321,AMZNMKTPLACE AMAZON.CO,5999,Other consumables,18.97,3.16,15.81
Children and Young Peoples Services,Head of Early Help Inclusion & Vulnerable Children.,085957,Secure Management,Supplies and Services,324117,Provisions E324,10-May-2022,000010056079327,SHEIN.COM,5399,Catering costs - provisions,32.47,0.00,32.47
Children and Young Peoples Services,Head of Early Help Inclusion & Vulnerable Children.,085957,Secure Management,Supplies and Services,324117,Provisions E324,10-May-2022,000010056079335,SHEIN.COM,5399,Catering costs - provisions,80.91,0.00,80.91
Neighbourhoods and Climate Change,Environmental Services,031200,North Pennines Core,Supplies and Services,348037,Subsistence E348,10-May-2022,000010056079351,The Falls Cafe,5814,Subsistence,48.56,0.00,48.56
Neighbourhoods and Climate Change,Environmental Services,031200,North Pennines Core,Supplies and Services,348037,Subsistence E348,10-May-2022,000010056079361,The Nook Farm Shop,5812,Subsistence,34.30,0.00,34.30
Children and Young Peoples Services,Head of Education and Skills,075035,DurhamDirections Re-engagement,Supplies and Services,304403,Equipment and Materials,10-May-2022,000010056079407,AMZNBUSINESS 2D3X19DU4,5999,Other consumables,14.33,2.39,11.94
Regeneration Economy and Growth,Culture Sport and Tourism,054399,Local Delivery-Libraries,Supplies and Services,312009,Newspapers books and periodicals E312,10-May-2022,000010056079415,AMZNMktplace,5999,Newspapers books and periodicals,10.16,0.00,10.16
Resources BK0010,HR & Employee Services,010984,Training and Development,Supplies and Services,372009,Subscriptions E372,10-May-2022,000010056079423,TSO SHOP ID-7452394,2741,Subscriptions 372009,172.47,0.00,172.47
Dedicated Schools Grant BG0015,DSG Schools Block,418503,Belmont Community School 004185 - English,Supplies and Services,312011,Newspapers books and periodicals E312,10-May-2022,000010056079709,Amazon.co.uk 2D09A9214,5969,Books-school library,41.28,0.00,41.28
Children and Young Peoples Services,Head of Childrens Social Care,085366,Children Looked After Team 3,Supplies and Services,338045,Services,10-May-2022,000010056079745,HM PASSPORT OFFICE,9399,Legal expenses 338045,49.00,0.00,49.00
Children and Young Peoples Services,Head of Childrens Social Care,085366,Children Looked After Team 3,Supplies and Services,338045,Services,10-May-2022,000010056079753,HM PASSPORT OFFICE,9399,Legal expenses 338045,49.00,0.00,49.00
Children and Young Peoples Services,Head of Childrens Social Care,085366,Children Looked After Team 3,Supplies and Services,338045,Services,10-May-2022,000010056079759,HM PASSPORT OFFICE,9399,Legal expenses 338045,49.00,0.00,49.00
Children and Young Peoples Services,Head of Childrens Social Care,085366,Children Looked After Team 3,Supplies and Services,338045,Services,10-May-2022,000010056079771,HM PASSPORT OFFICE,9399,Legal expenses 338045,75.50,0.00,75.50
Children and Young Peoples Services,Head of Education and Skills,071802,Louisa Cent Nursery,Supplies and Services,324117,Provisions E324,10-May-2022,000010056079865,ASDA SUPERSTORE,5411,Catering costs - provisions,15.00,0.00,15.00
Children and Young Peoples Services,Head of Education and Skills,071802,Louisa Cent Nursery,Supplies and Services,324117,Provisions E324,10-May-2022,000010056079871,ASDA SUPERSTORE,5411,Catering costs - provisions,5.20,0.00,5.20
Regeneration Economy and Growth,Development and Housing,030771,Durham Advance Flexible Fund,Transport,235057,Public Transport,10-May-2022,000010056079905,CHEVRON TAXIS,4121,Staff travelling,35.50,0.00,35.50
Children and Young Peoples Services,Head of Education and Skills,078554,Adult Skills-Main,Supplies and Services,332047,Printing Stationery and Gen Off Exps,10-May-2022,000010056079927,WWW.CROSSBOWEDUCATION.,5943,Stationery,45.53,0.00,45.53
Neighbourhoods and Climate Change,Environmental Services,031239,North Pennines - Carbon Connect,Transport,235057,Public Transport,10-May-2022,000010056079959,EFLOW.IE,4784,Staff travelling,2.74,0.00,2.74
Children and Young Peoples Services,Head of Childrens Social Care,085334,West Rainton Satelite Home,Transport,215995,Running Costs of Vehicles,10-May-2022,000010056080017,TESCO PAY AT PUMP 4053,5542,Vehicle running expenses,30.02,0.00,30.02
Resources BK0010,Digital Services,065335,School Services - Implementations,Supplies and Services,304639,Equipment and Materials,10-May-2022,000010056080065,DKC DIGI-KEY CORP,5065,Technicians-supplies,40.18,0.00,40.18
Children and Young Peoples Services,Head of Early Help Inclusion & Vulnerable Children.,085957,Secure Management,Supplies and Services,304403,Equipment and Materials,10-May-2022,000010056080167,AMZNMktplace,5999,Other consumables,47.95,7.99,39.96
Children and Young Peoples Services,Head of Early Help Inclusion & Vulnerable Children.,085957,Secure Management,Supplies and Services,304403,Equipment and Materials,10-May-2022,000010056080179,AMZNMktplace,5999,Other consumables,17.97,3.00,14.97
Resources BK0010,Resources Management CK0450,069000,Resources Management 069000,Supplies and Services,304403,Equipment and Materials,10-May-2022,000010056080189,AMZNMktplace,5999,Other consumables,25.41,0.00,25.41
Resources BK0010,Resources Management CK0450,069000,Resources Management 069000,Supplies and Services,304403,Equipment and Materials,10-May-2022,000010056080197,AMZNMktplace,5999,Other consumables,29.79,0.00,29.79
Resources BK0010,Resources Management CK0450,069000,Resources Management 069000,Supplies and Services,304403,Equipment and Materials,10-May-2022,000010056080203,AMZNMktplace,5999,Other consumables,4.70,0.78,3.92
Resources BK0010,Resources Management CK0450,069000,Resources Management 069000,Supplies and Services,304403,Equipment and Materials,10-May-2022,000010056080207,AMZNMktplace,5999,Other consumables,9.99,0.00,9.99
Regeneration Economy and Growth,Culture Sport and Tourism,011204,Festival and Events,Employees,040149,Recruitment Instruction and Training,10-May-2022,000010056080219,EIF/PURPLEGUIDE,8699,Training-all costs,30.00,0.00,30.00
Neighbourhoods and Climate Change,Environmental Services,010301,C&G - North Grounds Maintenance,Supplies and Services,384999,Miscellaneous Expenses,10-May-2022,000010056080307,PREMIER PARTS SCOTLAND,5046,Other expenses,489.60,0.00,489.60
Regeneration Economy and Growth,Business Durham CL0850,030608,Tanfield Lea Business Centre,Supplies and Services,304259,Equipment and Materials,10-May-2022,000010056080317,Amazon.co.uk 2D4XW5S54,5969,Equipment-purchase and rental,23.07,0.00,23.07
Children and Young Peoples Services,Head of Early Help Inclusion & Vulnerable Children.,088101,Bullion Lane & Brandon Family Centre,Supplies and Services,384302,Miscellaneous Expenses,10-May-2022,000010056080523,AMZNMKTPLACE AMAZON.CO,5999,Activity expenses,9.49,1.58,7.91
Regeneration Economy and Growth,Culture Sport and Tourism,011263,Louisa Centre 011263,Supplies and Services,304403,Equipment and Materials,10-May-2022,000010056080645,AMZNMKTPLACE AMAZON.CO,5999,Other consumables,37.30,6.22,31.08
Regeneration Economy and Growth,Culture Sport and Tourism,054233,Bishop Auckland Town Hall Library,Supplies and Services,324117,Provisions E324,10-May-2022,000010056080657,HERON FOODS,5411,Catering costs - provisions,10.60,0.00,10.60
Regeneration Economy and Growth,Development and Housing,030776,LINKCD Flexible Fund,Supplies and Services,324117,Provisions E324,10-May-2022,000010056080705,ASDA STORES LTD,5411,Catering costs - provisions,20.00,0.00,20.00
Regeneration Economy and Growth,Development and Housing,030776,LINKCD Flexible Fund,Supplies and Services,324117,Provisions E324,10-May-2022,000010056080713,ASDA STORES LTD,5411,Catering costs - provisions,2.50,0.00,2.50
Regeneration Economy and Growth,Corporate Property and Land,010932,CCS-Construction Consultancy Service (CCS),Supplies and Services,342053,Computers and Communications,10-May-2022,000010056080793,ENSCAPE3D.COM,7372,Computer software,797.53,0.00,797.53
Adult and Health Services,Head of Adults,055309,Peterlee Pathways,Supplies and Services,304403,Equipment and Materials,10-May-2022,000010056080841,AMZNMKTPLACE AMAZON.CO,5999,Other consumables,69.96,11.66,58.30
Neighbourhoods and Climate Change,Environmental Services,031200,North Pennines Core,Supplies and Services,344033,Telephones,10-May-2022,000010056080865,ZOOM.US 888-799-9666,4814,Telephones general-all costs,134.40,0.00,134.40
Children and Young Peoples Services,Head of Early Help Inclusion & Vulnerable Children.,088113,Seaham & Laurel Avenue Family Centre,Supplies and Services,324117,Provisions E324,10-May-2022,000010056080907,LIDL GB DURHAM,5411,Catering costs - provisions,16.81,0.00,16.81
Children and Young Peoples Services,Head of Early Help Inclusion & Vulnerable Children.,088101,Bullion Lane & Brandon Family Centre,Supplies and Services,384999,Miscellaneous Expenses,10-May-2022,000010056080939,BAKER ROSS,5970,Other expenses,432.59,72.10,360.49
Regeneration Economy and Growth,Corporate Property and Land,011296,Catering - Crimdon Dene Hub,Supplies and Services,324117,Provisions E324,10-May-2022,000010056278307,JR HOLLAND FOODSERVICE,5499,Catering costs - provisions,108.43,0.00,108.43
Regeneration Economy and Growth,Corporate Property and Land,011296,Catering - Crimdon Dene Hub,Supplies and Services,324117,Provisions E324,10-May-2022,000010056278311,JR HOLLAND FOODSERVICE,5499,Catering costs - provisions,80.79,0.00,80.79
Regeneration Economy and Growth,Corporate Property and Land,030691,Catering - Durham Dales Centre,Supplies and Services,324117,Provisions E324,10-May-2022,000010056278333,JR HOLLAND FOODSERVICE,5499,Catering costs - provisions,186.16,0.00,186.16
Regeneration Economy and Growth,Culture Sport and Tourism,054235,Bishop Auckland Town Hall Cafe,Supplies and Services,324117,Provisions E324,10-May-2022,000010056278349,JR HOLLAND FOODSERVICE,5499,Catering costs - provisions,442.23,0.00,442.23
Adult and Health Services,Head of Adults,055643,Hawthorn House LD Respite Unit,Supplies and Services,324117,Provisions E324,10-May-2022,000010056278359,JR HOLLAND FOODSERVICE,5499,Catering costs - provisions,23.67,0.00,23.67
Adult and Health Services,Head of Adults,055643,Hawthorn House LD Respite Unit,Supplies and Services,324117,Provisions E324,10-May-2022,000010056278367,JR HOLLAND FOODSERVICE,5499,Catering costs - provisions,23.84,0.00,23.84
Regeneration Economy and Growth,Corporate Property and Land,021234,Catering - Locomotion,Supplies and Services,324117,Provisions E324,10-May-2022,000010056278377,JR HOLLAND FOODSERVICE,5499,Catering costs - provisions,40.69,0.00,40.69
Regeneration Economy and Growth,Corporate Property and Land,021235,Catering - Wharton Park,Supplies and Services,324117,Provisions E324,10-May-2022,000010056278387,JR HOLLAND FOODSERVICE,5499,Catering costs - provisions,26.35,0.00,26.35
Regeneration Economy and Growth,Culture Sport and Tourism,011263,Louisa Centre 011263,Supplies and Services,324117,Provisions E324,10-May-2022,000010056278395,JR HOLLAND FOODSERVICE,5499,Catering costs - provisions,45.66,0.00,45.66
Regeneration Economy and Growth,Culture Sport and Tourism,054812,Gala Theatre - Catering etc,Supplies and Services,324117,Provisions E324,10-May-2022,000010056278413,JR HOLLAND FOODSERVICE,5499,Catering costs - provisions,56.04,0.00,56.04
Regeneration Economy and Growth,Corporate Property and Land,021242,Catering - County Hall,Supplies and Services,324117,Provisions E324,10-May-2022,000010056278419,JR HOLLAND FOODSERVICE,5499,Catering costs - provisions,32.79,0.00,32.79
Children and Young Peoples Services,Head of Childrens Social Care,085347,Solo Home The Manse,Supplies and Services,384237,Miscellaneous Expenses,10-May-2022,000010060991067,BLACKPOOL PLEASURE,7999,Recreational exps outings parties,37.00,0.00,37.00
Neighbourhoods and Climate Change,Environmental Services,010383,C&G - South Street Cleansing,Supplies and Services,304221,Equipment and Materials,10-May-2022,000010060991077,SCREWFIX DIR. LTD,5211,Direct materials,20.98,0.00,20.98
Regeneration Economy and Growth,Culture Sport and Tourism,054812,Gala Theatre - Catering etc,Supplies and Services,324117,Provisions E324,10-May-2022,000010060991097,AMZNMKTPLACE AMAZON.CO,5999,Catering costs - provisions,13.39,2.23,11.16
Children and Young Peoples Services,Head of Childrens Social Care,085334,West Rainton Satelite Home,Supplies and Services,348037,Subsistence E348,10-May-2022,000010060991221,MCDONALDS 1514,5814,Subsistence,16.97,0.00,16.97
Children and Young Peoples Services,Head of Early Help Inclusion & Vulnerable Children.,088104,BA/BC/Crook Intensive Family Support Team,Supplies and Services,304259,Equipment and Materials,10-May-2022,000010060991513,AMZNMKTPLACE AMAZON.CO,5999,Equipment-purchase and rental,32.94,5.49,27.45
Children and Young Peoples Services,Head of Early Help Inclusion & Vulnerable Children.,088104,BA/BC/Crook Intensive Family Support Team,Supplies and Services,304259,Equipment and Materials,10-May-2022,000010060991513 - 1,AMZNMKTPLACE AMAZON.CO,5999,Equipment-purchase and rental,0.03,,0.03
Children and Young Peoples Services,Head of Early Help Inclusion & Vulnerable Children.,085957,Secure Management,Supplies and Services,328041,Clothing uniforms and laundry E328,10-May-2022,000010060991833,LA REDOUTE,5651,Clothing uniforms and laundry,-108.00,0.00,-108.00
Children and Young Peoples Services,Head of Childrens Social Care,085517,Supporting Solutions Service (Edge of Care),Supplies and Services,328041,Clothing uniforms and laundry E328,10-May-2022,000010060992315,ARGOS LTD,5310,Clothing uniforms and laundry,14.95,0.00,14.95
Regeneration Economy and Growth,Development and Housing,030771,Durham Advance Flexible Fund,Supplies and Services,304259,Equipment and Materials,10-May-2022,000010060992449,GALA THEATRE,9399,Equipment-purchase and rental,7.50,0.00,7.50
Children and Young Peoples Services,Head of Early Help Inclusion & Vulnerable Children.,085957,Secure Management,Supplies and Services,304259,Equipment and Materials,10-May-2022,000010060992473,JD SPORTS INTERNET,5941,Equipment-purchase and rental,72.00,0.00,72.00
Children and Young Peoples Services,Head of Early Help Inclusion & Vulnerable Children.,085957,Secure Management,Supplies and Services,304259,Equipment and Materials,10-May-2022,000010060992483,JD SPORTS INTERNET,5941,Equipment-purchase and rental,85.00,0.00,85.00
Children and Young Peoples Services,Head of Early Help Inclusion & Vulnerable Children.,085957,Secure Management,Supplies and Services,304259,Equipment and Materials,10-May-2022,000010060992495,JD SPORTS INTERNET,5941,Equipment-purchase and rental,80.00,0.00,80.00
Children and Young Peoples Services,Head of Early Help Inclusion & Vulnerable Children.,085957,Secure Management,Supplies and Services,304259,Equipment and Materials,10-May-2022,000010060992499,JD SPORTS INTERNET,5941,Equipment-purchase and rental,53.99,0.00,53.99
Children and Young Peoples Services,Head of Early Help Inclusion & Vulnerable Children.,085957,Secure Management,Supplies and Services,304403,Equipment and Materials,10-May-2022,000010060992505,AMZNMKTPLACE AMAZON.CO,5999,Other consumables,16.39,2.73,13.66
Children and Young Peoples Services,Head of Childrens Social Care,085367,Children Looked After Team 4,Supplies and Services,338045,Services,10-May-2022,000010060993219,GEN REGISTER OFFICE,9399,Legal expenses 338045,11.00,0.00,11.00
Neighbourhoods and Climate Change,Environmental Services,010367,C&G - South Grounds Maintenance,Supplies and Services,304221,Equipment and Materials,10-May-2022,000010060993405,WWW.SCREWFIX.COM,5211,Direct materials,31.99,0.00,31.99
Children and Young Peoples Services,Head of Early Help Inclusion & Vulnerable Children.,085801,CDYJS - Support,Supplies and Services,328041,Clothing uniforms and laundry E328,10-May-2022,000010060993931,HTTPS://WWW.HOLMSIDEPA,7996,Clothing uniforms and laundry,21.00,0.00,21.00
Children and Young Peoples Services,Head of Early Help Inclusion & Vulnerable Children.,088101,Bullion Lane & Brandon Family Centre,Supplies and Services,384302,Miscellaneous Expenses,10-May-2022,000010060994081,AMZNMKTPLACE AMAZON.CO,5999,Activity expenses,97.44,16.24,81.20
Children and Young Peoples Services,Head of Early Help Inclusion & Vulnerable Children.,088101,Bullion Lane & Brandon Family Centre,Supplies and Services,384302,Miscellaneous Expenses,10-May-2022,000010060994081 - 1,AMZNMKTPLACE AMAZON.CO,5999,Activity expenses,0.05,,0.05
Children and Young Peoples Services,Head of Early Help Inclusion & Vulnerable Children.,088101,Bullion Lane & Brandon Family Centre,Supplies and Services,384302,Miscellaneous Expenses,10-May-2022,000010060994089,AMZNMKTPLACE AMAZON.CO,5999,Activity expenses,15.99,2.67,13.32
Children and Young Peoples Services,Head of Childrens Social Care,085633,Families First Chester-Le-Street,Supplies and Services,338045,Services,10-May-2022,000010060994123,Durham County CNCL,9399,Legal expenses 338045,-11.00,0.00,-11.00
Children and Young Peoples Services,Head of Early Help Inclusion & Vulnerable Children.,088112,Seaham & Central Durham Intensive Family Support Team,Supplies and Services,384302,Miscellaneous Expenses,10-May-2022,000010060994975,highstreetvouchers,8641,Activity expenses,20.00,0.00,20.00
Regeneration Economy and Growth,Corporate Property and Land,030691,Catering - Durham Dales Centre,Supplies and Services,384999,Miscellaneous Expenses,10-May-2022,000010061216447,G M PACKAGING UK LIMIT,5046,Other expenses,187.74,0.00,187.74
Regeneration Economy and Growth,Culture Sport and Tourism,054235,Bishop Auckland Town Hall Cafe,Supplies and Services,324117,Provisions E324,10-May-2022,000010061216461,BATLEYS PERTH,5300,Catering costs - provisions,382.32,63.72,318.60
Regeneration Economy and Growth,Culture Sport and Tourism,054235,Bishop Auckland Town Hall Cafe,Supplies and Services,324117,Provisions E324,10-May-2022,000010061216461 - 1,BATLEYS PERTH,5300,Catering costs - provisions,182.75,,182.75
Neighbourhoods and Climate Change,Environmental Services,011060,C&G - Hardwick Park Catering,Supplies and Services,324117,Provisions E324,10-May-2022,000010061216521,BATLEYS PERTH,5300,Catering costs - provisions,216.84,36.14,180.70
Neighbourhoods and Climate Change,Environmental Services,011060,C&G - Hardwick Park Catering,Supplies and Services,324117,Provisions E324,10-May-2022,000010061216521 - 1,BATLEYS PERTH,5300,Catering costs - provisions,157.69,,157.69
Regeneration Economy and Growth,Corporate Property and Land,021234,Catering - Locomotion,Supplies and Services,324117,Provisions E324,10-May-2022,000010061216531,BATLEYS PERTH,5300,Catering costs - provisions,140.34,23.39,116.95
Regeneration Economy and Growth,Corporate Property and Land,021234,Catering - Locomotion,Supplies and Services,324117,Provisions E324,10-May-2022,000010061216531 - 1,BATLEYS PERTH,5300,Catering costs - provisions,23.08,,23.08
Regeneration Economy and Growth,Corporate Property and Land,021234,Catering - Locomotion,Supplies and Services,324117,Provisions E324,10-May-2022,000010061216541,BATLEYS PERTH,5300,Catering costs - provisions,8.48,0.00,8.48
Children and Young Peoples Services,Head of Childrens Social Care,085352,New Childrens Home (previously Tow Law),Supplies and Services,308011,Furniture,10-May-2022,000010066478747,WWW.THERANGE.CO.UK,5719,Furniture repair and replacement,119.99,0.00,119.99
Children and Young Peoples Services,Head of Early Help Inclusion & Vulnerable Children.,088105,W/Close and Willington Family Centre,Supplies and Services,304259,Equipment and Materials,11-May-2022,000010056078729,Hobbycraft Trading Lim,5970,Equipment-purchase and rental,55.50,0.00,55.50
Neighbourhoods and Climate Change,Environmental Services,031239,North Pennines - Carbon Connect,Supplies and Services,384999,Miscellaneous Expenses,11-May-2022,000010056079961,EFLOW.IE,4784,Other expenses,0.08,0.00,0.08
Regeneration Economy and Growth,Corporate Property and Land,010932,CCS-Construction Consultancy Service (CCS),Supplies and Services,342053,Computers and Communications,11-May-2022,000010056080799,ENSCAPE3D.COM,7372,Computer software,21.93,0.00,21.93
Children and Young Peoples Services,Head of Education and Skills,071801,Selby Cottage Childcare Centre,Supplies and Services,304403,Equipment and Materials,11-May-2022,000010060990903,AMZNMKTPLACE AMAZON.CO,5999,Other consumables,19.95,0.00,19.95
Resources BK0010,Digital Services,065487,ICT Telephony Recharges,Supplies and Services,304403,Equipment and Materials,11-May-2022,000010060990935,AMZNMKTPLACE AMAZON.CO,5999,Other consumables,203.40,33.90,169.50
Regeneration Economy and Growth,Development and Housing,031581,Prevention Fund,Supplies and Services,384199,Miscellaneous Expenses,11-May-2022,000010060990975,TELEPHONE PAYMENT,9399,Other hired and contracted services,337.21,0.00,337.21
Children and Young Peoples Services,Head of Childrens Social Care,085341,High Etherley Satelite Home,Supplies and Services,328041,Clothing uniforms and laundry E328,11-May-2022,000010060991023,ROF 59,7996,Clothing uniforms and laundry,10.80,0.00,10.80
Children and Young Peoples Services,Head of Childrens Social Care,085342,16 Hickstead Rise (previously 9 Cedar Ave),Supplies and Services,324117,Provisions E324,11-May-2022,000010060991129,TESCO STORES 2916,5411,Catering costs - provisions,97.12,0.00,97.12
Children and Young Peoples Services,Head of Childrens Social Care,085332,Middlestone Moor CU,Supplies and Services,324117,Provisions E324,11-May-2022,000010060991153,HOME BARGAINS,5251,Catering costs - provisions,70.89,0.00,70.89
Children and Young Peoples Services,Head of Childrens Social Care,085332,Middlestone Moor CU,Supplies and Services,324117,Provisions E324,11-May-2022,000010060991163,TESCO STORES 6329,5411,Catering costs - provisions,99.00,0.00,99.00
Children and Young Peoples Services,Head of Education and Skills,054640,Durham Learning Resources 054640,Supplies and Services,304403,Equipment and Materials,11-May-2022,000010060991349,DURHAM CATHEDRAL,5947,Other consumables,266.90,0.00,266.90
Neighbourhoods and Climate Change,Environmental Services,010367,C&G - South Grounds Maintenance,Supplies and Services,304221,Equipment and Materials,11-May-2022,000010060991445,RICHARDSONS GARDEN CEN,5261,Direct materials,23.98,4.00,19.98
Neighbourhoods and Climate Change,Environmental Services,010367,C&G - South Grounds Maintenance,Supplies and Services,304403,Equipment and Materials,11-May-2022,000010060991457,MAXWELLS DIY,5231,Other consumables,8.00,1.33,6.67
Regeneration Economy and Growth,Development and Housing,030776,LINKCD Flexible Fund,Supplies and Services,304403,Equipment and Materials,11-May-2022,000010060991465,AMZNMKTPLACE AMAZON.CO,5999,Other consumables,24.56,4.09,20.47
Children and Young Peoples Services,Head of Early Help Inclusion & Vulnerable Children.,088107,Wheatley Hill & N. Aycliffe Family Centre,Supplies and Services,304259,Equipment and Materials,11-May-2022,000010060991529,SP JUSTSEED,5261,Equipment-purchase and rental,2.93,0.00,2.93
Children and Young Peoples Services,Head of Early Help Inclusion & Vulnerable Children.,088105,W/Close and Willington Family Centre,Supplies and Services,304259,Equipment and Materials,11-May-2022,000010060991535,AMZNMktplace,5999,Equipment-purchase and rental,20.07,3.36,16.71
Children and Young Peoples Services,Head of Early Help Inclusion & Vulnerable Children.,088105,W/Close and Willington Family Centre,Supplies and Services,304259,Equipment and Materials,11-May-2022,000010060991541,AMZNMktplace,5999,Equipment-purchase and rental,41.98,7.00,34.98
Children and Young Peoples Services,Head of Early Help Inclusion & Vulnerable Children.,088107,Wheatley Hill & N. Aycliffe Family Centre,Supplies and Services,304259,Equipment and Materials,11-May-2022,000010060991553,AMZNMktplace,5999,Equipment-purchase and rental,57.38,9.56,47.82
Children and Young Peoples Services,Head of Early Help Inclusion & Vulnerable Children.,088105,W/Close and Willington Family Centre,Supplies and Services,304259,Equipment and Materials,11-May-2022,000010060991559,AMZNMktplace,5999,Equipment-purchase and rental,19.92,3.32,16.60
Children and Young Peoples Services,Head of Early Help Inclusion & Vulnerable Children.,088105,W/Close and Willington Family Centre,Supplies and Services,304259,Equipment and Materials,11-May-2022,000010060991559 - 1,AMZNMktplace,5999,Equipment-purchase and rental,0.04,,0.04
Children and Young Peoples Services,Head of Early Help Inclusion & Vulnerable Children.,088105,W/Close and Willington Family Centre,Supplies and Services,304259,Equipment and Materials,11-May-2022,000010060991561,AMZNMktplace,5999,Equipment-purchase and rental,5.99,1.00,4.99
Children and Young Peoples Services,Head of Early Help Inclusion & Vulnerable Children.,071406,Tudhoe Childrens Centre,Supplies and Services,304259,Equipment and Materials,11-May-2022,000010060991565,ASDA GEORGE COM LEEDS,5411,Equipment-purchase and rental,69.60,0.00,69.60
Children and Young Peoples Services,Head of Early Help Inclusion & Vulnerable Children.,088104,BA/BC/Crook Intensive Family Support Team,Supplies and Services,364301,Grants to Voluntary Organisations,11-May-2022,000010060991573,AMZNMktplace,5999,Hardship,16.99,2.83,14.16
Regeneration Economy and Growth,Culture Sport and Tourism,054233,Bishop Auckland Town Hall Library,Supplies and Services,304403,Equipment and Materials,11-May-2022,000010060991591,AMZNMktplace,5999,Other consumables,18.34,3.07,15.27
Children and Young Peoples Services,Head of Childrens Social Care,085332,Middlestone Moor CU,Transport,235057,Public Transport,11-May-2022,000010060991625,ARRIVA UK BUS,4131,Staff travelling,15.00,0.00,15.00
Children and Young Peoples Services,Head of Childrens Social Care,085511,Emergency Duty Team,Transport,235057,Public Transport,11-May-2022,000010060991843,Airpay 32797460-Stanle,4121,Staff travelling,34.15,0.00,34.15
Children and Young Peoples Services,Head of Childrens Social Care,085347,Solo Home The Manse,Supplies and Services,304403,Equipment and Materials,11-May-2022,000010060991919,AMZNMktplace,5999,Other consumables,19.85,0.00,19.85
Children and Young Peoples Services,Head of Childrens Social Care,085331,New Lea Childrens Home,Supplies and Services,324117,Provisions E324,11-May-2022,000010060992113,TESCO STORES 2371,5411,Catering costs - provisions,21.99,0.00,21.99
